{"text_format":"1","workbook":"xlsx","n_sheets":6,"sheets":["Start","Provisions","UserNames","LineUpSheetType","DataInput","MajorItems"],"not_rendered":{"charts":0,"images":3,"macros":1,"external_links":0,"defined_names":259,"comments":0,"pivot_tables":0},"unopened":[],"bounds":{"document_bytes":16777216,"sheet_cells":100000,"rows_first":2000,"rows_last":500,"rows_between":2000,"halvings":0,"cell_chars":16384,"cell_head_chars":4096},"cells_cut":0,"cells_raw":0,"read":"whole","date_system":"1900"}

{"sheet":"Start","index":0,"n_rows":6,"n_cols":4,"rows_kept":6,"cut":false,"hidden":false,"merged":[]}
[]
[]
[]
[null,null,null,"                            automated proposal line up sheet"]
[]
[null,null,"                 use your engineering judgement"]

{"sheet":"Provisions","index":1,"n_rows":1018,"n_cols":28,"rows_kept":1018,"cut":false,"hidden":false,"merged":[]}
["File History:",null,null,null,null,null,null,null,null,null,null,null,null,null,null,null,null,null,null,null,null,null,null,null,null,null,"data from file",89]
[null,null,null,null,null,null,null,null,null,null,null,null,null,null,null,"Directory for Standard Files:","User Defined Type of LineUp Sheet ",null,null,null,null,null,null,null,null,null,null,"test"]
[null,null,null,null,null,null,null,null,null,null,null,null,null,null,null,null,null,null,null,null,null,null,null,null,null,null,null,"test"]
[null,null,null,null,null,null,null,null,null,null,null,null,null,null,null,null,"Raleigh Let - General Construction",null,null,null,null,null,null,null,null,null,null,"Orange County"]
[]
[null,null,null,null,null,null,null,null,null,null,null,null,null,null,null,"//dot/dfsroot01/cccommon/provisions/01a  Automated Proposal Line Up Sheet/2012 Standard Provisions/",{"$f":"VLOOKUP(Q4,LineUpSheetType!A1:B10,2,0)","v":"CentralGeneral"},null,null,null,null,null,null,null,null,null,null,"Federal"]
[null,null,null,null,"                      automated proposal line up sheet",null,null,null,{"$f":"IF(AND(OR(ISNUMBER(SEARCH(\"Edgecombe\",ÇstrCounty)),ISNUMBER(SEARCH(\"Wilson\",ÇstrCounty)),ISNUMBER(SEARCH(\"Halifax\",ÇstrCounty)),ISNUMBER(SEARCH(\"Johnston\",ÇstrCounty)),ISNUMBER(SEARCH(\"Nash\",ÇstrCounty)),ISNUMBER(SEARCH(\"Wayne\",ÇstrCounty))),NOT(ISBLANK(ÇstrTIP)),ÇintDivision=15,MID(ÇstrTIP,1,1)<>\"2\"),\"Project is located in Div. 4 - Ensure Estimate includes Pay Item For Construction Surveying\",\"\")","v":""},null,null,null,null,null,null,"Directory for Division Files:",null,0]
[null,null,null,null,null,null,null,null,null,null,null,null,null,null,null,"//dot/dfsroot01/cccommon/provisions/01a  Automated Proposal Line Up Sheet/2012 Standard Provisions/",null,null,null,null,null,null,null,null,null,null,null,"B 01A•36›"]
[null,null,null,"             use your engineering judgement",null,null,null,null,null,null,null,null,null,null,null,"Directory for this USER:","^LastNumberofRowofProvisions",null,null,null,null,null,null,null,null,null,null,"C 01B•42›"]
["\"Click\" or type \"a\" to select provisions.  Add project specific provisions or notes by clicking the cell indicated.  Need Help? 919-707-6916 or specs@ncdot.gov.",null,null,null,null,null,null,null,null,null,null,null,null,null,null,"//dot/dfsroot01/cccommon/provisiondata/",null,null,null,null,null,null,null,null,null,null,null,"SP01 G001•49›"]
[null,"Double-Click to Select (a)","Provision Number","Type","Provision Name","Used in Line Up Sheets (delete where we don't want to use)","Last Revised","File Name / Input Name","Suggested Use / Provision Data",null,"Add a Note","InputNo","Added PSPs","Directory for Standard Provisions","DivisionPSPs","List of files for \"ProposalAssembly\" proposal subroutine","List of SP Numbers for Database",null,null,null,null,null,null,null,null,null,null,"0•162›"]
[1,null,null,null,"General Contract Information","CentralGeneral;CentralResurfacing;CentralStructures;CentralRail;DivGeneral;DivResurf;DivStructures;DivSBEGeneral;DivSBEResurf;Federal;State;Permits;NoPerm",null,null,null,null,null,null,null,null,{"$f":"IF(N12=\"\",\"\",IF(H12=\"\",\"\",IF(+B12=\"a\",CONCATENATE(+N12,+H12),\"\")))","v":""},null,null,null,null,null,null,null,null,null,null,null,null,"0•163›"]
[2,null,null,null,"Contract ID","CentralGeneral;CentralResurfacing;CentralStructures;CentralRail;DivGeneral;DivResurf;DivStructures;DivSBEGeneral;DivSBEResurf;Federal;State;Permits;NoPerm",null,null,null,null,null,null,null,null,"",null,null,null,null,null,null,null,null,null,null,null,null,"0•171›"]
[3,null,null,null,"TIP No.","CentralGeneral;CentralResurfacing;CentralStructures;CentralRail;DivGeneral;DivResurf;DivStructures;DivSBEGeneral;DivSBEResurf;Federal;State;Permits;NoPerm",null,null,null,null,null,null,null,null,"",null,null,null,null,null,null,null,null,null,null,null,null,"0•172›"]
[4,null,null,null,"County","CentralGeneral;CentralResurfacing;CentralStructures;CentralRail;DivGeneral;DivResurf;DivStructures;DivSBEGeneral;DivSBEResurf;Federal;State;Permits;NoPerm",null,null,null,null,null,null,{"$f":"IF(RIGHT(LEFT(E15,2),1)=\":\",E15,\"\")","v":""},null,"",null,null,null,null,null,null,null,null,null,null,null,null,"0•174›"]
["#",null,null,null,"Federal Aid No. (\"#\" - State Funded)","DivGeneral;DivResurf;DivStructures;Federal;Permits;NoPerm",null,null,null,null,null,null,"",null,"",null,null,null,null,null,null,null,null,null,null,null,null,"0•175›"]
["#",null,null,null,"Contract Officer","DivGeneral;DivResurf;DivStructures;Federal;State;Permits;NoPerm",null,null,null,null,null,null,"",null,"",null,null,null,null,null,null,null,null,null,null,null,null,"0•181›"]
["#",null,null,null,"Division Number","DivGeneral;DivResurf;DivStructures;Federal;State;Permits;NoPerm",null,null,15,null,null,null,"",null,"",null,null,null,null,null,null,null,null,null,null,null,null,"0•182›"]
["#",null,null,null,"Mailing Address Line 1","DivGeneral;DivResurf;DivStructures;Federal;State;Permits;NoPerm",null,null,null,null,null,null,"",null,"",null,null,null,null,null,null,null,null,null,null,null,null,"0•188›"]
["#",null,null,null,"Mailing Address Line 2","DivGeneral;DivResurf;DivStructures;Federal;State;Permits;NoPerm",null,null,null,null,null,null,"",null,"",null,null,null,null,null,null,null,null,null,null,null,null,"0•189›"]
["#",null,null,null,"Letting Location",null,null,null,null,null,null,null,"",null,"",null,null,null,null,null,null,null,null,null,null,null,null,"0•198›"]
["#",null,null,null,"Date of Bid Opening","DivGeneral;DivResurf;DivStructures;Federal;State;Permits;NoPerm",null,null,null,null,null,null,"",null,"",null,null,null,{"$f":"TEXT(ÇdtmDateBidOpening,\"dddd\")","v":"Saturday"},null,null,null,null,null,null,null,null,"0•199›"]
["#",null,null,null,"Time of Bid Opening","DivGeneral;DivResurf;DivStructures;Federal;State;Permits;NoPerm",null,null,null,null,null,null,"",null,"",null,null,null,null,null,null,null,null,null,null,null,null,"0•206›"]
["#",null,null,null,"WBS Element No.","DivGeneral;DivResurf;DivStructures;Federal;State;Permits;NoPerm",null,null,null,null,null,null,"",null,"",null,null,null,null,null,null,null,null,null,null,null,null,"0•207›"]
["#",null,null,null,"Miles","DivGeneral;DivResurf;DivStructures;Federal;State;Permits;NoPerm",null,null,null,null,null,null,"",null,"",null,null,null,null,null,null,null,null,null,null,null,null,"0•219›"]
["#",null,null,null,"Route No.","DivGeneral;DivResurf;DivStructures;Federal;State;Permits;NoPerm",null,null,null,null,null,null,"",null,"",null,null,null,null,null,null,null,null,null,null,null,null,"0•223›"]
["#",null,null,null,"Location","DivGeneral;DivResurf;DivStructures;Federal;State;Permits;NoPerm",null,null,null,null,null,null,"",null,"",null,null,null,null,null,null,null,null,null,null,null,null,"SP01 G043•264›"]
["#",null,null,null,"(GRADING, DRAINAGE, PAVING, STRUCTURE) Type of Work","DivGeneral;DivResurf;DivStructures;Federal;State;Permits;NoPerm",null,null,null,null,null,null,"",null,"",null,null,null,null,null,null,null,null,null,null,null,null,"SP01 G058•269›"]
["#",null,null,null,"(STRUCTURE, ROADWAY)  Type of Project","DivGeneral;DivResurf;DivStructures;Federal;State;Permits;NoPerm",null,null,null,null,null,null,{"$f":"IF(RIGHT(LEFT(E29,2),1)=\":\",E29,\"\")","v":""},null,{"$f":"IF(N29=\"\",\"\",IF(H29=\"\",\"\",IF(+B29=\"a\",CONCATENATE(+N29,+H29),\"\")))","v":""},null,null,null,null,null,null,null,null,null,null,null,null,"SP01 G061•276›"]
["#",null,null,null,"APLUS Output Path","DivGeneral;DivResurf;DivStructures;Federal;State;Permits;NoPerm",null,null,"S:\\Proposals\\Aplus Proposal Inbox\\",null,null,null,"",null,"",null,null,null,null,null,null,null,null,null,null,null,null,"SP01 G085•315›"]
[1,null,"A 01A","A","Cover for Central Let",null,"2012-02","A_01A.docx","All projects.",null,null,0,"",{"$f":"+$P$6","v":"//dot/dfsroot01/cccommon/provisions/01a  Automated Proposal Line Up Sheet/2012 Standard Provisions/"},"",{"$f":"CONCATENATE(M31,O31)","v":""},{"$f":"IF(B31=\"a\",+C31,+M31)","v":""},null,null,null,null,null,null,null,null,null,null,"SP01 G100•319›"]
[2,null,"A 01B","A","Cover for Division Let (With Bid Bonds, no SBE)",null,"2012-03","D 01 A  Proposal Cover.docx","All projects.",null,null,0,"",{"$f":"+$P$8","v":"//dot/dfsroot01/cccommon/provisions/01a  Automated Proposal Line Up Sheet/2012 Standard Provisions/"},"","",{"$f":"IF(B32=\"a\",+C32,+M32)","v":""},null,null,null,null,null,null,null,null,null,null,"SP01 G115•331›"]
[3,null,"A 01C","A","Cover for Division Let (no SBE)","DivGeneral;DivResurf;DivStructures;Federal;State;Permits;NoPerm",null,"D 01 A  Proposal Cover.docx","All projects.",null,null,0,"",{"$f":"+$P$8","v":"//dot/dfsroot01/cccommon/provisions/01a  Automated Proposal Line Up Sheet/2012 Standard Provisions/"},"","","",null,null,null,null,null,null,null,null,null,null,"SP01 G118•333›"]
[4,null,"A 01D","A","Cover for Division Let (SBE)","DivSBEGeneral;DivSBEResurf;Federal;State;Permits;NoPerm",null,"D 01 B  Proposal Cover SBE.docx","All projects.",null,null,0,"",{"$f":"+$P$8","v":"//dot/dfsroot01/cccommon/provisions/01a  Automated Proposal Line Up Sheet/2012 Standard Provisions/"},"","","",null,null,null,null,null,null,null,null,null,null,"SP01 G120•335›"]
["PSP",null,null,null,"Click Here to Add Additional Project Specific Provisions","DivGeneral;DivResurf;DivStructures;Federal;State;Permits;NoPerm",null,null,null,null,null,null,"",{"$f":"+$P$8","v":"//dot/dfsroot01/cccommon/provisions/01a  Automated Proposal Line Up Sheet/2012 Standard Provisions/"},"","","",null,null,null,null,null,null,null,null,null,null,"SP01 G152•353›"]
[5,null,"B 01A","B","First Page of Proposal for Central Let","CentralGeneral;CentralResurfacing;CentralStructures;CentralRail;Federal;State;Permits;NoPerm",null,"C_01__Proposal_Sheets.docx","All projects.",null,null,0,"",{"$f":"+$P$6","v":"//dot/dfsroot01/cccommon/provisions/01a  Automated Proposal Line Up Sheet/2012 Standard Provisions/"},"","","",null,null,null,null,null,null,null,null,null,null,"SP01 G160•355›"]
[6,null,"B 01B","B","First Page of Proposal for Division Let (With Bid Bonds, no SBE)",null,null,null,"All projects.",null,null,0,"",{"$f":"+$P$8","v":"//dot/dfsroot01/cccommon/provisions/01a  Automated Proposal Line Up Sheet/2012 Standard Provisions/"},"","","",null,null,null,null,null,null,null,null,null,null,"SP01 G184•365›"]
[7,null,"B 01C","B","First Page of Proposal for Division Let (no SBE)","DivGeneral;DivResurf;DivStructures;Federal;State;Permits;NoPerm",null,"D_01__Proposal_Sheets.docx","All projects.",null,null,0,"",{"$f":"+$P$8","v":"//dot/dfsroot01/cccommon/provisions/01a  Automated Proposal Line Up Sheet/2012 Standard Provisions/"},"","","",null,null,null,null,null,null,null,null,null,null,"SP01 G185•367›"]
[8,null,"B 01D","B","First Page of Proposal for Division Let (SBE)","DivSBEGeneral;DivSBEResurf;Federal;State;Permits;NoPerm",null,"D_01__Proposal_Sheets.docx","All projects.",null,null,0,{"$f":"IF(RIGHT(LEFT(E39,2),1)=\":\",E39,\"\")","v":""},{"$f":"+$P$8","v":"//dot/dfsroot01/cccommon/provisions/01a  Automated Proposal Line Up Sheet/2012 Standard Provisions/"},"","","",null,null,null,null,null,null,null,null,null,null,"SP01 G186•369›"]
["PSP",null,null,null,"Click Here to Add Additional Project Specific Provisions","CentralGeneral;CentralResurfacing;CentralStructures;CentralRail;DivGeneral;DivResurf;DivStructures;DivSBEGeneral;DivSBEResurf;Federal;State;Permits;NoPerm",null,null,null,null,null,null,{"$f":"IF(RIGHT(LEFT(E40,2),1)=\":\",E40,\"\")","v":""},null,{"$f":"IF(N40=\"\",\"\",IF(H40=\"\",\"\",IF(+B40=\"a\",CONCATENATE(+N40,+H40),\"\")))","v":""},{"$f":"CONCATENATE(M40,O40)","v":""},{"$f":"IF(B40=\"a\",+C40,+M40)","v":""},null,null,null,null,null,null,null,null,null,null,"SP01 R001•373›"]
[8,null,"C 01A","C","Table of Content for Division Let","DivGeneral;DivResurf;DivStructures;DivSBEGeneral;DivSBEResurf;Federal;State;Permits;NoPerm",null,"Div_TOC.docx","All projects.",null,null,-1,{"$f":"IF(RIGHT(LEFT(E41,2),1)=\":\",E41,\"\")","v":""},{"$f":"+$P$6","v":"//dot/dfsroot01/cccommon/provisions/01a  Automated Proposal Line Up Sheet/2012 Standard Provisions/"},{"$f":"IF(N41=\"\",\"\",IF(H41=\"\",\"\",IF(+B41=\"a\",CONCATENATE(+N41,+H41),\"\")))","v":""},"","",null,null,null,null,null,null,null,null,null,null,"SP06 R001•461›"]
[9,null,"C 01B","C","Table of Content for Central Let","CentralGeneral;CentralStructures;CentralRail;Federal;State;Permits;NoPerm",null,"D_TOC.docx","All projects.",null,null,0,"",{"$f":"+$P$6","v":"//dot/dfsroot01/cccommon/provisions/01a  Automated Proposal Line Up Sheet/2012 Standard Provisions/"},"","","",null,null,null,null,null,null,null,null,null,null,"SP06 R025•473›"]
[10,null,"C 01C","C","Table of Content for Central Let Resurfacing","CentralResurfacing;Federal;State;Permits;NoPerm",null,"D_TOC2.docx","All projects.",null,null,1,{"$f":"IF(RIGHT(LEFT(E43,2),1)=\":\",E43,\"\")","v":""},{"$f":"+$P$6","v":"//dot/dfsroot01/cccommon/provisions/01a  Automated Proposal Line Up Sheet/2012 Standard Provisions/"},{"$f":"IF(N43=\"\",\"\",IF(H43=\"\",\"\",IF(+B43=\"a\",CONCATENATE(+N43,+H43),\"\")))","v":""},{"$f":"CONCATENATE(M43,O43)","v":""},{"$f":"IF(B43=\"a\",+C43,+M43)","v":""},null,null,null,null,null,null,null,null,null,null,"SP10 R001•558›"]
["PSP",null,null,null,"Click Here to Add Additional Project Specific Provisions","CentralGeneral;CentralResurfacing;CentralStructures;CentralRail;DivGeneral;DivResurf;DivStructures;DivSBEGeneral;DivSBEResurf;Federal;State;Permits;NoPerm",null,null,null,null,null,null,{"$f":"IF(RIGHT(LEFT(E44,2),1)=\":\",E44,\"\")","v":""},null,{"$f":"IF(N44=\"\",\"\",IF(H44=\"\",\"\",IF(+B44=\"a\",CONCATENATE(+N44,+H44),\"\")))","v":""},{"$f":"CONCATENATE(M44,O44)","v":""},{"$f":"IF(B44=\"a\",+C44,+M44)","v":""},null,null,null,null,null,null,null,null,null,null,"Z002•582›"]
[10,null,"SPD 01-015A","D","Instructions to Bidder for Division Let with optional Electronic Bid Submission on CD","DivGeneral;DivResurf;DivStructures;DivSBEGeneral;DivSBEResurf;Federal;State;Permits;NoPerm",null,"SPD 01-015A Instructions to Bidders.docx","All projects choose A or B.",null,null,0,"",{"$f":"+$P$8","v":"//dot/dfsroot01/cccommon/provisions/01a  Automated Proposal Line Up Sheet/2012 Standard Provisions/"},"","","",null,null,null,null,null,null,null,null,null,null,"Z004•586›"]
["PSP",null,null,null,"Click Here to Add Additional Project Specific Provisions","DivGeneral;DivResurf;DivStructures;DivSBEGeneral;DivSBEResurf;Federal;State;Permits;NoPerm",null,null,null,null,null,null,"",null,"","","",null,null,null,null,null,null,null,null,null,null,"Z004A•588›"]
[10,null,"SPD 01-015B","D","Instructions to Bidder for Division Let with optional Electronic Bid Submission on CD                                           AND Email Confirmation","DivGeneral;DivResurf;DivStructures;DivSBEGeneral;DivSBEResurf;Federal;State;Permits;NoPerm",null,"SPD 01-015B Instructions to Bidders.docx","All projects choose A or B.",null,null,0,"",{"$f":"+$P$8","v":"//dot/dfsroot01/cccommon/provisions/01a  Automated Proposal Line Up Sheet/2012 Standard Provisions/"},"","","",null,null,null,null,null,null,null,null,null,null,"Z006•592›"]
["PSP",null,null,null,"Click Here to Add Additional Project Specific Provisions","DivGeneral;DivResurf;DivStructures;DivSBEGeneral;DivSBEResurf;Federal;State;Permits;NoPerm",null,null,null,null,null,null,"",null,"","","",null,null,null,null,null,null,null,null,null,null,"Z007•594›"]
[13,null,"SP01 G001","SP01G","PROJECT SPECIAL PROVISIONS - General","CentralGeneral;CentralResurfacing;CentralStructures;CentralRail;DivGeneral;DivResurf;DivStructures;DivSBEGeneral;DivSBEResurf;Federal;State;Permits;NoPerm","1995-07","SP01_G001__Project_Special_Provisions_General.docx","All projects.  Use this as starter for \"General Section\".",null,null,0,"",{"$f":"+$P$6","v":"//dot/dfsroot01/cccommon/provisions/01a  Automated Proposal Line Up Sheet/2012 Standard Provisions/"},"","","",null,null,null,null,null,null,null,null,null,null,"Z008•596›"]
["PSP",null,null,null,"Click Here to Add Additional Project Specific Provisions","CentralGeneral;CentralResurfacing;CentralStructures;CentralRail;DivGeneral;DivResurf;DivStructures;DivSBEGeneral;DivSBEResurf;Federal;State;Permits;NoPerm",null,null,null,null,null,null,{"$f":"IF(RIGHT(LEFT(E50,2),1)=\":\",E50,\"\")","v":""},null,{"$f":"IF(N50=\"\",\"\",IF(H50=\"\",\"\",IF(+B50=\"a\",CONCATENATE(+N50,+H50),\"\")))","v":""},"","",null,null,null,null,null,null,null,null,null,null,"Z010•600›"]
[15,null,"SPD 01-050A","SP01G","COMPUTER BID PREPARATION (optional)","DivGeneral;DivResurf;DivStructures;DivSBEGeneral;DivSBEResurf;Federal;State;Permits;NoPerm",null,"SPD 01-050A Computer Bid Prep for Divisions Optional.docx","Use if EBS files are provided and Electronic Bid on CD is allowed.",null,null,0,"",{"$f":"+$P$8","v":"//dot/dfsroot01/cccommon/provisions/01a  Automated Proposal Line Up Sheet/2012 Standard Provisions/"},"","","",null,null,null,null,null,null,null,null,null,null,"NC101•606›"]
["PSP",null,null,null,"Click Here to Add Additional Project Specific Provisions","DivGeneral;DivResurf;DivStructures;DivSBEGeneral;DivSBEResurf;Federal;State;Permits;NoPerm",null,null,null,null,null,null,{"$f":"IF(RIGHT(LEFT(E52,2),1)=\":\",E52,\"\")","v":""},null,{"$f":"IF(N52=\"\",\"\",IF(H52=\"\",\"\",IF(+B52=\"a\",CONCATENATE(+N52,+H52),\"\")))","v":""},{"$f":"CONCATENATE(M52,O52)","v":""},{"$f":"IF(B52=\"a\",+C52,+M52)","v":""},null,null,null,null,null,null,null,null,null,null,"NC102•608›"]
[14,null,"SPD 01-050B","SP01G","COMPUTER BID PREPARATION (With Email Confirmation)","DivGeneral;DivResurf;DivStructures;DivSBEGeneral;DivSBEResurf;Federal;State;Permits;NoPerm",null,"SPD 01-050B Computer Bid Prep for Divisions Email Confirmation.docx","Use if EBS files are provided and Electronic Bid on CD is allowed.  Use if Email Confirmation is required.",null,null,0,{"$f":"IF(RIGHT(LEFT(E53,2),1)=\":\",E53,\"\")","v":""},{"$f":"+$P$8","v":"//dot/dfsroot01/cccommon/provisions/01a  Automated Proposal Line Up Sheet/2012 Standard Provisions/"},{"$f":"IF(N53=\"\",\"\",IF(H53=\"\",\"\",IF(+B53=\"a\",CONCATENATE(+N53,+H53),\"\")))","v":""},{"$f":"CONCATENATE(M53,O53)","v":""},{"$f":"IF(B53=\"a\",+C53,+M53)","v":""},null,null,null,null,null,null,null,null,null,null,"š"]
["PSP",null,null,null,"Click Here to Add Additional Project Specific Provisions","DivGeneral;DivResurf;DivStructures;DivSBEGeneral;DivSBEResurf;Federal;State;Permits;NoPerm",null,null,null,null,null,null,"",null,"","","",null,null,null,null,null,null,null,null,null,null,"ÇcurSP01G043FuelPricež1.791•265›"]
[16,null,"SP01 G003A","SP01G","NOTICE TO BIDDERS (2 Cluster Projects)","CentralGeneral;CentralResurfacing;CentralStructures;CentralRail;DivGeneral;DivResurf;DivStructures;DivSBEGeneral;DivSBEResurf;Federal;State;Permits;NoPerm","2013-12","SP01_G003_A__Notice_Bidders_Cluster_Project.docx","Use for Cluster projects with 2 projects ONLY.  Fill in the Blanks for each project, including Cluster Project. The same provision goes in EACH project.  Use TIP numbers or WBS numbers ONLY.  NO Contract numbers.",null,null,7,"",{"$f":"+$P$6","v":"//dot/dfsroot01/cccommon/provisions/01a  Automated Proposal Line Up Sheet/2012 Standard Provisions/"},"","","",null,null,null,null,null,null,null,null,null,null,"ÇcurSP06R025Asphaltž557.69•474›"]
["i",null,null,null,"TIP No. Proposal 1",null,null,null,null,null,null,0,"","//dot/dfsroot01/cccommon/provisions/01a  Automated Proposal Line Up Sheet/2012 Standard Provisions/","","","",null,null,null,null,null,null,null,null,null,null,"ÇdtmSP06R025Datež2/1/2015•475›"]
["i",null,null,null,"County Proposal 1",null,null,null,null,null,null,0,"","//dot/dfsroot01/cccommon/provisions/01a  Automated Proposal Line Up Sheet/2012 Standard Provisions/","","","",null,null,null,null,null,null,null,null,null,null,"ÇintDivisionž15•18›"]
["i",null,null,null,"Description Proposal 1",null,null,null,null,null,null,0,"","//dot/dfsroot01/cccommon/provisions/01a  Automated Proposal Line Up Sheet/2012 Standard Provisions/","","","",null,null,null,null,null,null,null,null,null,null,"ÇstrContractIDžtest•13›"]
["i",null,null,null,"TIP No. Proposal 2",null,null,null,null,null,null,0,"","//dot/dfsroot01/cccommon/provisions/01a  Automated Proposal Line Up Sheet/2012 Standard Provisions/","","","",null,null,null,null,null,null,null,null,null,null,"ÇstrContractOfficeržR. D. Chandler, PE•17›"]
["i",null,null,null,"County Proposal 2",null,null,null,null,null,null,0,"","//dot/dfsroot01/cccommon/provisions/01a  Automated Proposal Line Up Sheet/2012 Standard Provisions/","","","",null,null,null,null,null,null,null,null,null,null,"ÇstrCountyžOrange County•15›"]
["i",null,null,null,"Description Proposal 2",null,null,null,null,null,null,0,"","//dot/dfsroot01/cccommon/provisions/01a  Automated Proposal Line Up Sheet/2012 Standard Provisions/","","","",null,null,null,null,null,null,null,null,null,null,"ÇstrMailingAddress1žP. O. Box 47•19›"]
["i",null,null,null,"Combined Proposal TIP No.",null,null,null,null,null,null,0,"","//dot/dfsroot01/cccommon/provisions/01a  Automated Proposal Line Up Sheet/2012 Standard Provisions/","","","",null,null,null,null,null,null,null,null,null,null,"ÇstrMailingAddress2žShelby, NC  28151-0047•20›"]
["PSP",null,null,null,"Click Here to Add Additional Project Specific Provisions","CentralGeneral;CentralResurfacing;CentralStructures;CentralRail;DivGeneral;DivResurf;DivStructures;DivSBEGeneral;DivSBEResurf;Federal;State;Permits;NoPerm",null,null,null,null,null,null,"","//dot/dfsroot01/cccommon/provisions/01a  Automated Proposal Line Up Sheet/2012 Standard Provisions/","","","",null,null,null,null,null,null,null,null,null,null,"ÇstrTIPžtest•14›"]
[17,null,"SP01 G003B","SP01G","NOTICE TO BIDDERS (3 Cluster Projects)","CentralGeneral;CentralResurfacing;CentralStructures;CentralRail;Federal;State;Permits;NoPerm","2013-12","SP01_G003_B__Notice_Bidders_3_Cluster_Project.docx","Use for Cluster projects with 3 projects ONLY.  Fill in the Blanks for each project, including Cluster Project. The same provision goes in EACH project.  Use TIP numbers or WBS numbers ONLY.  NO Contract numbers.",null,null,10,"","//dot/dfsroot01/cccommon/provisions/01a  Automated Proposal Line Up Sheet/2012 Standard Provisions/","","","",null,null,null,null,null,null,null,null,null,null,"strStateorFederalžFederal•7›"]
["i",null,null,null,"TIP No. Proposal 1",null,null,null,null,null,null,0,{"$f":"IF(RIGHT(LEFT(E65,2),1)=\":\",E65,\"\")","v":""},"//dot/dfsroot01/cccommon/provisions/01a  Automated Proposal Line Up Sheet/2012 Standard Provisions/",{"$f":"IF(N65=\"\",\"\",IF(H65=\"\",\"\",IF(+B65=\"a\",CONCATENATE(+N65,+H65),\"\")))","v":""},"","",null,null,null,null,null,null,null,null,null,null,"Ä"]
["i",null,null,null,"County Proposal 1",null,null,null,null,null,null,0,"","//dot/dfsroot01/cccommon/provisions/01a  Automated Proposal Line Up Sheet/2012 Standard Provisions/","","","",null,null,null,null,null,null,null,null,null,null,"œ"]
["i",null,null,null,"Description Proposal 1",null,null,null,null,null,null,0,"","//dot/dfsroot01/cccommon/provisions/01a  Automated Proposal Line Up Sheet/2012 Standard Provisions/","","","",null,null,null,null,null,null,null,null,null,null,"nroskam•2/25/2015 1:10:32 PM"]
["i",null,null,null,"TIP No. Proposal 2",null,null,null,null,null,null,0,"","//dot/dfsroot01/cccommon/provisions/01a  Automated Proposal Line Up Sheet/2012 Standard Provisions/","","","",null,null,null,null,null,null,null,null,null,null,"Ÿ"]
["i",null,null,null,"County Proposal 2",null,null,null,null,null,null,0,"","//dot/dfsroot01/cccommon/provisions/01a  Automated Proposal Line Up Sheet/2012 Standard Provisions/","","",""]
["i",null,null,null,"Description Proposal 2",null,null,null,null,null,null,0,"","//dot/dfsroot01/cccommon/provisions/01a  Automated Proposal Line Up Sheet/2012 Standard Provisions/","","",""]
["i",null,null,null,"TIP No. Proposal 3",null,null,null,null,null,null,0,"","//dot/dfsroot01/cccommon/provisions/01a  Automated Proposal Line Up Sheet/2012 Standard Provisions/","","",""]
["i",null,null,null,"County Proposal 3",null,null,null,null,null,null,0,"","//dot/dfsroot01/cccommon/provisions/01a  Automated Proposal Line Up Sheet/2012 Standard Provisions/","","",""]
["i",null,null,null,"Description Proposal 3",null,null,null,null,null,null,0,"","//dot/dfsroot01/cccommon/provisions/01a  Automated Proposal Line Up Sheet/2012 Standard Provisions/","","",""]
["i",null,null,null,"Combined Proposal TIP No.",null,null,null,null,null,null,0,"","//dot/dfsroot01/cccommon/provisions/01a  Automated Proposal Line Up Sheet/2012 Standard Provisions/","","",""]
["PSP",null,null,null,"Click Here to Add Additional Project Specific Provisions","CentralGeneral;CentralResurfacing;CentralStructures;CentralRail;Federal;State;Permits;NoPerm",null,null,null,null,null,null,{"$f":"IF(RIGHT(LEFT(E75,2),1)=\":\",E75,\"\")","v":""},"//dot/dfsroot01/cccommon/provisions/01a  Automated Proposal Line Up Sheet/2012 Standard Provisions/",{"$f":"IF(N75=\"\",\"\",IF(H75=\"\",\"\",IF(+B75=\"a\",CONCATENATE(+N75,+H75),\"\")))","v":""},"",{"$f":"IF(B75=\"a\",+C75,+M75)","v":""}]
[18,null,"SP01 G004","SP01G","CONTRACT TIME AND LIQUIDATED DAMAGES (With Permits)","CentralGeneral;CentralResurfacing;CentralStructures;CentralRail;;DivGeneral;DivResurf;DivStructures;DivSBEGeneral;DivSBEResurf;Federal;State;Permits","2007-12","SP01_G004__Contract_Time_LDs_with_Permits.docx","Projects with Any Type of Permit.  Liquidated Damages Determined from Guidelines based on Project Cost Estimate.",null,null,3,"","//dot/dfsroot01/cccommon/provisions/01a  Automated Proposal Line Up Sheet/2012 Standard Provisions/","","",""]
["i",null,null,null,"Date of Availability","CentralGeneral;CentralResurfacing;CentralStructures;CentralRail;;DivGeneral;DivResurf;DivStructures;DivSBEGeneral;DivSBEResurf;Federal;State;Permits",null,null,null,null,null,null,"","//dot/dfsroot01/cccommon/provisions/01a  Automated Proposal Line Up Sheet/2012 Standard Provisions/","","",""]
["i",null,null,null,"Completion Date","CentralGeneral;CentralResurfacing;CentralStructures;CentralRail;;DivGeneral;DivResurf;DivStructures;DivSBEGeneral;DivSBEResurf;Federal;State;Permits",null,null,null,null,null,null,"","//dot/dfsroot01/cccommon/provisions/01a  Automated Proposal Line Up Sheet/2012 Standard Provisions/","","",""]
["i",null,null,null,"LDs $ - Number","CentralGeneral;CentralResurfacing;CentralStructures;CentralRail;;DivGeneral;DivResurf;DivStructures;DivSBEGeneral;DivSBEResurf;Federal;State;Permits",null,null,null,null,null,null,"","//dot/dfsroot01/cccommon/provisions/01a  Automated Proposal Line Up Sheet/2012 Standard Provisions/","","","",null,{"$f":"IF(I79,SpellNumber(I79),\"\")","v":""}]
["PSP",null,null,null,"Click Here to Add Additional Project Specific Provisions","CentralGeneral;CentralResurfacing;CentralStructures;CentralRail;;DivGeneral;DivResurf;DivStructures;DivSBEGeneral;DivSBEResurf;Federal;State;Permits",null,null,null,null,null,null,{"$f":"IF(RIGHT(LEFT(E80,2),1)=\":\",E80,\"\")","v":""},"//dot/dfsroot01/cccommon/provisions/01a  Automated Proposal Line Up Sheet/2012 Standard Provisions/",{"$f":"IF(N80=\"\",\"\",IF(H80=\"\",\"\",IF(+B80=\"a\",CONCATENATE(+N80,+H80),\"\")))","v":""},"",{"$f":"IF(B80=\"a\",+C80,+M80)","v":""}]
[19,null,"SP01 G005A","SP01G","CONTRACT TIME AND LIQUIDATED DAMAGES (Float, With Permits)","CentralGeneral;CentralResurfacing;CentralStructures;CentralRail;;DivGeneral;DivResurf;DivStructures;DivSBEGeneral;DivSBEResurf;Federal;State;Permits","2007-12","SP01_G005_A__CTime_LDs_Float_with_Permits.docx","Projects with Floating Dates of Availability and Permits.   Liquidated Damages Determined from Guidelines based on Project Cost Estimate.",null,null,4,"","//dot/dfsroot01/cccommon/provisions/01a  Automated Proposal Line Up Sheet/2012 Standard Provisions/","","",""]
["i",null,null,null,"Floating Date of Availability not Before","CentralGeneral;CentralResurfacing;CentralStructures;CentralRail;;DivGeneral;DivResurf;DivStructures;DivSBEGeneral;DivSBEResurf;Federal;State;Permits",null,null,null,null,null,0,"","//dot/dfsroot01/cccommon/provisions/01a  Automated Proposal Line Up Sheet/2012 Standard Provisions/","","",""]
["i",null,null,null,"Floating Date of Availability not Later Than","CentralGeneral;CentralResurfacing;CentralStructures;CentralRail;;DivGeneral;DivResurf;DivStructures;DivSBEGeneral;DivSBEResurf;Federal;State;Permits",null,null,null,null,null,0,{"$f":"IF(RIGHT(LEFT(E83,2),1)=\":\",E83,\"\")","v":""},"//dot/dfsroot01/cccommon/provisions/01a  Automated Proposal Line Up Sheet/2012 Standard Provisions/",{"$f":"IF(N83=\"\",\"\",IF(H83=\"\",\"\",IF(+B83=\"a\",CONCATENATE(+N83,+H83),\"\")))","v":""},"",""]
["i",null,null,null,"Completion by Consecutive Days - Number","CentralGeneral;CentralResurfacing;CentralStructures;CentralRail;;DivGeneral;DivResurf;DivStructures;DivSBEGeneral;DivSBEResurf;Federal;State;Permits",null,null,null,null,null,0,"","//dot/dfsroot01/cccommon/provisions/01a  Automated Proposal Line Up Sheet/2012 Standard Provisions/","","","",null,{"$f":"IF(I84,SpellNumberDays(I84),\"\")","v":""}]
["i",null,null,null,"LDs $ - Number","CentralGeneral;CentralResurfacing;CentralStructures;CentralRail;;DivGeneral;DivResurf;DivStructures;DivSBEGeneral;DivSBEResurf;Federal;State;Permits",null,null,null,null,null,0,"","//dot/dfsroot01/cccommon/provisions/01a  Automated Proposal Line Up Sheet/2012 Standard Provisions/","","","",null,{"$f":"IF(I85,SpellNumber(I85),\"\")","v":""}]
["PSP",null,null,null,"Click Here to Add Additional Project Specific Provisions","CentralGeneral;CentralResurfacing;CentralStructures;CentralRail;;DivGeneral;DivResurf;DivStructures;DivSBEGeneral;DivSBEResurf;Federal;State;Permits",null,null,null,null,null,null,{"$f":"IF(RIGHT(LEFT(E86,2),1)=\":\",E86,\"\")","v":""},"//dot/dfsroot01/cccommon/provisions/01a  Automated Proposal Line Up Sheet/2012 Standard Provisions/","","",""]
[20,null,"SP01 G005B","SP01G","CONTRACT TIME AND LIQUIDATED DAMAGES (Float, No Permits)","CentralGeneral;CentralResurfacing;CentralStructures;CentralRail;DivGeneral;DivResurf;DivStructures;DivSBEGeneral;DivSBEResurf;Federal;State;NoPerm","2007-12","SP01_G005_B__CTime_LDs_Float_no_Permits.docx","Projects with Floating Dates of Availability and NO Permits.   Liquidated Damages Determined from Guidelines based on Project Cost Estimate.",null,null,4,"","//dot/dfsroot01/cccommon/provisions/01a  Automated Proposal Line Up Sheet/2012 Standard Provisions/","","",""]
["i",null,null,null,"Floating Date of Availability not Before",null,null,null,null,null,null,0,"","//dot/dfsroot01/cccommon/provisions/01a  Automated Proposal Line Up Sheet/2012 Standard Provisions/","","",""]
["i",null,null,null,"Floating Date of Availability not After",null,null,null,null,null,null,0,{"$f":"IF(RIGHT(LEFT(E89,2),1)=\":\",E89,\"\")","v":""},"//dot/dfsroot01/cccommon/provisions/01a  Automated Proposal Line Up Sheet/2012 Standard Provisions/",{"$f":"IF(N89=\"\",\"\",IF(H89=\"\",\"\",IF(+B89=\"a\",CONCATENATE(+N89,+H89),\"\")))","v":""},"",""]
["i",null,null,null,"Completion by Consecutive Days - Number",null,null,null,null,null,null,0,"","//dot/dfsroot01/cccommon/provisions/01a  Automated Proposal Line Up Sheet/2012 Standard Provisions/","","","",null,{"$f":"IF(I90,SpellNumberDays(I90),\"\")","v":""}]
["i",null,null,null,"LDs $ - Number",null,null,null,null,null,null,0,"","//dot/dfsroot01/cccommon/provisions/01a  Automated Proposal Line Up Sheet/2012 Standard Provisions/","","","",null,""]
["PSP",null,null,null,"Click Here to Add Additional Project Specific Provisions","CentralGeneral;CentralResurfacing;CentralStructures;CentralRail;DivGeneral;DivResurf;DivStructures;DivSBEGeneral;DivSBEResurf;Federal;State;NoPerm",null,null,null,null,null,null,{"$f":"IF(RIGHT(LEFT(E92,2),1)=\":\",E92,\"\")","v":""},"//dot/dfsroot01/cccommon/provisions/01a  Automated Proposal Line Up Sheet/2012 Standard Provisions/",{"$f":"IF(N92=\"\",\"\",IF(H92=\"\",\"\",IF(+B92=\"a\",CONCATENATE(+N92,+H92),\"\")))","v":""},"",""]
[21,null,"SP01 G007A","SP01G","CONTRACT TIME AND LIQUIDATED DAMAGES (Reforestation, With Permits)","CentralGeneral;CentralStructures;CentralRail;DivGeneral;DivStructures;DivSBEGeneral;Federal;State;Permits","2007-12","SP01_G007_A__CTime_LDs_Reforest.docx","Projects with Permanent Vegetation or Reforestation, and Permits.",null,null,2,"","//dot/dfsroot01/cccommon/provisions/01a  Automated Proposal Line Up Sheet/2012 Standard Provisions/","","",""]
["i",null,null,null,"Date of Availability",null,null,null,null,null,null,0,"","//dot/dfsroot01/cccommon/provisions/01a  Automated Proposal Line Up Sheet/2012 Standard Provisions/","","",""]
["i",null,null,null,"Completion Date",null,null,null,null,null,null,0,"","//dot/dfsroot01/cccommon/provisions/01a  Automated Proposal Line Up Sheet/2012 Standard Provisions/","","",""]
["PSP",null,null,null,"Click Here to Add Additional Project Specific Provisions","CentralGeneral;CentralStructures;CentralRail;DivGeneral;DivStructures;DivSBEGeneral;Federal;State;Permits",null,null,null,null,null,null,"","//dot/dfsroot01/cccommon/provisions/01a  Automated Proposal Line Up Sheet/2012 Standard Provisions/","","",""]
[22,null,"SP01 G007B","SP01G","CONTRACT TIME AND LIQUIDATED DAMAGES (Float, Reforestation, With Permits)","CentralGeneral;CentralStructures;CentralRail;DivGeneral;DivStructures;DivSBEGeneral;Federal;State;Permits","2007-12","SP01_G007_B__CTime_LDs_Float_and_Reforest.docx","Projects with Floating Dates of Availability, Permanent Vegetation or Reforestation, and Permits.",null,null,3,"","//dot/dfsroot01/cccommon/provisions/01a  Automated Proposal Line Up Sheet/2012 Standard Provisions/","","",{"$f":"IF(B97=\"a\",+C97,+M97)","v":""}]
["i",null,null,null,"Floating Date of Availability not Before",null,null,null,null,null,null,0,"","//dot/dfsroot01/cccommon/provisions/01a  Automated Proposal Line Up Sheet/2012 Standard Provisions/","","",""]
["i",null,null,null,"Floating Date of Availability not After",null,null,null,null,null,null,0,"","//dot/dfsroot01/cccommon/provisions/01a  Automated Proposal Line Up Sheet/2012 Standard Provisions/",{"$f":"IF(N99=\"\",\"\",IF(H99=\"\",\"\",IF(+B99=\"a\",CONCATENATE(+N99,+H99),\"\")))","v":""},"",""]
["i",null,null,null,"Completion Date",null,null,null,null,null,null,0,"","//dot/dfsroot01/cccommon/provisions/01a  Automated Proposal Line Up Sheet/2012 Standard Provisions/","","",""]
["PSP",null,null,null,"Click Here to Add Additional Project Specific Provisions","CentralGeneral;CentralStructures;CentralRail;DivGeneral;DivStructures;DivSBEGeneral;Federal;State;Permits",null,null,null,null,null,null,{"$f":"IF(RIGHT(LEFT(E101,2),1)=\":\",E101,\"\")","v":""},"//dot/dfsroot01/cccommon/provisions/01a  Automated Proposal Line Up Sheet/2012 Standard Provisions/",{"$f":"IF(N101=\"\",\"\",IF(H101=\"\",\"\",IF(+B101=\"a\",CONCATENATE(+N101,+H101),\"\")))","v":""},"",""]
[23,null,"SP01 G007C","SP01G","CONTRACT TIME AND LIQUIDATED DAMAGES (Reforestation, No Permits)","CentralGeneral;CentralStructures;CentralRail;DivGeneral;DivStructures;DivSBEGeneral;Federal;State;NoPerm","2012-04","SP01_G007_C__CT_LDs_Reforest_No_Permit.docx","Projects with Permanent Vegetation or Reforestation, and NO Permits.",null,null,2,"","//dot/dfsroot01/cccommon/provisions/01a  Automated Proposal Line Up Sheet/2012 Standard Provisions/","","",""]
["i",null,null,null,"Date of Availability",null,null,null,null,null,null,0,"","//dot/dfsroot01/cccommon/provisions/01a  Automated Proposal Line Up Sheet/2012 Standard Provisions/","","",""]
["i",null,null,null,"Completion Date",null,null,null,null,null,null,0,"","//dot/dfsroot01/cccommon/provisions/01a  Automated Proposal Line Up Sheet/2012 Standard Provisions/","","",""]
["PSP",null,null,null,"Click Here to Add Additional Project Specific Provisions","CentralGeneral;CentralStructures;CentralRail;DivGeneral;DivStructures;DivSBEGeneral;Federal;State;NoPerm",null,null,null,null,null,null,"","//dot/dfsroot01/cccommon/provisions/01a  Automated Proposal Line Up Sheet/2012 Standard Provisions/","","",""]
[24,null,"SP01 G007D","SP01G","CONTRACT TIME AND LIQUIDATED DAMAGES (Float, Reforestation, No Permit)","CentralGeneral;CentralStructures;CentralRail;DivGeneral;DivStructures;DivSBEGeneral;Federal;State;NoPerm","2012-04","SP01_G007_D__CT_LDs_Float_Reforest_No_Permit.docx","Projects with Floating Dates of Availability, Permanent Vegetation or Reforestation, and NO Permits.",null,null,3,"","//dot/dfsroot01/cccommon/provisions/01a  Automated Proposal Line Up Sheet/2012 Standard Provisions/","","",""]
["i",null,null,null,"Floating Date of Availability not Before",null,null,null,null,null,null,0,"","//dot/dfsroot01/cccommon/provisions/01a  Automated Proposal Line Up Sheet/2012 Standard Provisions/","","",""]
["i",null,null,null,"Floating Date of Availability not After",null,null,null,null,null,null,0,"","//dot/dfsroot01/cccommon/provisions/01a  Automated Proposal Line Up Sheet/2012 Standard Provisions/","","",""]
["i",null,null,null,"Completion Date",null,null,null,null,null,null,0,"","//dot/dfsroot01/cccommon/provisions/01a  Automated Proposal Line Up Sheet/2012 Standard Provisions/","","",""]
["PSP",null,null,null,"Click Here to Add Additional Project Specific Provisions","CentralGeneral;CentralStructures;CentralRail;DivGeneral;DivStructures;DivSBEGeneral;Federal;State;NoPerm",null,null,null,null,null,null,{"$f":"IF(RIGHT(LEFT(E110,2),1)=\":\",E110,\"\")","v":""},"//dot/dfsroot01/cccommon/provisions/01a  Automated Proposal Line Up Sheet/2012 Standard Provisions/",{"$f":"IF(N110=\"\",\"\",IF(H110=\"\",\"\",IF(+B110=\"a\",CONCATENATE(+N110,+H110),\"\")))","v":""},{"$f":"CONCATENATE(M110,O110)","v":""},{"$f":"IF(B110=\"a\",+C110,+M110)","v":""}]
[25,null,"SP01 G010A","SP01G","CONTRACT TIME AND LIQUIDATED DAMAGES (No Permits)","CentralGeneral;CentralResurfacing;CentralStructures;CentralRail;DivGeneral;DivResurf;DivStructures;DivSBEGeneral;DivSBEResurf;Federal;State;NoPerm","2007-12","SP01_G010_A__CTime_LDs_no_Permits.docx","Projects with NO Permits.  Exception for observation periods.  Liquidated Damages Determined from Guidelines based on Project Cost Estimate.",null,null,3,"","//dot/dfsroot01/cccommon/provisions/01a  Automated Proposal Line Up Sheet/2012 Standard Provisions/","","",""]
["i",null,null,null,"Date of Availability",null,null,null,null,null,null,0,"","//dot/dfsroot01/cccommon/provisions/01a  Automated Proposal Line Up Sheet/2012 Standard Provisions/","","",""]
["i",null,null,null,"Completion Date",null,null,null,null,null,null,0,"","//dot/dfsroot01/cccommon/provisions/01a  Automated Proposal Line Up Sheet/2012 Standard Provisions/","","",""]
["i",null,null,null,"LDs $ - Number",null,null,null,null,null,null,0,"","//dot/dfsroot01/cccommon/provisions/01a  Automated Proposal Line Up Sheet/2012 Standard Provisions/","","","",null,""]
["PSP",null,null,null,"Click Here to Add Additional Project Specific Provisions","CentralGeneral;CentralResurfacing;CentralStructures;CentralRail;DivGeneral;DivResurf;DivStructures;DivSBEGeneral;DivSBEResurf;Federal;State;NoPerm",null,null,null,null,null,null,"","//dot/dfsroot01/cccommon/provisions/01a  Automated Proposal Line Up Sheet/2012 Standard Provisions/","",{"$f":"CONCATENATE(M115,O115)","v":""},""]
[26,null,"SP01 G010B","SP01G","CONTRACT TIME AND LIQUIDATED DAMAGES (Signals, No Permits)","CentralGeneral;DivGeneral;DivSBEGeneral;Federal;State;NoPerm","2007-12","SP01_G010_B__CTime_LDs_Signals_no_permits.docx","Projects with NO Permits considered \"Signals Only\" projects.  Liquidated Damages Determined from Guidelines based on Project Cost Estimate.",null,null,3,"","//dot/dfsroot01/cccommon/provisions/01a  Automated Proposal Line Up Sheet/2012 Standard Provisions/","","",""]
["i",null,null,null,"Date of Availability",null,null,null,null,null,null,0,"","//dot/dfsroot01/cccommon/provisions/01a  Automated Proposal Line Up Sheet/2012 Standard Provisions/","","",""]
["i",null,null,null,"Completion Date",null,null,null,null,null,null,0,"","//dot/dfsroot01/cccommon/provisions/01a  Automated Proposal Line Up Sheet/2012 Standard Provisions/","","",""]
["i",null,null,null,"LDs $ - Number",null,null,null,null,null,null,0,"","//dot/dfsroot01/cccommon/provisions/01a  Automated Proposal Line Up Sheet/2012 Standard Provisions/","","","",null,""]
["PSP",null,null,null,"Click Here to Add Additional Project Specific Provisions","CentralGeneral;DivGeneral;DivSBEGeneral;Federal;State;NoPerm",null,null,null,null,null,null,"","//dot/dfsroot01/cccommon/provisions/01a  Automated Proposal Line Up Sheet/2012 Standard Provisions/","","",""]
[27,null,"SP01 G013A","SP01G","INTERMEDIATE CONTRACT TIME # 1 AND LIQ. DAMAGES (Reforestation)","CentralGeneral;CentralStructures;CentralRail;DivGeneral;DivStructures;DivSBEGeneral;Federal;State;Permits;NoPerm","2012-02","SP01_G013_A__ICT_1_and_LDs_Reforest.docx","Use with SP01 G07A, SP01 G07B, and SP01 G07C or SP01 G07D.  Liquidated Damages Determined from Guidelines based on Project Cost Estimate.",null,null,3,"","//dot/dfsroot01/cccommon/provisions/01a  Automated Proposal Line Up Sheet/2012 Standard Provisions/","","",""]
["i",null,null,null,"Date of Availability",null,null,null,null,null,null,0,{"$f":"IF(RIGHT(LEFT(E122,2),1)=\":\",E122,\"\")","v":""},"//dot/dfsroot01/cccommon/provisions/01a  Automated Proposal Line Up Sheet/2012 Standard Provisions/","","",""]
["i",null,null,null,"Completion Date",null,null,null,null,null,null,0,"","//dot/dfsroot01/cccommon/provisions/01a  Automated Proposal Line Up Sheet/2012 Standard Provisions/","","",""]
["i",null,null,null,"LDs $ - Number",null,null,null,null,null,null,0,"","//dot/dfsroot01/cccommon/provisions/01a  Automated Proposal Line Up Sheet/2012 Standard Provisions/","","","",null,""]
["PSP",null,null,null,"Click Here to Add Additional Project Specific Provisions","CentralGeneral;CentralStructures;CentralRail;DivGeneral;DivStructures;DivSBEGeneral;;Federal;State;Permits;NoPerm",null,null,null,null,null,null,{"$f":"IF(RIGHT(LEFT(E125,2),1)=\":\",E125,\"\")","v":""},"//dot/dfsroot01/cccommon/provisions/01a  Automated Proposal Line Up Sheet/2012 Standard Provisions/",{"$f":"IF(N125=\"\",\"\",IF(H125=\"\",\"\",IF(+B125=\"a\",CONCATENATE(+N125,+H125),\"\")))","v":""},"",""]
[28,null,"SP01 G013B","SP01G","INTERMEDIATE CONTRACT TIME # 1 AND LIQ. DAMAGES (No Permits)","CentralGeneral;CentralStructures;CentralRail;DivGeneral;DivStructures;DivSBEGeneral;Federal;State;Permits;NoPerm","2007-12","SP01_G013_B__ICT_1_and_LDs_Float_Reforest.docx","Use with Floating Dates of Availablity  with SP01 G07B or SP01 G07D.  Liquidated Damages Determined from Guidelines based on Project Cost Estimate.",null,null,2,"","//dot/dfsroot01/cccommon/provisions/01a  Automated Proposal Line Up Sheet/2012 Standard Provisions/","","",""]
["i",null,null,null,"Completion by Consecutive Days - Number",null,null,null,null,null,null,0,"","//dot/dfsroot01/cccommon/provisions/01a  Automated Proposal Line Up Sheet/2012 Standard Provisions/","","","",null,{"$f":"IF(I127,SpellNumberDays(I127),\"\")","v":""}]
["i",null,null,null,"LDs $ - Number",null,null,null,null,null,null,0,"","//dot/dfsroot01/cccommon/provisions/01a  Automated Proposal Line Up Sheet/2012 Standard Provisions/","","","",null,""]
["PSP",null,null,null,"Click Here to Add Additional Project Specific Provisions","CentralGeneral;CentralStructures;CentralRail;DivGeneral;DivStructures;DivSBEGeneral;Federal;State;Permits;NoPerm",null,null,null,null,null,null,"","//dot/dfsroot01/cccommon/provisions/01a  Automated Proposal Line Up Sheet/2012 Standard Provisions/","","",""]
[28,null,"SP1 G014","SP01G","INTERMEDIATE CONTRACT TIMES","CentralGeneral;CentralResurfacing;CentralStructures;CentralRail;Federal;State;Permits;NoPerm","varies",null,"Do NOT check this provision if ICTs are provided as a separate Word file (Raleigh TIPs); instead, attach file below in \"Click Here to Add Additional PSPs\" and use the \"Add a Note\" box to the right to explain the letter designation and quantity of ICTs in the Word file . If no ICTs in Word, use the check box to open the ICT options.",null,null,79,"","//dot/dfsroot01/cccommon/provisions/01a  Automated Proposal Line Up Sheet/2012 Standard Provisions/","","",""]
["PSP",null,null,null,"Click Here to Add Additional Project Specific Provisions",null,null,null,null,null,null,null,"","//dot/dfsroot01/cccommon/provisions/01a  Automated Proposal Line Up Sheet/2012 Standard Provisions/","","",""]
[29,null,"SP01 G014A","SP01G","INTERMEDIATE CONTRACT TIMES (Combined)","DivGeneral;DivResurf;DivStructures;DivSBEGeneral;DivSBEResurf;Federal;State;Permits;NoPerm","2007-02","SP01_G014_A__Combined_ICT.docx","Lane Closure Day/Time restrictions and Holiday lane closure restrictions.",null,null,6,"","//dot/dfsroot01/cccommon/provisions/01a  Automated Proposal Line Up Sheet/2012 Standard Provisions/","","",""]
["i",null,null,null,"ICT Number",null,null,null,null,null,null,0,"","//dot/dfsroot01/cccommon/provisions/01a  Automated Proposal Line Up Sheet/2012 Standard Provisions/","","",""]
["i",null,null,null,"Road Name/\"ANY ROAD\"",null,null,null,"",null,null,0,{"$f":"IF(RIGHT(LEFT(E134,2),1)=\":\",E134,\"\")","v":""},"//dot/dfsroot01/cccommon/provisions/01a  Automated Proposal Line Up Sheet/2012 Standard Provisions/",{"$f":"IF(N134=\"\",\"\",IF(H134=\"\",\"\",IF(+B134=\"a\",CONCATENATE(+N134,+H134),\"\")))","v":""},"",""]
["i",null,null,null,"Days/Time Road Closure Restrictions",null,null,null,"",null,null,0,"","//dot/dfsroot01/cccommon/provisions/01a  Automated Proposal Line Up Sheet/2012 Standard Provisions/","","",""]
["i",null,null,null,"Between the Hours of",null,null,null,null,null,null,0,"","//dot/dfsroot01/cccommon/provisions/01a  Automated Proposal Line Up Sheet/2012 Standard Provisions/","","",""]
["i",null,null,null,"and (hours)",null,null,null,null,null,null,0,"",{"$f":"+$P$6","v":"//dot/dfsroot01/cccommon/provisions/01a  Automated Proposal Line Up Sheet/2012 Standard Provisions/"},"","",""]
["i",null,null,null,"LDs $ - Number",null,null,null,null,null,null,0,"","//dot/dfsroot01/cccommon/provisions/01a  Automated Proposal Line Up Sheet/2012 Standard Provisions/","","","",null,""]
["PSP",null,null,null,"Click Here to Add Additional Project Specific Provisions","DivGeneral;DivResurf;DivStructures;DivSBEGeneral;DivSBEResurf;Federal;State;Permits;NoPerm",null,null,null,null,null,null,"","//dot/dfsroot01/cccommon/provisions/01a  Automated Proposal Line Up Sheet/2012 Standard Provisions/","","",""]
[30,null,"SP01 G014B","SP01G","INTERMEDIATE CONTRACT TIMES (Holiday Lane Closure)","DivGeneral;DivResurf;DivStructures;DivSBEGeneral;DivSBEResurf;Federal;State;Permits;NoPerm","2007-02","SP01_G014_B__Holiday_Lane_Closure_ICT.docx","Holiday lane closure restrictions with additional event(s).",null,null,5,"","//dot/dfsroot01/cccommon/provisions/01a  Automated Proposal Line Up Sheet/2012 Standard Provisions/","","",""]
["i",null,null,null,"ICT Number",null,null,null,null,null,null,0,"","//dot/dfsroot01/cccommon/provisions/01a  Automated Proposal Line Up Sheet/2012 Standard Provisions/","","",""]
["i",null,null,null,"Road Name/\"ANY ROAD\"",null,null,null,"",null,null,0,"","//dot/dfsroot01/cccommon/provisions/01a  Automated Proposal Line Up Sheet/2012 Standard Provisions/","","",""]
["i",null,null,null,"Between the Hours of",null,null,null,null,null,null,0,"","//dot/dfsroot01/cccommon/provisions/01a  Automated Proposal Line Up Sheet/2012 Standard Provisions/","","",""]
["i",null,null,null,"and (hours)",null,null,null,null,null,null,0,"","//dot/dfsroot01/cccommon/provisions/01a  Automated Proposal Line Up Sheet/2012 Standard Provisions/","","",""]
["i",null,null,null,"LDs $ - Number",null,null,null,null,null,null,0,"","//dot/dfsroot01/cccommon/provisions/01a  Automated Proposal Line Up Sheet/2012 Standard Provisions/","","","",null,{"$f":"IF(I145,SpellNumber(I145),\"\")","v":""}]
["PSP",null,null,null,"Click Here to Add Additional Project Specific Provisions","DivGeneral;DivResurf;DivStructures;DivSBEGeneral;DivSBEResurf;Federal;State;Permits;NoPerm",null,null,null,null,null,null,"","//dot/dfsroot01/cccommon/provisions/01a  Automated Proposal Line Up Sheet/2012 Standard Provisions/","","",""]
[31,null,"SP01 G014C","SP01G","INTERMEDIATE CONTRACT TIMES (Lane Closure, Time Restricted)","DivGeneral;DivResurf;DivStructures;DivSBEGeneral;DivSBEResurf;Federal;State;Permits;NoPerm","2007-02","SP01_G014_C__Lane_Close_Time_Restrict_ICT.docx","Day/Time lane narrowing or closure restrictions.",null,null,4,"","//dot/dfsroot01/cccommon/provisions/01a  Automated Proposal Line Up Sheet/2012 Standard Provisions/","","",""]
["i",null,null,null,"ICT Number",null,null,null,null,null,null,0,"","//dot/dfsroot01/cccommon/provisions/01a  Automated Proposal Line Up Sheet/2012 Standard Provisions/","","",""]
["i",null,null,null,"Road Name/\"ANY ROAD\"",null,null,null,"",null,null,0,{"$f":"IF(RIGHT(LEFT(E149,2),1)=\":\",E149,\"\")","v":""},"//dot/dfsroot01/cccommon/provisions/01a  Automated Proposal Line Up Sheet/2012 Standard Provisions/",{"$f":"IF(N149=\"\",\"\",IF(H149=\"\",\"\",IF(+B149=\"a\",CONCATENATE(+N149,+H149),\"\")))","v":""},"",""]
["i",null,null,null,"Days/Time Road Closure Restrictions",null,null,null,"",null,null,0,"","//dot/dfsroot01/cccommon/provisions/01a  Automated Proposal Line Up Sheet/2012 Standard Provisions/","","",""]
["i",null,null,null,"LDs $ - Number",null,null,null,null,null,null,0,"","//dot/dfsroot01/cccommon/provisions/01a  Automated Proposal Line Up Sheet/2012 Standard Provisions/","","","",null,""]
["PSP",null,null,null,"Click Here to Add Additional Project Specific Provisions","DivGeneral;DivResurf;DivStructures;DivSBEGeneral;DivSBEResurf;Federal;State;Permits;NoPerm",null,null,null,null,null,null,"","//dot/dfsroot01/cccommon/provisions/01a  Automated Proposal Line Up Sheet/2012 Standard Provisions/","","",""]
[32,null,"SP01 G014D","SP01G","INTERMEDIATE CONTRACT TIMES (Road Closure Hour)","DivGeneral;DivResurf;DivStructures;DivSBEGeneral;DivSBEResurf;Federal;State;Permits;NoPerm","2007-02","SP01_G014_D__Road_Closure_Hour_ICT.docx","Day/Time road closure restrictions.",null,null,4,"","//dot/dfsroot01/cccommon/provisions/01a  Automated Proposal Line Up Sheet/2012 Standard Provisions/","","",""]
["i",null,null,null,"ICT Number",null,null,null,null,null,null,0,"","//dot/dfsroot01/cccommon/provisions/01a  Automated Proposal Line Up Sheet/2012 Standard Provisions/","","",""]
["i",null,null,null,"Road Name/\"ANY ROAD\"",null,null,null,"",null,null,0,{"$f":"IF(RIGHT(LEFT(E155,2),1)=\":\",E155,\"\")","v":""},"//dot/dfsroot01/cccommon/provisions/01a  Automated Proposal Line Up Sheet/2012 Standard Provisions/",{"$f":"IF(N155=\"\",\"\",IF(H155=\"\",\"\",IF(+B155=\"a\",CONCATENATE(+N155,+H155),\"\")))","v":""},"",""]
["i",null,null,null,"Days/Time Road Closure Restrictions",null,null,null,"",null,null,0,"","//dot/dfsroot01/cccommon/provisions/01a  Automated Proposal Line Up Sheet/2012 Standard Provisions/","","",""]
["i",null,null,null,"LDs $ - Number",null,null,null,null,null,null,0,"","//dot/dfsroot01/cccommon/provisions/01a  Automated Proposal Line Up Sheet/2012 Standard Provisions/","","","",null,""]
["PSP",null,null,null,"Click Here to Add Additional Project Specific Provisions","DivGeneral;DivResurf;DivStructures;DivSBEGeneral;DivSBEResurf;Federal;State;Permits;NoPerm",null,null,null,null,null,null,"","//dot/dfsroot01/cccommon/provisions/01a  Automated Proposal Line Up Sheet/2012 Standard Provisions/","","",""]
[33,null,"SP01 G014E","SP01G","INTERMEDIATE CONTRACT TIMES (Road Closure Minute)","DivGeneral;DivResurf;DivStructures;DivSBEGeneral;DivSBEResurf;Federal;State;Permits;NoPerm","2013-10","SP01_G014_E__Road_Closure_Minute_ICT.docx","Day/Time road closure restrictions and operation restrictions.",null,null,7,"","//dot/dfsroot01/cccommon/provisions/01a  Automated Proposal Line Up Sheet/2012 Standard Provisions/","","",""]
["i",null,null,null,"ICT Number",null,null,null,null,null,null,0,"","//dot/dfsroot01/cccommon/provisions/01a  Automated Proposal Line Up Sheet/2012 Standard Provisions/","","",""]
["i",null,null,null,"Road Name/\"ANY ROAD\"",null,null,null,"",null,null,0,{"$f":"IF(RIGHT(LEFT(E161,2),1)=\":\",E161,\"\")","v":""},"//dot/dfsroot01/cccommon/provisions/01a  Automated Proposal Line Up Sheet/2012 Standard Provisions/",{"$f":"IF(N161=\"\",\"\",IF(H161=\"\",\"\",IF(+B161=\"a\",CONCATENATE(+N161,+H161),\"\")))","v":""},"",{"$f":"IF(B161=\"a\",+C161,+M161)","v":""}]
[null,null,null,null,"Days/Time Road Closure Restrictions",null,null,null,"",null,null,0,null,"//dot/dfsroot01/cccommon/provisions/01a  Automated Proposal Line Up Sheet/2012 Standard Provisions/",null,"",0]
[null,null,null,null,"Describe Operation (\"The max. allowable time for…\")",null,null,null,"",null,null,0,null,"//dot/dfsroot01/cccommon/provisions/01a  Automated Proposal Line Up Sheet/2012 Standard Provisions/",null,"",0]
["i",null,null,null,"Number of Minutes Allowed",null,null,null,null,null,null,0,"","//dot/dfsroot01/cccommon/provisions/01a  Automated Proposal Line Up Sheet/2012 Standard Provisions/","","","",null,{"$f":"IF(I164,SpellNumberDays(I164),\"\")","v":""}]
["i",null,null,null,"LDs $ - Number",null,null,null,null,null,null,0,"","//dot/dfsroot01/cccommon/provisions/01a  Automated Proposal Line Up Sheet/2012 Standard Provisions/","","","",null,""]
["i",null,null,null,"Minute Time Period (15, 30?)",null,null,null,null,null,null,0,{"$f":"IF(RIGHT(LEFT(E166,2),1)=\":\",E166,\"\")","v":""},"//dot/dfsroot01/cccommon/provisions/01a  Automated Proposal Line Up Sheet/2012 Standard Provisions/",{"$f":"IF(N166=\"\",\"\",IF(H166=\"\",\"\",IF(+B166=\"a\",CONCATENATE(+N166,+H166),\"\")))","v":""},"","",null,{"$f":"IF(I166,SpellNumberDays(I166),\"\")","v":""}]
["PSP",null,null,null,"Click Here to Add Additional Project Specific Provisions","DivGeneral;DivResurf;DivStructures;DivSBEGeneral;DivSBEResurf;Federal;State;Permits;NoPerm",null,null,null,null,null,null,"","//dot/dfsroot01/cccommon/provisions/01a  Automated Proposal Line Up Sheet/2012 Standard Provisions/","","",""]
[34,null,"SP01 G014F","SP01G","INTERMEDIATE CONTRACT TIMES FROM___TO___","DivGeneral;DivResurf;DivStructures;DivSBEGeneral;DivSBEResurf;Federal;State;Permits;NoPerm","2013-06","SP01_G014_F__ICT_From___To___.docx","Phase or Step (TCPs in plans) day/time restrictions.",null,null,8,"","//dot/dfsroot01/cccommon/provisions/01a  Automated Proposal Line Up Sheet/2012 Standard Provisions/","","",""]
["i",null,null,null,"ICT Number",null,null,null,null,null,null,0,"","//dot/dfsroot01/cccommon/provisions/01a  Automated Proposal Line Up Sheet/2012 Standard Provisions/","","",""]
["i",null,null,null,"Phase or Step",null,null,null,"",null,null,0,{"$f":"IF(RIGHT(LEFT(E170,2),1)=\":\",E170,\"\")","v":""},"//dot/dfsroot01/cccommon/provisions/01a  Automated Proposal Line Up Sheet/2012 Standard Provisions/",{"$f":"IF(N170=\"\",\"\",IF(H170=\"\",\"\",IF(+B170=\"a\",CONCATENATE(+N170,+H170),\"\")))","v":""},"",""]
[null,null,null,null,"As Shown on Sheets",null,null,null,"",null,null,0,null,"//dot/dfsroot01/cccommon/provisions/01a  Automated Proposal Line Up Sheet/2012 Standard Provisions/",null,"",0]
[null,null,null,null,"Day of Avialablity",null,null,null,null,null,null,0,null,"//dot/dfsroot01/cccommon/provisions/01a  Automated Proposal Line Up Sheet/2012 Standard Provisions/",null,"",0]
["i",null,null,null,"Time of Availablity",null,null,null,null,null,null,0,{"$f":"IF(RIGHT(LEFT(E173,2),1)=\":\",E173,\"\")","v":""},"//dot/dfsroot01/cccommon/provisions/01a  Automated Proposal Line Up Sheet/2012 Standard Provisions/",{"$f":"IF(N173=\"\",\"\",IF(H173=\"\",\"\",IF(+B173=\"a\",CONCATENATE(+N173,+H173),\"\")))","v":""},"",""]
[null,null,null,null,"Day of Completion",null,null,null,"",null,null,0,null,"//dot/dfsroot01/cccommon/provisions/01a  Automated Proposal Line Up Sheet/2012 Standard Provisions/",null,"",0]
[null,null,null,null,"Time of Completion",null,null,null,null,null,null,0,null,"//dot/dfsroot01/cccommon/provisions/01a  Automated Proposal Line Up Sheet/2012 Standard Provisions/",null,"",0]
["i",null,null,null,"LDs $ - Number",null,null,null,null,null,null,0,"","//dot/dfsroot01/cccommon/provisions/01a  Automated Proposal Line Up Sheet/2012 Standard Provisions/","","","",null,""]
["PSP",null,null,null,"Click Here to Add Additional Project Specific Provisions","DivGeneral;DivResurf;DivStructures;DivSBEGeneral;DivSBEResurf;Federal;State;Permits;NoPerm",null,null,null,null,null,null,"","//dot/dfsroot01/cccommon/provisions/01a  Automated Proposal Line Up Sheet/2012 Standard Provisions/","","",""]
[35,null,"SP01 G014G","SP01G","INTERMEDIATE CONTRACT TIMES (Consecutive Hours)","DivGeneral;DivResurf;DivStructures;DivSBEGeneral;DivSBEResurf;Federal;State;Permits;NoPerm","2013-06","SP01_G014_G__Consecutive_Hours_ICT.docx","Phase or Step (TCPs in plans) restrictions beginning when Contractor begins work.  Restriction in consecutive hours.",null,null,5,"","//dot/dfsroot01/cccommon/provisions/01a  Automated Proposal Line Up Sheet/2012 Standard Provisions/","","",""]
["i",null,null,null,"ICT Number",null,null,null,null,null,null,0,"","//dot/dfsroot01/cccommon/provisions/01a  Automated Proposal Line Up Sheet/2012 Standard Provisions/","",{"$f":"CONCATENATE(M179,O179)","v":""},""]
["i",null,null,null,"Phase or Step",null,null,null,"",null,null,0,"","//dot/dfsroot01/cccommon/provisions/01a  Automated Proposal Line Up Sheet/2012 Standard Provisions/","","",""]
[null,null,null,null,"As Shown on Sheets",null,null,null,"",null,null,0,null,"//dot/dfsroot01/cccommon/provisions/01a  Automated Proposal Line Up Sheet/2012 Standard Provisions/",null,"",0]
[null,null,null,null,"Consecutive Hours for Completion",null,null,null,null,null,null,0,null,"//dot/dfsroot01/cccommon/provisions/01a  Automated Proposal Line Up Sheet/2012 Standard Provisions/",null,"",0,null,{"$f":"IF(ÇintSP01G014GHours,SpellNumberDays(ÇintSP01G014GHours),\"\")","v":""}]
["i",null,null,null,"LDs $ - Number",null,null,null,null,null,null,0,{"$f":"IF(RIGHT(LEFT(E183,2),1)=\":\",E183,\"\")","v":""},"//dot/dfsroot01/cccommon/provisions/01a  Automated Proposal Line Up Sheet/2012 Standard Provisions/",{"$f":"IF(N183=\"\",\"\",IF(H183=\"\",\"\",IF(+B183=\"a\",CONCATENATE(+N183,+H183),\"\")))","v":""},"","",null,""]
["PSP",null,null,null,"Click Here to Add Additional Project Specific Provisions","DivGeneral;DivResurf;DivStructures;DivSBEGeneral;DivSBEResurf;Federal;State;Permits;NoPerm",null,null,null,null,null,null,"","//dot/dfsroot01/cccommon/provisions/01a  Automated Proposal Line Up Sheet/2012 Standard Provisions/","","",""]
[36,null,"SP01 G014H","SP01G","INTERMEDIATE CONTRACT TIMES (Consecutive Days)","DivGeneral;DivResurf;DivStructures;DivSBEGeneral;DivSBEResurf;Federal;State;Permits;NoPerm","2013-06","SP01_G014_H__Consecutive_Days_ICT.docx","Phase or Step (TCPs in plans) restrictions beginning when Contractor begins work.  Restriction in calendar days.",null,null,5,"","//dot/dfsroot01/cccommon/provisions/01a  Automated Proposal Line Up Sheet/2012 Standard Provisions/","","",""]
["i",null,null,null,"ICT Number",null,null,null,null,null,null,0,"","//dot/dfsroot01/cccommon/provisions/01a  Automated Proposal Line Up Sheet/2012 Standard Provisions/","","",""]
["i",null,null,null,"Phase or Step",null,null,null,"",null,null,0,"","//dot/dfsroot01/cccommon/provisions/01a  Automated Proposal Line Up Sheet/2012 Standard Provisions/","","",""]
[null,null,null,null,"As Shown on Sheets",null,null,null,"",null,null,0,null,"//dot/dfsroot01/cccommon/provisions/01a  Automated Proposal Line Up Sheet/2012 Standard Provisions/",null,"",0]
[null,null,null,null,"Consecutive Days for Completion",null,null,null,null,null,null,0,null,"//dot/dfsroot01/cccommon/provisions/01a  Automated Proposal Line Up Sheet/2012 Standard Provisions/",null,"",0,null,{"$f":"IF(I189,SpellNumberDays(I189),\"\")","v":""}]
["i",null,null,null,"LDs $ - Number",null,null,null,null,null,null,0,{"$f":"IF(RIGHT(LEFT(E190,2),1)=\":\",E190,\"\")","v":""},"//dot/dfsroot01/cccommon/provisions/01a  Automated Proposal Line Up Sheet/2012 Standard Provisions/",{"$f":"IF(N190=\"\",\"\",IF(H190=\"\",\"\",IF(+B190=\"a\",CONCATENATE(+N190,+H190),\"\")))","v":""},"","",null,""]
["PSP",null,null,null,"Click Here to Add Additional Project Specific Provisions","DivGeneral;DivResurf;DivStructures;DivSBEGeneral;DivSBEResurf;Federal;State;Permits;NoPerm",null,null,null,null,null,null,"","//dot/dfsroot01/cccommon/provisions/01a  Automated Proposal Line Up Sheet/2012 Standard Provisions/","","",""]
[37,null,"SP01 G014I","SP01G","INTERMEDIATE CONTRACT TIMES (Inductive Loop Installations)","DivGeneral;DivResurf;DivStructures;DivSBEGeneral;DivSBEResurf;Federal;State;Permits;NoPerm","2013-05","SP01_G014_I__Loops Days ICT.docx","Restrictions for inductive loops.",null,null,1,"","//dot/dfsroot01/cccommon/provisions/01a  Automated Proposal Line Up Sheet/2012 Standard Provisions/","","",""]
["i",null,null,null,"ICT Number",null,null,null,null,null,null,0,"","//dot/dfsroot01/cccommon/provisions/01a  Automated Proposal Line Up Sheet/2012 Standard Provisions/","","",""]
["PSP",null,null,null,"Click Here to Add Additional Project Specific Provisions","DivGeneral;DivResurf;DivStructures;DivSBEGeneral;DivSBEResurf;Federal;State;Permits;NoPerm",null,null,null,null,null,null,"","//dot/dfsroot01/cccommon/provisions/01a  Automated Proposal Line Up Sheet/2012 Standard Provisions/","","",""]
[39,null,"SP01 G014K","SP01G","INTERMEDIATE CONTRACT TIMES (Dates, Maps)","DivGeneral;DivResurf;DivStructures;DivSBEGeneral;DivSBEResurf;Federal;State;Permits;NoPerm","2013-06","SP01_G014_K__Dates Availability and Completion_ICT_Maps.docx","Phase or Step restrictions on specific Maps.",null,null,6,"","//dot/dfsroot01/cccommon/provisions/01a  Automated Proposal Line Up Sheet/2012 Standard Provisions/","","",""]
["i",null,null,null,"ICT Number",null,null,null,null,null,null,0,"","//dot/dfsroot01/cccommon/provisions/01a  Automated Proposal Line Up Sheet/2012 Standard Provisions/","","",""]
["i",null,null,null,"Phase or Step",null,null,null,"",null,null,0,"","//dot/dfsroot01/cccommon/provisions/01a  Automated Proposal Line Up Sheet/2012 Standard Provisions/","","",""]
[null,null,null,null,"As Shown on Maps",null,null,null,"",null,null,0,null,"//dot/dfsroot01/cccommon/provisions/01a  Automated Proposal Line Up Sheet/2012 Standard Provisions/",null,"",0]
[null,null,null,null,"Date of Availability",null,null,null,null,null,null,0,null,"//dot/dfsroot01/cccommon/provisions/01a  Automated Proposal Line Up Sheet/2012 Standard Provisions/",null,"",0]
["i",null,null,null,"Completion Date",null,null,null,null,null,null,0,{"$f":"IF(RIGHT(LEFT(E200,2),1)=\":\",E200,\"\")","v":""},"//dot/dfsroot01/cccommon/provisions/01a  Automated Proposal Line Up Sheet/2012 Standard Provisions/",{"$f":"IF(N200=\"\",\"\",IF(H200=\"\",\"\",IF(+B200=\"a\",CONCATENATE(+N200,+H200),\"\")))","v":""},"",""]
["i",null,null,null,"LDs $ - Number",null,null,null,null,null,null,0,{"$f":"IF(RIGHT(LEFT(E201,2),1)=\":\",E201,\"\")","v":""},{"$f":"+$P$6","v":"//dot/dfsroot01/cccommon/provisions/01a  Automated Proposal Line Up Sheet/2012 Standard Provisions/"},{"$f":"IF(N201=\"\",\"\",IF(H201=\"\",\"\",IF(+B201=\"a\",CONCATENATE(+N201,+H201),\"\")))","v":""},"","",null,""]
["PSP",null,null,null,"Click Here to Add Additional Project Specific Provisions","DivGeneral;DivResurf;DivStructures;DivSBEGeneral;DivSBEResurf;Federal;State;Permits;NoPerm",null,null,null,null,null,null,"","//dot/dfsroot01/cccommon/provisions/01a  Automated Proposal Line Up Sheet/2012 Standard Provisions/","","",""]
[40,null,"SP01 G014L","SP01G","INTERMEDIATE CONTRACT TIMES (Dates, TMP)","DivGeneral;DivResurf;DivStructures;DivSBEGeneral;DivSBEResurf;Federal;State;Permits;NoPerm","2013-06","SP01_G014_L__Dates Availability and Completion_ICT_TMPSheets.docx","Phase or Step restrictions on TMPs.",null,null,6,"","//dot/dfsroot01/cccommon/provisions/01a  Automated Proposal Line Up Sheet/2012 Standard Provisions/","","",""]
["i",null,null,null,"ICT Number",null,null,null,null,null,null,0,{"$f":"IF(RIGHT(LEFT(E204,2),1)=\":\",E204,\"\")","v":""},"//dot/dfsroot01/cccommon/provisions/01a  Automated Proposal Line Up Sheet/2012 Standard Provisions/",{"$f":"IF(N204=\"\",\"\",IF(H204=\"\",\"\",IF(+B204=\"a\",CONCATENATE(+N204,+H204),\"\")))","v":""},"",""]
["i",null,null,null,"Phase or Step",null,null,null,"",null,null,0,"","//dot/dfsroot01/cccommon/provisions/01a  Automated Proposal Line Up Sheet/2012 Standard Provisions/","","",""]
[null,null,null,null,"As Shown on Sheets",null,null,null,"",null,null,0,null,"//dot/dfsroot01/cccommon/provisions/01a  Automated Proposal Line Up Sheet/2012 Standard Provisions/",null,"",0]
[null,null,null,null,"Date of Availability",null,null,null,null,null,null,0,null,"//dot/dfsroot01/cccommon/provisions/01a  Automated Proposal Line Up Sheet/2012 Standard Provisions/",null,"",0]
["i",null,null,null,"Completion Date",null,null,null,null,null,null,0,{"$f":"IF(RIGHT(LEFT(E208,2),1)=\":\",E208,\"\")","v":""},"//dot/dfsroot01/cccommon/provisions/01a  Automated Proposal Line Up Sheet/2012 Standard Provisions/",{"$f":"IF(N208=\"\",\"\",IF(H208=\"\",\"\",IF(+B208=\"a\",CONCATENATE(+N208,+H208),\"\")))","v":""},"",""]
["i",null,null,null,"LDs $ - Number",null,null,null,null,null,null,0,"","//dot/dfsroot01/cccommon/provisions/01a  Automated Proposal Line Up Sheet/2012 Standard Provisions/","","","",null,{"$f":"IF(I209,SpellNumber(I209),\"\")","v":""}]
["PSP",null,null,null,"Click Here to Add Additional Project Specific Provisions","CentralGeneral;CentralResurfacing;CentralStructures;CentralRail;DivGeneral;DivResurf;DivStructures;DivSBEGeneral;DivSBEResurf;Federal;State;Permits;NoPerm",null,null,null,null,null,null,"","//dot/dfsroot01/cccommon/provisions/01a  Automated Proposal Line Up Sheet/2012 Standard Provisions/","","",""]
[41,null,"SP01 G015R","SP01G","PROSECUTION OF WORK (Multiple Maps)","CentralResurfacing;DivResurf;DivSBEResurf;Federal;State;Permits;NoPerm","2012-08","SP01_G015_R__Prosecution_of_Work.docx","Liq. Damages determined by State Estimating Engineer. Use ONLY on projects that have multiple Maps that are separated.  DO NOT use for continuous  or single Map projects.  DO NOT MODIFY WORDING.",null,null,1,"","//dot/dfsroot01/cccommon/provisions/01a  Automated Proposal Line Up Sheet/2012 Standard Provisions/","","",""]
["i",null,null,null,"LDs $ - Number",null,null,null,null,null,null,0,"","//dot/dfsroot01/cccommon/provisions/01a  Automated Proposal Line Up Sheet/2012 Standard Provisions/",{"$f":"IF(N212=\"\",\"\",IF(H212=\"\",\"\",IF(+B212=\"a\",CONCATENATE(+N212,+H212),\"\")))","v":""},"","",null,{"$f":"IF(I212,SpellNumber(I212),\"\")","v":""}]
["PSP",null,null,null,"Click Here to Add Additional Project Specific Provisions","CentralResurfacing;DivResurf;DivSBEResurf;Federal;State;Permits;NoPerm",null,null,null,null,null,null,"","//dot/dfsroot01/cccommon/provisions/01a  Automated Proposal Line Up Sheet/2012 Standard Provisions/","","",""]
[42,null,"SP01 G016","SP01G","PERMANENT VEGETATION ESTABLISHMENT","CentralGeneral;CentralStructures;CentralRail;DivGeneral;DivStructures;DivSBEGeneral;Federal;State;Permits;NoPerm","2013-10","SP01_G016__Permanent_Vegetation_Establishmnt.docx","Use on Central Let projects with ground disturbing activities/erosion control plans.  Marsha to use the calculated completion date as an ICT and add SP1 G13 A/B with additonal 6 months after calculated completion with LDs for this provision.",null,null,0,"","//dot/dfsroot01/cccommon/provisions/01a  Automated Proposal Line Up Sheet/2012 Standard Provisions/","","",""]
["PSP",null,null,null,"Click Here to Add Additional Project Specific Provisions","CentralGeneral;CentralStructures;CentralRail;DivGeneral;DivStructures;DivSBEGeneral;Federal;State;Permits;NoPerm",null,null,null,null,null,null,"","//dot/dfsroot01/cccommon/provisions/01a  Automated Proposal Line Up Sheet/2012 Standard Provisions/","","",""]
[43,null,"SP01 G017R","SP01G","RAILROAD GRADE CROSSING (Not on Interstates)","CentralResurfacing;DivResurf;DivSBEResurf;Federal;State;Permits;NoPerm","2013-01","SP01_G017_R__Railroad_Grade_Crossing.docx","ALL projects EXCEPT Interstate projects.",null,null,0,"","//dot/dfsroot01/cccommon/provisions/01a  Automated Proposal Line Up Sheet/2012 Standard Provisions/","","",""]
["PSP",null,null,null,"Click Here to Add Additional Project Specific Provisions","CentralResurfacing;DivResurf;DivSBEResurf;Federal;State;Permits;NoPerm",null,null,null,null,null,null,"","//dot/dfsroot01/cccommon/provisions/01a  Automated Proposal Line Up Sheet/2012 Standard Provisions/","","",""]
[44,null,"SP01 G018A","SP01G","CONSTRUCTION MORATORIUM (Trout)","CentralGeneral;CentralStructures;CentralRail;DivGeneral;DivStructures;DivSBEGeneral;Federal;State;Permits;NoPerm","2014-07","SP01_G018_A__Construction Moratorium.docx","Use if there is a Construction Moratorium for Trout.",null,null,2,"","//dot/dfsroot01/cccommon/provisions/01a  Automated Proposal Line Up Sheet/2012 Standard Provisions/","","",""]
[null,null,null,null,"Moratorium Start Date",null,null,null,null,null,null,0,null,"//dot/dfsroot01/cccommon/provisions/01a  Automated Proposal Line Up Sheet/2012 Standard Provisions/",null,{"$f":"CONCATENATE(M219,O219)","v":""},{"$f":"IF(B219=\"a\",+C219,+M219)","v":0}]
["i",null,null,null,"Moratorium End Date",null,null,null,null,null,null,0,{"$f":"IF(RIGHT(LEFT(E220,2),1)=\":\",E220,\"\")","v":""},"//dot/dfsroot01/cccommon/provisions/01a  Automated Proposal Line Up Sheet/2012 Standard Provisions/",{"$f":"IF(N220=\"\",\"\",IF(H220=\"\",\"\",IF(+B220=\"a\",CONCATENATE(+N220,+H220),\"\")))","v":""},"",""]
["PSP",null,null,null,"Click Here to Add Additional Project Specific Provisions","CentralGeneral;CentralStructures;CentralRail;DivGeneral;DivStructures;DivSBEGeneral;Federal;State;Permits;NoPerm",null,null,null,null,null,null,"","//dot/dfsroot01/cccommon/provisions/01a  Automated Proposal Line Up Sheet/2012 Standard Provisions/",{"$f":"IF(N221=\"\",\"\",IF(H221=\"\",\"\",IF(+B221=\"a\",CONCATENATE(+N221,+H221),\"\")))","v":""},"",""]
[44,null,"SP01 G018B","SP01G","CONSTRUCTION MORATORIUM (Anadromous Fish)","CentralGeneral;CentralStructures;CentralRail;DivGeneral;DivStructures;DivSBEGeneral;Federal;State;Permits;NoPerm","2014-07","SP01_G018_B__Construction Moratorium.docx","Use if there is a Construction Moratorium for Anadromous Fish.",null,null,2,{"$f":"IF(RIGHT(LEFT(E222,2),1)=\":\",E222,\"\")","v":""},"//dot/dfsroot01/cccommon/provisions/01a  Automated Proposal Line Up Sheet/2012 Standard Provisions/","",{"$f":"CONCATENATE(M222,O222)","v":""},{"$f":"IF(B222=\"a\",+C222,+M222)","v":""}]
[null,null,null,null,"Moratorium Start Date",null,null,null,null,null,null,0,null,"//dot/dfsroot01/cccommon/provisions/01a  Automated Proposal Line Up Sheet/2012 Standard Provisions/",null,"",0]
["i",null,null,null,"Moratorium End Date",null,null,null,null,null,null,0,{"$f":"IF(RIGHT(LEFT(E224,2),1)=\":\",E224,\"\")","v":""},"//dot/dfsroot01/cccommon/provisions/01a  Automated Proposal Line Up Sheet/2012 Standard Provisions/",{"$f":"IF(N224=\"\",\"\",IF(H224=\"\",\"\",IF(+B224=\"a\",CONCATENATE(+N224,+H224),\"\")))","v":""},"",""]
["PSP",null,null,null,"Click Here to Add Additional Project Specific Provisions","CentralGeneral;CentralStructures;CentralRail;DivGeneral;DivStructures;DivSBEGeneral;Federal;State;Permits;NoPerm",null,null,null,null,null,null,"","//dot/dfsroot01/cccommon/provisions/01a  Automated Proposal Line Up Sheet/2012 Standard Provisions/",{"$f":"IF(N225=\"\",\"\",IF(H225=\"\",\"\",IF(+B225=\"a\",CONCATENATE(+N225,+H225),\"\")))","v":""},"",""]
[45,null,"SP01 G022","SP01G","DELAY IN RIGHT OF ENTRY","CentralGeneral;CentralStructures;CentralRail;DivGeneral;DivStructures;DivSBEGeneral;Federal;State;Permits;NoPerm","1995-07","SP01_G022__Delay_Of_Entry.docx","Use if letter in file from Right of Way, fill in Parcels and Owners.  Also include Date(s) of Entry.  Include only those parcels whose entry dates fall on or after the Advertisement Date.",null,null,0,"","//dot/dfsroot01/cccommon/provisions/01a  Automated Proposal Line Up Sheet/2012 Standard Provisions/","","",""]
["PSP",null,null,null,"Click Here to Add Additional Project Specific Provisions","CentralGeneral;CentralStructures;CentralRail;DivGeneral;DivStructures;DivSBEGeneral;Federal;State;Permits;NoPerm",null,null,null,null,null,null,"","//dot/dfsroot01/cccommon/provisions/01a  Automated Proposal Line Up Sheet/2012 Standard Provisions/","","",""]
[46,null,"SP01 G024R","SP01G","POSTED WEIGHT LIMITS","CentralResurfacing;DivResurf;DivSBEResurf;Federal;State;Permits;NoPerm","2015-09","SP01_G024_R__Posted_Weight_Limits.docx","DO NOT include this provision unless specific bridges or roads are submitted by Division.  List specifics.",null,null,0,"","//dot/dfsroot01/cccommon/provisions/01a  Automated Proposal Line Up Sheet/2012 Standard Provisions/","","",""]
["PSP",null,null,null,"Click Here to Add Additional Project Specific Provisions","CentralResurfacing;DivResurf;DivSBEResurf;Federal;State;Permits;NoPerm",null,null,null,null,null,null,{"$f":"IF(RIGHT(LEFT(E229,2),1)=\":\",E229,\"\")","v":""},"//dot/dfsroot01/cccommon/provisions/01a  Automated Proposal Line Up Sheet/2012 Standard Provisions/",{"$f":"IF(N229=\"\",\"\",IF(H229=\"\",\"\",IF(+B229=\"a\",CONCATENATE(+N229,+H229),\"\")))","v":""},{"$f":"CONCATENATE(M229,O229)","v":""},{"$f":"IF(B229=\"a\",+C229,+M229)","v":""}]
[47,null,"SP01 G025","SP01G","PROGRESS SCHEDULE (RAIL)","CentralRail;Federal;State;Permits;NoPerm","2013-02","SP01_G025__Progress Schedule ﴾Rail﴿.docx","??",null,null,0,"","//dot/dfsroot01/cccommon/provisions/01a  Automated Proposal Line Up Sheet/2012 Standard Provisions/","","",""]
["PSP",null,null,null,"Click Here to Add Additional Project Specific Provisions","CentralRail;Federal;State;Permits;NoPerm",null,null,null,null,null,null,{"$f":"IF(RIGHT(LEFT(E231,2),1)=\":\",E231,\"\")","v":""},"//dot/dfsroot01/cccommon/provisions/01a  Automated Proposal Line Up Sheet/2012 Standard Provisions/",{"$f":"IF(N231=\"\",\"\",IF(H231=\"\",\"\",IF(+B231=\"a\",CONCATENATE(+N231,+H231),\"\")))","v":""},{"$f":"CONCATENATE(M231,O231)","v":""},{"$f":"IF(B231=\"a\",+C231,+M231)","v":""}]
[48,null,"SP01 G028","SP01G","MAJOR CONTRACT ITEMS","CentralGeneral;CentralResurfacing;CentralStructures;CentralRail;DivGeneral;DivResurf;DivStructures;DivSBEGeneral;DivSBEResurf;Federal;State;Permits;NoPerm","2002-02","SP01_G028__Major_Contract_Items.docx","(2nd Check) Using Percent Run Estimate, begin by selecting items who's percentage is 10%+ of project total and working down to achieve a total of 20-30% (ideally) of the project.  Lower percentage items, down to 3%, may be used. ",null,null,8,"","//dot/dfsroot01/cccommon/provisions/01a  Automated Proposal Line Up Sheet/2012 Standard Provisions/","","",{"$f":"IF(B232=\"a\",+C232,+M232)","v":""}]
["i",null,null,null,null,null,null,null,null,null,null,null,"","//dot/dfsroot01/cccommon/provisions/01a  Automated Proposal Line Up Sheet/2012 Standard Provisions/","","",""]
["i",null,null,null,null,null,null,null,null,null,null,null,"","//dot/dfsroot01/cccommon/provisions/01a  Automated Proposal Line Up Sheet/2012 Standard Provisions/","","",""]
["i",null,null,null,null,null,null,null,null,null,null,null,"","//dot/dfsroot01/cccommon/provisions/01a  Automated Proposal Line Up Sheet/2012 Standard Provisions/","","",""]
["i",null,null,null,null,null,null,null,null,null,null,null,"","//dot/dfsroot01/cccommon/provisions/01a  Automated Proposal Line Up Sheet/2012 Standard Provisions/","","",""]
["i",null,null,null,null,null,null,null,null,null,null,null,"","//dot/dfsroot01/cccommon/provisions/01a  Automated Proposal Line Up Sheet/2012 Standard Provisions/","","",""]
["i",null,null,null,null,null,null,null,null,null,null,null,"","//dot/dfsroot01/cccommon/provisions/01a  Automated Proposal Line Up Sheet/2012 Standard Provisions/","","",""]
["i",null,null,null,null,null,null,null,null,null,null,null,"","//dot/dfsroot01/cccommon/provisions/01a  Automated Proposal Line Up Sheet/2012 Standard Provisions/","","",""]
["i",null,null,null,null,null,null,null,null,null,null,null,"","//dot/dfsroot01/cccommon/provisions/01a  Automated Proposal Line Up Sheet/2012 Standard Provisions/","","",""]
["PSP",null,null,null,"Click Here to Add Additional Project Specific Provisions","CentralGeneral;CentralResurfacing;CentralStructures;CentralRail;DivGeneral;DivResurf;DivStructures;DivSBEGeneral;DivSBEResurf;Federal;State;Permits;NoPerm",null,null,null,null,null,null,{"$f":"IF(RIGHT(LEFT(E241,2),1)=\":\",E241,\"\")","v":""},"//dot/dfsroot01/cccommon/provisions/01a  Automated Proposal Line Up Sheet/2012 Standard Provisions/",{"$f":"IF(N241=\"\",\"\",IF(H241=\"\",\"\",IF(+B241=\"a\",CONCATENATE(+N241,+H241),\"\")))","v":""},"",""]
[50,null,"SP01 G031","SP01G","NO MAJOR CONTRACT ITEMS","CentralGeneral;CentralStructures;CentralRail;DivGeneral;DivStructures;DivSBEGeneral;Federal;State;Permits;NoPerm","2007-08","SP01_G031__No_Major_Contract_Items.docx","Use if no Major Items are in the estimate. (i.e.-Overhead Signs).",null,null,0,"","//dot/dfsroot01/cccommon/provisions/01a  Automated Proposal Line Up Sheet/2012 Standard Provisions/","","",""]
["PSP",null,null,null,"Click Here to Add Additional Project Specific Provisions","CentralGeneral;CentralStructures;CentralRail;DivGeneral;DivStructures;DivSBEGeneral;Federal;State;Permits;NoPerm",null,null,null,null,null,null,{"$f":"IF(RIGHT(LEFT(E243,2),1)=\":\",E243,\"\")","v":""},"//dot/dfsroot01/cccommon/provisions/01a  Automated Proposal Line Up Sheet/2012 Standard Provisions/",{"$f":"IF(N243=\"\",\"\",IF(H243=\"\",\"\",IF(+B243=\"a\",CONCATENATE(+N243,+H243),\"\")))","v":""},"",{"$f":"IF(B243=\"a\",+C243,+M243)","v":""}]
[51,null,"SP01 G034","SP01G","NO SPECIALTY ITEMS","CentralGeneral;CentralResurfacing;CentralStructures;CentralRail;DivGeneral;DivResurf;DivStructures;DivSBEGeneral;DivSBEResurf;Federal;State;Permits;NoPerm","1995-07","SP01_G034__No_Specialty_Items.docx","Use if there are NO Specialty items in estimate.",null,null,0,"","//dot/dfsroot01/cccommon/provisions/01a  Automated Proposal Line Up Sheet/2012 Standard Provisions/","","",""]
["PSP",null,null,null,"Click Here to Add Additional Project Specific Provisions","CentralGeneral;CentralResurfacing;CentralStructures;CentralRail;DivGeneral;DivResurf;DivStructures;DivSBEGeneral;DivSBEResurf;Federal;State;Permits;NoPerm",null,null,null,null,null,null,"","//dot/dfsroot01/cccommon/provisions/01a  Automated Proposal Line Up Sheet/2012 Standard Provisions/","","",""]
[52,null,"SP01 G037","SP01G","SPECIALTY ITEMS","CentralGeneral;CentralResurfacing;CentralStructures;CentralRail;DivGeneral;DivResurf;DivStructures;DivSBEGeneral;DivSBEResurf;Federal;State;Permits;NoPerm","2012-01","SP01_G037__Speciality_Items.docx","Use this provision to list Specialty Items listed in estimate.  These are items special to the project.  Guiderail items are NOT a specialty item on a Guiderail Project but Erosion Control items would be.  Enter the line item numbers from the estimate.",null,null,14,"","//dot/dfsroot01/cccommon/provisions/01a  Automated Proposal Line Up Sheet/2012 Standard Provisions/","","",""]
["i",null,null,null,"Guardrail Items",null,null,null,"",null,null,0,"","//dot/dfsroot01/cccommon/provisions/01a  Automated Proposal Line Up Sheet/2012 Standard Provisions/","","",""]
["i",null,null,null,"Fencing Items",null,null,null,"",null,null,0,{"$f":"IF(RIGHT(LEFT(E248,2),1)=\":\",E248,\"\")","v":""},"//dot/dfsroot01/cccommon/provisions/01a  Automated Proposal Line Up Sheet/2012 Standard Provisions/","","",""]
["i",null,null,null,"Signing Items",null,null,null,"",null,null,0,"","//dot/dfsroot01/cccommon/provisions/01a  Automated Proposal Line Up Sheet/2012 Standard Provisions/","",{"$f":"CONCATENATE(M249,O249)","v":""},""]
["i",null,null,null,"Long-Life Pavement Markings (Cold Applied Types 1, 2, 3, Thermoplastic, or Polyurea)",null,null,null,"",null,null,0,"","//dot/dfsroot01/cccommon/provisions/01a  Automated Proposal Line Up Sheet/2012 Standard Provisions/","","",""]
["i",null,null,null,"Removable Tape (Cold Applied Type 4 ONLY)",null,null,null,"",null,null,0,"","//dot/dfsroot01/cccommon/provisions/01a  Automated Proposal Line Up Sheet/2012 Standard Provisions/","","",""]
["i",null,null,null,"Permanent Pavement Markers",null,null,null,"",null,null,0,"","//dot/dfsroot01/cccommon/provisions/01a  Automated Proposal Line Up Sheet/2012 Standard Provisions/","","",""]
["i",null,null,null,"Lighting Items (May include Structure items.  Do NOT include Portable Lighting)",null,null,null,"",null,null,0,"","//dot/dfsroot01/cccommon/provisions/01a  Automated Proposal Line Up Sheet/2012 Standard Provisions/","","",""]
["i",null,null,null,"Utility Construction Items (May include Utility items on structure.)",null,null,null,"",null,null,0,"","//dot/dfsroot01/cccommon/provisions/01a  Automated Proposal Line Up Sheet/2012 Standard Provisions/","","",""]
["i",null,null,null,"Erosion Control Items (Object Markers and 7' U-posts are NOT Specialty Items)",null,null,null,"",null,null,0,"","//dot/dfsroot01/cccommon/provisions/01a  Automated Proposal Line Up Sheet/2012 Standard Provisions/","","",""]
["i",null,null,null,"Reforestation Items",null,null,null,"",null,null,0,"","//dot/dfsroot01/cccommon/provisions/01a  Automated Proposal Line Up Sheet/2012 Standard Provisions/","","",""]
["i",null,null,null,"Planting Items",null,null,null,"",null,null,0,"","//dot/dfsroot01/cccommon/provisions/01a  Automated Proposal Line Up Sheet/2012 Standard Provisions/","","",""]
["i",null,null,null,"Rest Area Items (Check for proprietary Items.  List minimum of 3 brands.)",null,null,null,"",null,null,0,"","//dot/dfsroot01/cccommon/provisions/01a  Automated Proposal Line Up Sheet/2012 Standard Provisions/","","",""]
["i",null,null,null,"Signal Items / ITS System Items",null,null,null,"",null,null,0,"","//dot/dfsroot01/cccommon/provisions/01a  Automated Proposal Line Up Sheet/2012 Standard Provisions/","","",""]
["i",null,null,null,"Drilled Piers (Include SID Inspection, SPT Testing, & Crosshole Sonic Logging.)",null,null,null,"",null,null,0,{"$f":"IF(RIGHT(LEFT(E260,2),1)=\":\",E260,\"\")","v":""},"//dot/dfsroot01/cccommon/provisions/01a  Automated Proposal Line Up Sheet/2012 Standard Provisions/","","",""]
["PSP",null,null,null,"Click Here to Add Additional Project Specific Provisions","CentralGeneral;CentralResurfacing;CentralStructures;CentralRail;DivGeneral;DivResurf;DivStructures;DivSBEGeneral;DivSBEResurf;Federal;State;Permits;NoPerm",null,null,null,null,null,null,"","//dot/dfsroot01/cccommon/provisions/01a  Automated Proposal Line Up Sheet/2012 Standard Provisions/","","",""]
[53,null,"SP1 G040","SP01G","SPECIAL REQUIREMENTS FOR NATIONAL FORESTS","CentralGeneral;CentralStructures;CentralRail;DivGeneral;DivStructures;DivSBEGeneral;Federal;State;Permits;NoPerm","1995-07","SP01_G040__Special_Requirmnt_National_Forest.docx","Use this provision if project is located in a National Forest.",null,null,null,"","//dot/dfsroot01/cccommon/provisions/01a  Automated Proposal Line Up Sheet/2012 Standard Provisions/","","",""]
["PSP",null,null,null,"Click Here to Add Additional Project Specific Provisions","CentralGeneral;CentralStructures;CentralRail;DivGeneral;DivStructures;DivSBEGeneral;Federal;State;Permits;NoPerm",null,null,null,null,null,null,"","//dot/dfsroot01/cccommon/provisions/01a  Automated Proposal Line Up Sheet/2012 Standard Provisions/","","",""]
[54,null,"SP01 G043","SP01G","FUEL PRICE ADJUSTMENT","CentralGeneral;CentralResurfacing;CentralStructures;CentralRail;DivGeneral;DivResurf;DivStructures;DivSBEGeneral;DivSBEResurf;Federal;State;Permits;NoPerm","2012-01","SP01_G043__Fuel_Price_Adjustment.docx","All Projects.  Base Index Price is posted on Const. website, updated monthly.",null,null,1,"","//dot/dfsroot01/cccommon/provisions/01a  Automated Proposal Line Up Sheet/2012 Standard Provisions/","","",""]
["i",null,null,null,"Fuel Price per Gallon",null,null,null,null,null,null,0,"","//dot/dfsroot01/cccommon/provisions/01a  Automated Proposal Line Up Sheet/2012 Standard Provisions/","","",""]
["PSP",null,null,null,"Click Here to Add Additional Project Specific Provisions","CentralGeneral;CentralResurfacing;CentralStructures;CentralRail;DivGeneral;DivResurf;DivStructures;DivSBEGeneral;DivSBEResurf;Federal;State;Permits;NoPerm",null,null,null,null,null,null,"","//dot/dfsroot01/cccommon/provisions/01a  Automated Proposal Line Up Sheet/2012 Standard Provisions/","","",""]
[55,null,"SP01 G057","SP01G","PAYOUT SCHEDULE","CentralGeneral;CentralStructures;CentralRail;DivGeneral;DivStructures;DivSBEGeneral;Federal;State;Permits;NoPerm","2012-01","SP01_G057__Payout_Schedule.docx","Projects of $50 million+.",null,null,0,"","//dot/dfsroot01/cccommon/provisions/01a  Automated Proposal Line Up Sheet/2012 Standard Provisions/","","",""]
["PSP",null,null,null,"Click Here to Add Additional Project Specific Provisions","CentralGeneral;CentralStructures;CentralRail;DivGeneral;DivStructures;DivSBEGeneral;Federal;State;Permits;NoPerm",null,null,null,null,null,null,"","//dot/dfsroot01/cccommon/provisions/01a  Automated Proposal Line Up Sheet/2012 Standard Provisions/","","",""]
[56,null,"SP01 G058","SP01G","SCHEDULE OF ESTIMATED COMPLETION PROGRESS","CentralGeneral;CentralResurfacing;CentralStructures;CentralRail;DivGeneral;DivResurf;DivStructures;DivSBEGeneral;DivSBEResurf;Federal;State;Permits;NoPerm","2013-05","SP01_G058__Schedule_Est_Completion_Progress.docx","All Projects.  Progress Dollar Value Percentages for Raleigh Let  will be supplied by Contract Time Engineer.",null,null,5,"","//dot/dfsroot01/cccommon/provisions/01a  Automated Proposal Line Up Sheet/2012 Standard Provisions/","","",""]
["i",null,null,null,"2016 (7/1/15 - 6/30/16)",null,null,null,null,null,null,0,"","//dot/dfsroot01/cccommon/provisions/01a  Automated Proposal Line Up Sheet/2012 Standard Provisions/","","","",null,{"$f":"IF(I270,TEXT(I270*100,\"0\"),\"\")","v":""}]
["i",null,null,null,"2017 (7/1/16 - 6/30/17)",null,null,null,null,null,null,0,"","//dot/dfsroot01/cccommon/provisions/01a  Automated Proposal Line Up Sheet/2012 Standard Provisions/","","","",null,{"$f":"IF(I271,TEXT(I271*100,\"0\"),\"\")","v":""}]
["i",null,"Must Equal 100.0:",null,"2018 (7/1/17 - 6/30/18)",null,null,null,null,null,null,0,"",{"$f":"+$P$6","v":"//dot/dfsroot01/cccommon/provisions/01a  Automated Proposal Line Up Sheet/2012 Standard Provisions/"},"","","",null,""]
["i",null,{"$f":"SUM(I270:I274)*100","v":0},null,"2019 (7/1/18 - 6/30/19)",null,null,null,null,null,null,0,"","//dot/dfsroot01/cccommon/provisions/01a  Automated Proposal Line Up Sheet/2012 Standard Provisions/","","","",null,""]
["i",null,null,null,"2020 (7/1/19 - 6/30/20)",null,null,null,null,null,null,0,"","//dot/dfsroot01/cccommon/provisions/01a  Automated Proposal Line Up Sheet/2012 Standard Provisions/","","","",null,""]
["PSP",null,null,null,"Click Here to Add Additional Project Specific Provisions","CentralGeneral;CentralResurfacing;CentralStructures;CentralRail;DivGeneral;DivResurf;DivStructures;DivSBEGeneral;DivSBEResurf;Federal;State;Permits;NoPerm",null,null,null,null,null,null,"","//dot/dfsroot01/cccommon/provisions/01a  Automated Proposal Line Up Sheet/2012 Standard Provisions/","","",""]
[57,null,"SP01 G061","SP01G","DISADVANTAGED BUSINESS ENTERPRISES (Central Let)","CentralGeneral;CentralResurfacing;CentralStructures;Federal;Permits;NoPerm","2013-12","SP01_G061__DBE_provision_for_Central_Let.docx","All Federal Aid Projects EVEN IF ZERO GOAL.",null,null,1,"","//dot/dfsroot01/cccommon/provisions/01a  Automated Proposal Line Up Sheet/2012 Standard Provisions/","","",""]
["i",null,null,null,"DBE %",null,null,null,null,null,null,0,"","//dot/dfsroot01/cccommon/provisions/01a  Automated Proposal Line Up Sheet/2012 Standard Provisions/","","","",null,{"$f":"IF(I277,TEXT(I277*100,\"0.0\"),\"\")","v":""}]
["PSP",null,null,null,"Click Here to Add Additional Project Specific Provisions","CentralGeneral;CentralResurfacing;CentralStructures;Federal;Permits;NoPerm",null,null,null,null,null,null,"","//dot/dfsroot01/cccommon/provisions/01a  Automated Proposal Line Up Sheet/2012 Standard Provisions/","","",""]
[null,null,"SP01 G062","SP01G","DISADVANTAGED BUSINESS ENTERPRISES (Division)","DivGeneral;DivResurf;DivStructures;DivSBEGeneral;DivSBEResurf;Federal;Permits;NoPerm","2013-12","SP01_G062__DBE_provision_for_Divisions.docx","All Federal Aid Projects EVEN IF ZERO GOAL.",null,null,2,"","//dot/dfsroot01/cccommon/provisions/01a  Automated Proposal Line Up Sheet/2012 Standard Provisions/","","",""]
[null,null,null,null,"DBE %",null,null,null,null,null,null,null,"","//dot/dfsroot01/cccommon/provisions/01a  Automated Proposal Line Up Sheet/2012 Standard Provisions/","","","",null,{"$f":"IF(I280,TEXT(I280*100,\"0.0\"),\"\")","v":""}]
[null,null,null,null,"No. of Copies of Good Faith",null,null,null,null,null,null,null,{"$f":"IF(RIGHT(LEFT(E281,2),1)=\":\",E281,\"\")","v":""},"//dot/dfsroot01/cccommon/provisions/01a  Automated Proposal Line Up Sheet/2012 Standard Provisions/",{"$f":"IF(N281=\"\",\"\",IF(H281=\"\",\"\",IF(+B281=\"a\",CONCATENATE(+N281,+H281),\"\")))","v":""},"",""]
[null,null,null,null,"Click Here to Add Additional Project Specific Provisions","DivGeneral;DivResurf;DivStructures;DivSBEGeneral;DivSBEResurf;Federal;Permits;NoPerm",null,null,null,null,null,null,"","//dot/dfsroot01/cccommon/provisions/01a  Automated Proposal Line Up Sheet/2012 Standard Provisions/","","",""]
[null,null,"SP01 G063","SP01G","DISADVANTAGED BUSINESS ENTERPRISES (Local Government Agency)","LGAGeneral;LGAResurf;Federal;Permits;NoPerm","2013-12","SP01_G063__DBE_provision_for_LGAs.docx","LGA Let only! All Federal Aid Projects EVEN IF ZERO GOAL.",null,null,4,"","//dot/dfsroot01/cccommon/provisions/01a  Automated Proposal Line Up Sheet/2012 Standard Provisions/","","",""]
[null,null,null,null,"DBE %",null,null,null,null,null,null,null,"","//dot/dfsroot01/cccommon/provisions/01a  Automated Proposal Line Up Sheet/2012 Standard Provisions/",{"$f":"IF(N284=\"\",\"\",IF(H284=\"\",\"\",IF(+#REF!=\"a\",CONCATENATE(+N284,+H284),\"\")))","v":""},"","",null,""]
[null,null,null,null,"LGA Name",null,null,null,"",null,null,null,{"$f":"IF(RIGHT(LEFT(E285,2),1)=\":\",E285,\"\")","v":""},"//dot/dfsroot01/cccommon/provisions/01a  Automated Proposal Line Up Sheet/2012 Standard Provisions/",{"$f":"IF(N285=\"\",\"\",IF(H285=\"\",\"\",IF(+B285=\"a\",CONCATENATE(+N285,+H285),\"\")))","v":""},"",""]
[null,null,null,null,"LGA Engineer Title/Department",null,null,null,null,null,null,null,"","//dot/dfsroot01/cccommon/provisions/01a  Automated Proposal Line Up Sheet/2012 Standard Provisions/","","","",null,{"$f":"IF(I286,TEXT(I286*100,\"0.0\"),\"\")","v":""}]
[null,null,null,null,"No. of Copies of Good Faith",null,null,null,null,null,null,null,"","//dot/dfsroot01/cccommon/provisions/01a  Automated Proposal Line Up Sheet/2012 Standard Provisions/","","","",null,""]
[null,null,null,null,"Click Here to Add Additional Project Specific Provisions","LGAGeneral;LGAResurf;Federal;Permits;NoPerm",null,null,null,null,null,null,"","//dot/dfsroot01/cccommon/provisions/01a  Automated Proposal Line Up Sheet/2012 Standard Provisions/","","",""]
[null,null,"SP01 G064","SP01G","DISADVANTAGED BUSINESS ENTERPRISE (Rail)","CentralRail;Federal;Permits;NoPerm","2013-05","SP01_G064__DBE_provision_for_Railroad.docx","All RAIL ARRA Projects  GOAL =10%.       (Central Let only)",null,null,0,"","//dot/dfsroot01/cccommon/provisions/01a  Automated Proposal Line Up Sheet/2012 Standard Provisions/","","",""]
[null,null,null,null,"Click Here to Add Additional Project Specific Provisions","CentralRail;Federal;Permits;NoPerm",null,null,null,null,null,null,"","//dot/dfsroot01/cccommon/provisions/01a  Automated Proposal Line Up Sheet/2012 Standard Provisions/","","",""]
[null,null,"SP01 G066","SP01G","MINORITY AND WOMEN BUSINESSES (Central Let)","CentralGeneral;CentralResurfacing;CentralStructures;State;Permits;NoPerm","2013-12","SP01_G066__MBE_WBE_for_Central_Let.docx","All State Funded Projects EVEN IF ZERO GOAL.",null,null,2,"","//dot/dfsroot01/cccommon/provisions/01a  Automated Proposal Line Up Sheet/2012 Standard Provisions/","","",""]
[null,null,null,null,"MBE %",null,null,null,null,null,null,0,"","//dot/dfsroot01/cccommon/provisions/01a  Automated Proposal Line Up Sheet/2012 Standard Provisions/","","","",null,""]
["i",null,null,null,"WBE %",null,null,null,null,null,null,0,"","//dot/dfsroot01/cccommon/provisions/01a  Automated Proposal Line Up Sheet/2012 Standard Provisions/",{"$f":"IF(N293=\"\",\"\",IF(H293=\"\",\"\",IF(+B293=\"a\",CONCATENATE(+N293,+H293),\"\")))","v":""},"","",null,""]
["PSP",null,null,null,"Click Here to Add Additional Project Specific Provisions","CentralGeneral;CentralResurfacing;CentralStructures;State;Permits;NoPerm",null,null,null,null,null,null,"","//dot/dfsroot01/cccommon/provisions/01a  Automated Proposal Line Up Sheet/2012 Standard Provisions/","","",""]
[62,null,"SP01 G067","SP01G","MINORITY AND WOMEN BUSINESSES (Division)","DivGeneral;DivResurf;DivStructures;DivSBEGeneral;DivSBEResurf;State;Permits;NoPerm","2013-12","SP01_G067__MBE_WBE_for_Divisions.docx","All State Funded Projects EVEN IF ZERO GOAL.",null,null,3,"","//dot/dfsroot01/cccommon/provisions/01a  Automated Proposal Line Up Sheet/2012 Standard Provisions/","","",{"$f":"IF(B295=\"a\",+C295,+M295)","v":""}]
["i",null,null,null,"MBE %",null,null,null,null,null,null,null,"","//dot/dfsroot01/cccommon/provisions/01a  Automated Proposal Line Up Sheet/2012 Standard Provisions/","","","",null,""]
["i",null,null,null,"WBE %",null,null,null,null,null,null,null,"","//dot/dfsroot01/cccommon/provisions/01a  Automated Proposal Line Up Sheet/2012 Standard Provisions/","","","",null,""]
["i",null,null,null,"No. of Copies of Good Faith",null,null,null,null,null,null,null,{"$f":"IF(RIGHT(LEFT(E298,2),1)=\":\",E298,\"\")","v":""},"//dot/dfsroot01/cccommon/provisions/01a  Automated Proposal Line Up Sheet/2012 Standard Provisions/",{"$f":"IF(N298=\"\",\"\",IF(H298=\"\",\"\",IF(+B298=\"a\",CONCATENATE(+N298,+H298),\"\")))","v":""},"","",null,{"$f":"IF(I298,TEXT(I298*100,\"0.0\"),\"\")","v":""}]
["PSP",null,null,null,"Click Here to Add Additional Project Specific Provisions","DivGeneral;DivResurf;DivStructures;DivSBEGeneral;DivSBEResurf;State;Permits;NoPerm",null,null,null,null,null,null,"","//dot/dfsroot01/cccommon/provisions/01a  Automated Proposal Line Up Sheet/2012 Standard Provisions/","","",""]
[63,null,"SP01 G068","SP01G","MINORITY AND WOMEN BUSINESSES (Local Government Agency)","LGAGeneral;LGAResurf;State;Permits;NoPerm","2013-12","SP01_G068__MBE WBE for LGAs.docx","LGA Let only! All State Funded Projects EVEN IF ZERO GOAL.",null,null,5,"","//dot/dfsroot01/cccommon/provisions/01a  Automated Proposal Line Up Sheet/2012 Standard Provisions/","","",""]
["i",null,null,null,"MBE %",null,null,null,null,null,null,null,"","//dot/dfsroot01/cccommon/provisions/01a  Automated Proposal Line Up Sheet/2012 Standard Provisions/","","","",null,""]
["i",null,null,null,"WBE %",null,null,null,null,null,null,null,"","//dot/dfsroot01/cccommon/provisions/01a  Automated Proposal Line Up Sheet/2012 Standard Provisions/","","","",null,""]
["i",null,null,null,"LGA Name",null,null,null,null,null,null,null,{"$f":"IF(RIGHT(LEFT(E303,2),1)=\":\",E303,\"\")","v":""},"//dot/dfsroot01/cccommon/provisions/01a  Automated Proposal Line Up Sheet/2012 Standard Provisions/",{"$f":"IF(N303=\"\",\"\",IF(H303=\"\",\"\",IF(+B303=\"a\",CONCATENATE(+N303,+H303),\"\")))","v":""},"","",null,{"$f":"IF(I303,TEXT(I303*100,\"0.0\"),\"\")","v":""}]
["i",null,null,null,"LGA Engineer Title/Department",null,null,null,null,null,null,null,"","//dot/dfsroot01/cccommon/provisions/01a  Automated Proposal Line Up Sheet/2012 Standard Provisions/","","","",null,""]
["i",null,null,null,"No. of Copies of Good Faith",null,null,null,null,null,null,null,"","//dot/dfsroot01/cccommon/provisions/01a  Automated Proposal Line Up Sheet/2012 Standard Provisions/","","","",null,""]
["PSP",null,null,null,"Click Here to Add Additional Project Specific Provisions","LGAGeneral;LGAResurf;State;Permits;NoPerm",null,null,null,null,null,null,"","//dot/dfsroot01/cccommon/provisions/01a  Automated Proposal Line Up Sheet/2012 Standard Provisions/","","",""]
[63,null,"SP01 G070","SP01G","ARRA AND OERI CONTRACT PROVISIONS AND REPORTING REQUIREMENT CERTIFICATION","CentralRail;Federal;Permits;NoPerm","2013-05","SP01_G070__ARRA_and_OERI_Contract_Provisions.docx","All FRA ARRA Projects (Central Let Only).",null,null,0,"","//dot/dfsroot01/cccommon/provisions/01a  Automated Proposal Line Up Sheet/2012 Standard Provisions/","","",""]
["PSP",null,null,null,"Click Here to Add Additional Project Specific Provisions","CentralRail;Federal;Permits;NoPerm",null,null,null,null,null,null,"","//dot/dfsroot01/cccommon/provisions/01a  Automated Proposal Line Up Sheet/2012 Standard Provisions/","","",""]
[64,null,"SP01 G071","SP01G","SPECIAL NOTICE TO BIDDERS","CentralRail;Federal;Permits;NoPerm","2013-10","SP01_G071__Special_Notice_To_Bidders_﴾Rail﴿.docx","Use for FRA ARRA Projects with new railroad roadbed (Central Let Only).",null,null,0,"","//dot/dfsroot01/cccommon/provisions/01a  Automated Proposal Line Up Sheet/2012 Standard Provisions/","","",""]
["PSP",null,null,null,"Click Here to Add Additional Project Specific Provisions","CentralRail;Federal;Permits;NoPerm",null,null,null,null,null,null,"","//dot/dfsroot01/cccommon/provisions/01a  Automated Proposal Line Up Sheet/2012 Standard Provisions/","","",""]
[65,null,"SP01 G072","SP01G","PREQUALIFICATION OF RAIL ROAD GRADING CONTRACTORS (PIP)","CentralRail;Federal;Permits;NoPerm","2013-02","SP01_G072__Prequalification_of_Rail_Road_Grading_Contractors_PIP.docx","Use for FRA ARRA Projects with Grading (Central Let Only).",null,null,0,"","//dot/dfsroot01/cccommon/provisions/01a  Automated Proposal Line Up Sheet/2012 Standard Provisions/","","",""]
["PSP",null,null,null,"Click Here to Add Additional Project Specific Provisions","CentralRail;Federal;Permits;NoPerm",null,null,null,null,null,null,"","//dot/dfsroot01/cccommon/provisions/01a  Automated Proposal Line Up Sheet/2012 Standard Provisions/","","",""]
[66,null,"SP01 G073","SP01G","PROTECTION OF RAILROAD INTEREST","CentralRail;Federal;Permits;NoPerm","2013-10","SP01_G073__Protection_of_Railroad_Interest.docx","ALL RAIL ARRA Projects (Central let only)  (Need Train Data and Project Information from Rail)",null,null,0,"","//dot/dfsroot01/cccommon/provisions/01a  Automated Proposal Line Up Sheet/2012 Standard Provisions/","",{"$f":"CONCATENATE(M313,O313)","v":""},""]
["PSP",null,null,null,"Click Here to Add Additional Project Specific Provisions","CentralRail;Federal;Permits;NoPerm",null,null,null,null,null,null,"","//dot/dfsroot01/cccommon/provisions/01a  Automated Proposal Line Up Sheet/2012 Standard Provisions/","","",""]
[67,null,"SP01 G085","SP01G","CERTIFICATION FOR FEDERAL-AID CONTRACTS","CentralGeneral;CentralResurfacing;CentralStructures;CentralRail;DivGeneral;DivResurf;DivStructures;DivSBEGeneral;DivSBEResurf;Federal;Permits;NoPerm","1990-03","SP01_G085__Certification_for_Federal_Projects.docx","All Federal Aid Projects.",null,null,0,"","//dot/dfsroot01/cccommon/provisions/01a  Automated Proposal Line Up Sheet/2012 Standard Provisions/","","",""]
["PSP",null,null,null,"Click Here to Add Additional Project Specific Provisions","CentralGeneral;CentralResurfacing;CentralStructures;CentralRail;DivGeneral;DivResurf;DivStructures;DivSBEGeneral;DivSBEResurf;Federal;Permits;NoPerm",null,null,null,null,null,null,"","//dot/dfsroot01/cccommon/provisions/01a  Automated Proposal Line Up Sheet/2012 Standard Provisions/","","",""]
[62,null,"SP01 G088","SP01G","CONTRACTOR'S LICENSE REQUIREMENTS","CentralGeneral;CentralResurfacing;CentralStructures;CentralRail;DivGeneral;DivResurf;DivStructures;DivSBEGeneral;DivSBEResurf;Federal;State;Permits;NoPerm","1995-07","SP01_G088__Contractors_License_Requirement.docx","All projects where heating, plumbing, air conditioning,or any electrical work is required. Includes Rest Areas,Weigh Stations, Signals, ITS, and Lighting (either street or signing).  Check Item List.",null,null,null,"","//dot/dfsroot01/cccommon/provisions/01a  Automated Proposal Line Up Sheet/2012 Standard Provisions/","","",""]
["PSP",null,null,null,"Click Here to Add Additional Project Specific Provisions","CentralGeneral;CentralResurfacing;CentralStructures;CentralRail;DivGeneral;DivResurf;DivStructures;DivSBEGeneral;DivSBEResurf;Federal;State;Permits;NoPerm",null,null,null,null,null,null,"","//dot/dfsroot01/cccommon/provisions/01a  Automated Proposal Line Up Sheet/2012 Standard Provisions/","","",""]
[68,null,"SP01 G100","SP01G","U.S. DEPARTMENT OF TRANSPORTATION HOTLINE (Federal Aid Projects)","CentralGeneral;CentralResurfacing;CentralStructures;CentralRail;DivGeneral;DivResurf;DivStructures;DivSBEGeneral;DivSBEResurf;Federal;Permits;NoPerm","1994-11","SP01_G100__US_DOT_Hotline.docx","All Federal Aid Projects.",null,null,0,"","//dot/dfsroot01/cccommon/provisions/01a  Automated Proposal Line Up Sheet/2012 Standard Provisions/","","",""]
["PSP",null,null,null,"Click Here to Add Additional Project Specific Provisions","CentralGeneral;CentralResurfacing;CentralStructures;CentralRail;DivGeneral;DivResurf;DivStructures;DivSBEGeneral;DivSBEResurf;Federal;Permits;NoPerm",null,null,null,null,null,null,{"$f":"IF(RIGHT(LEFT(E320,2),1)=\":\",E320,\"\")","v":""},"//dot/dfsroot01/cccommon/provisions/01a  Automated Proposal Line Up Sheet/2012 Standard Provisions/","","",""]
[69,null,"SP01 G103","SP01G","SUBMISSION OF RECORDS (Federal Aid BRZ Projects)","CentralGeneral;CentralStructures;DivGeneral;Federal;Permits;NoPerm","2012-08","SP01_G103__Submit_Records_for_Federal_Aid.docx","BRZ Federal Aid Projects.",null,null,0,"","//dot/dfsroot01/cccommon/provisions/01a  Automated Proposal Line Up Sheet/2012 Standard Provisions/","","",""]
["PSP",null,null,null,"Click Here to Add Additional Project Specific Provisions","CentralGeneral;CentralStructures;DivGeneral;Federal;Permits;NoPerm",null,null,null,null,null,null,"","//dot/dfsroot01/cccommon/provisions/01a  Automated Proposal Line Up Sheet/2012 Standard Provisions/","","",""]
[70,null,"SP01 G112A","SP01G","SUBSURFACE INFORMATION (Information Not Available)","CentralGeneral;CentralStructures;CentralRail;DivGeneral;DivStructures;DivSBEGeneral;Federal;State;Permits;NoPerm","1995-07","SP01_G112_A__Subsurface_Info_Not_Available.docx","All Projects have either A, B, C, or D.  Check for Roadway Subsurface Plans.  Bridge projects will always have Structure Subsurface Plans. If project has a Culvert or Retaining Wall, and you do not have subsurface plans for these, contact Geotech.  Note that the Subsurface Plans must be labeled \"Inventory\".  If it is labeled \"Recommendations\", it should NOT be used.  Return to Geotech. BRIDGE MAINT. Projects should have Subsurface plans.  If not, contact Bridge Maint.",null,null,0,"","//dot/dfsroot01/cccommon/provisions/01a  Automated Proposal Line Up Sheet/2012 Standard Provisions/","","",""]
["PSP",null,null,null,"Click Here to Add Additional Project Specific Provisions","CentralGeneral;CentralStructures;CentralRail;DivGeneral;DivStructures;DivSBEGeneral;Federal;State;Permits;NoPerm",null,null,null,null,null,null,"","//dot/dfsroot01/cccommon/provisions/01a  Automated Proposal Line Up Sheet/2012 Standard Provisions/","","",""]
[71,null,"SP01 G112B","SP01G","SUBSURFACE INFORMATION (Roadway only)","CentralGeneral;CentralStructures;CentralRail;DivGeneral;DivStructures;DivSBEGeneral;Federal;State;Permits;NoPerm","1995-07","SP01_G112_B__Subsurface_Info_Roadway.docx","All Projects have either A, B, C, or D.  ",null,null,0,"","//dot/dfsroot01/cccommon/provisions/01a  Automated Proposal Line Up Sheet/2012 Standard Provisions/","","",""]
["PSP",null,null,null,"Click Here to Add Additional Project Specific Provisions","CentralGeneral;CentralStructures;CentralRail;DivGeneral;DivStructures;DivSBEGeneral;Federal;State;Permits;NoPerm",null,null,null,null,null,null,"","//dot/dfsroot01/cccommon/provisions/01a  Automated Proposal Line Up Sheet/2012 Standard Provisions/","","",""]
[72,null,"SP01 G112C","SP01G","SUBSURFACE INFORMATION (Structures only)","CentralGeneral;CentralStructures;CentralRail;DivGeneral;DivStructures;DivSBEGeneral;Federal;State;Permits;NoPerm","1995-07","SP01_G112_C__Subsurface_Info_Structures.docx","All Projects have either A, B, C, or D.  ",null,null,0,"","//dot/dfsroot01/cccommon/provisions/01a  Automated Proposal Line Up Sheet/2012 Standard Provisions/","","",""]
["PSP",null,null,null,"Click Here to Add Additional Project Specific Provisions","CentralGeneral;CentralStructures;CentralRail;DivGeneral;DivStructures;DivSBEGeneral;Federal;State;Permits;NoPerm",null,null,null,null,null,null,"","//dot/dfsroot01/cccommon/provisions/01a  Automated Proposal Line Up Sheet/2012 Standard Provisions/","","",""]
[73,null,"SP01 G112D","SP01G","SUBSURFACE INFORMATION (Roadway and Structures)","CentralGeneral;CentralStructures;CentralRail;DivGeneral;DivStructures;DivSBEGeneral;Federal;State;Permits;NoPerm","1995-07","SP01_G112_D__Subsurface_Info_Rdwy_and_Struct.docx","All Projects have either A, B, C, or D.  ",null,null,0,"","//dot/dfsroot01/cccommon/provisions/01a  Automated Proposal Line Up Sheet/2012 Standard Provisions/","","",""]
["PSP",null,null,null,"Click Here to Add Additional Project Specific Provisions","CentralGeneral;CentralStructures;CentralRail;DivGeneral;DivStructures;DivSBEGeneral;Federal;State;Permits;NoPerm",null,null,null,null,null,null,"","//dot/dfsroot01/cccommon/provisions/01a  Automated Proposal Line Up Sheet/2012 Standard Provisions/","","",""]
[74,null,"SP01 G115","SP01G","LOCATING EXISTING UNDERGROUND UTILITIES","CentralGeneral;CentralResurfacing;CentralStructures;CentralRail;DivGeneral;DivResurf;DivStructures;DivSBEGeneral;DivSBEResurf;Federal;State;Permits;NoPerm","2012-03","SP01_G115__Locating_Existing_Utilities.docx","All projects.  The provision is used for locating utilities when excavation or sign relocation is part of the project.",null,null,0,"","//dot/dfsroot01/cccommon/provisions/01a  Automated Proposal Line Up Sheet/2012 Standard Provisions/","","",""]
["PSP",null,null,null,"Click Here to Add Additional Project Specific Provisions","CentralGeneral;CentralResurfacing;CentralStructures;CentralRail;DivGeneral;DivResurf;DivStructures;DivSBEGeneral;DivSBEResurf;Federal;State;Permits;NoPerm",null,null,null,null,null,null,"","//dot/dfsroot01/cccommon/provisions/01a  Automated Proposal Line Up Sheet/2012 Standard Provisions/","","",""]
[75,null,"SP01 G116","SP01G","VALUE ENGINEERING PROPOSAL","CentralGeneral;CentralStructures;CentralRail;Federal;State;Permits;NoPerm","2015-05","SP01_G116__Value Engineering Proposal.docx","All Central Let TIP Projects.",null,null,0,{"$f":"IF(RIGHT(LEFT(E333,2),1)=\":\",E333,\"\")","v":""},"//dot/dfsroot01/cccommon/provisions/01a  Automated Proposal Line Up Sheet/2012 Standard Provisions/",{"$f":"IF(N333=\"\",\"\",IF(H333=\"\",\"\",IF(+B333=\"a\",CONCATENATE(+N333,+H333),\"\")))","v":""},{"$f":"CONCATENATE(M333,O333)","v":""},{"$f":"IF(B333=\"a\",+C333,+M333)","v":""}]
["PSP",null,null,null,"Click Here to Add Additional Project Specific Provisions","CentralGeneral;CentralStructures;CentralRail;Federal;State;Permits;NoPerm",null,null,null,null,null,null,"","//dot/dfsroot01/cccommon/provisions/01a  Automated Proposal Line Up Sheet/2012 Standard Provisions/","","",""]
[75,null,"SP01 G118","SP01G","RESOURCE CONSERVATION","CentralGeneral;CentralResurfacing;CentralStructures;CentralRail;DivGeneral;DivResurf;DivStructures;DivSBEGeneral;DivSBEResurf;Federal;State;Permits;NoPerm","2015-05","SP01_G118__Resource Conservation.docx","All Projects.",null,null,0,"","//dot/dfsroot01/cccommon/provisions/01a  Automated Proposal Line Up Sheet/2012 Standard Provisions/","","",""]
["PSP",null,null,null,"Click Here to Add Additional Project Specific Provisions","CentralGeneral;CentralResurfacing;CentralStructures;CentralRail;DivGeneral;DivResurf;DivStructures;DivSBEGeneral;DivSBEResurf;Federal;State;Permits;NoPerm",null,null,null,null,null,null,"","//dot/dfsroot01/cccommon/provisions/01a  Automated Proposal Line Up Sheet/2012 Standard Provisions/","","",""]
[76,null,"SP01 G120","SP01G","DOMESTIC STEEL","CentralGeneral;CentralResurfacing;CentralStructures;CentralRail;DivGeneral;DivResurf;DivStructures;DivSBEGeneral;DivSBEResurf;Federal;State;Permits;NoPerm","2013-04","SP01_G120__Domestic Steel.docx","All projects.  The provision explains the way the Department is calculating the Buy America requirement.",null,null,0,"","//dot/dfsroot01/cccommon/provisions/01a  Automated Proposal Line Up Sheet/2012 Standard Provisions/","","",""]
["PSP",null,null,null,"Click Here to Add Additional Project Specific Provisions","CentralGeneral;CentralResurfacing;CentralStructures;CentralRail;DivGeneral;DivResurf;DivStructures;DivSBEGeneral;DivSBEResurf;Federal;State;Permits;NoPerm",null,null,null,null,null,null,"","//dot/dfsroot01/cccommon/provisions/01a  Automated Proposal Line Up Sheet/2012 Standard Provisions/","","",""]
[77,null,"SP01 G121","SP01G","PORTABLE CONC. BARRIER (Partial Payment for Mat's.)","CentralGeneral;CentralStructures;CentralRail;DivGeneral;DivStructures;DivSBEGeneral;Federal;State;Permits;NoPerm","2011-08","SP01_G121__Port_Concrt_Barrier_Pay_Materials.docx","Pay Items 4485-4495.  Use only if 1000 lf or greater of Portable Concrete Barrier is in estimate. ",null,null,0,"","//dot/dfsroot01/cccommon/provisions/01a  Automated Proposal Line Up Sheet/2012 Standard Provisions/","","",""]
["PSP",null,null,null,"Click Here to Add Additional Project Specific Provisions","CentralGeneral;CentralStructures;CentralRail;DivGeneral;DivStructures;DivSBEGeneral;Federal;State;Permits;NoPerm",null,null,null,null,null,null,"","//dot/dfsroot01/cccommon/provisions/01a  Automated Proposal Line Up Sheet/2012 Standard Provisions/","","",""]
[78,null,"SP01 G124","SP01G","REMOVABLE PVMT. MARKINGS (Partial Payment for Mat'l)","CentralGeneral;CentralResurfacing;CentralStructures;CentralRail;DivGeneral;DivResurf;DivStructures;DivSBEGeneral;DivSBEResurf;Federal;State;Permits;NoPerm","2011-08","SP01_G124__Removble_Pavmt_Markrs_Pay_Material.docx","Pay Items 4770-4805.  ONLY Type IV is Removable.  Use only if 1000 lf or greater of Cold Applied Plastic Pavement Marking Lines are in estimate.   ",null,null,0,"","//dot/dfsroot01/cccommon/provisions/01a  Automated Proposal Line Up Sheet/2012 Standard Provisions/","","",""]
["PSP",null,null,null,"Click Here to Add Additional Project Specific Provisions","CentralGeneral;CentralResurfacing;CentralStructures;CentralRail;DivGeneral;DivResurf;DivStructures;DivSBEGeneral;DivSBEResurf;Federal;State;Permits;NoPerm",null,null,null,null,null,null,"","//dot/dfsroot01/cccommon/provisions/01a  Automated Proposal Line Up Sheet/2012 Standard Provisions/","","",""]
[79,null,"SP01 G125","SP01G","MAINTENANCE OF THE PROJECT","CentralGeneral;CentralResurfacing;CentralStructures;CentralRail;DivGeneral;DivResurf;DivStructures;DivSBEGeneral;DivSBEResurf;Federal;State;Permits;NoPerm","2012-01","SP01_G125__Maintenance_of_the_Project.docx","All (except Div 5) Raleigh General Construction Projects regardless if Guardrail items in est. and TIP Resurfacings with guardrail.  Not for Division or Resurfacing typically. DO NOT use in Div. 5.  Includes Wake, Durham, Warren, Franklin, Vance, Person & Granville.",null,null,0,"","//dot/dfsroot01/cccommon/provisions/01a  Automated Proposal Line Up Sheet/2012 Standard Provisions/","","",""]
["PSP",null,null,null,"Click Here to Add Additional Project Specific Provisions","CentralGeneral;CentralResurfacing;CentralStructures;CentralRail;DivGeneral;DivResurf;DivStructures;DivSBEGeneral;DivSBEResurf;Federal;State;Permits;NoPerm",null,null,null,null,null,null,"","//dot/dfsroot01/cccommon/provisions/01a  Automated Proposal Line Up Sheet/2012 Standard Provisions/","","",""]
[80,null,"SP01 G133","SP01G","COOPERATION BETWEEN CONTRACTORS","CentralGeneral;CentralResurfacing;CentralStructures;CentralRail;DivGeneral;DivResurf;DivStructures;DivSBEGeneral;DivSBEResurf;Federal;State;Permits;NoPerm","1995-07","SP01_G133__Cooperation_Between_Contractors.docx","Raleigh Data will be supplied by Marsha Sample. Fill in project information and geographical relationship to this project.",null,null,0,"","//dot/dfsroot01/cccommon/provisions/01a  Automated Proposal Line Up Sheet/2012 Standard Provisions/","","",""]
["PSP",null,null,null,"Click Here to Add Additional Project Specific Provisions","CentralGeneral;CentralResurfacing;CentralStructures;CentralRail;DivGeneral;DivResurf;DivStructures;DivSBEGeneral;DivSBEResurf;Federal;State;Permits;NoPerm",null,null,null,null,null,null,"",{"$f":"+$P$6","v":"//dot/dfsroot01/cccommon/provisions/01a  Automated Proposal Line Up Sheet/2012 Standard Provisions/"},"","",""]
[81,null,"SP01 G142","SP01G","BID DOCUMENTATION","CentralGeneral;CentralStructures;Federal;State;Permits;NoPerm","2015-08","SP01_G142__Bid_Documentation.docx","If Project is over $25 million or has unique items, check w/Andy.",null,null,0,"","//dot/dfsroot01/cccommon/provisions/01a  Automated Proposal Line Up Sheet/2012 Standard Provisions/","","",""]
["PSP",null,null,null,"Click Here to Add Additional Project Specific Provisions","CentralGeneral;CentralStructures;Federal;State;Permits;NoPerm",null,null,null,null,null,null,"","//dot/dfsroot01/cccommon/provisions/01a  Automated Proposal Line Up Sheet/2012 Standard Provisions/","","",""]
[82,null,"SP01 G145","SP01G","TWELVE-MONTH GUARANTEE","CentralGeneral;CentralStructures;CentralRail;DivGeneral;DivStructures;DivSBEGeneral;Federal;State;Permits;NoPerm","2003-11","SP01_G145__12_Month_Guarantee_for_TIP_ONLY.docx","All Central Let Projects except those considered \"Signal Projects\".  Large Division or Municipal projects may include (structure projects).",null,null,0,"","//dot/dfsroot01/cccommon/provisions/01a  Automated Proposal Line Up Sheet/2012 Standard Provisions/","","",""]
["PSP",null,null,null,"Click Here to Add Additional Project Specific Provisions","CentralGeneral;CentralStructures;CentralRail;DivGeneral;DivStructures;DivSBEGeneral;Federal;State;Permits;NoPerm",null,null,null,null,null,null,{"$f":"IF(RIGHT(LEFT(E350,2),1)=\":\",E350,\"\")","v":""},"//dot/dfsroot01/cccommon/provisions/01a  Automated Proposal Line Up Sheet/2012 Standard Provisions/","","",""]
[83,null,"SP01 G146","SP01G","TWELVE-MONTH GUARANTEE (LGA ONLY)","LGAGeneral;Federal;State;Permits;NoPerm","2013-12","SP01_G146__12_Month_Guarantee_for_LGA_ONLY.docx","Large Local Government Projects except those considered \"Signal Projects\" (typically with structures).",null,null,0,{"$f":"IF(RIGHT(LEFT(E351,2),1)=\":\",E351,\"\")","v":""},"//dot/dfsroot01/cccommon/provisions/01a  Automated Proposal Line Up Sheet/2012 Standard Provisions/","","",""]
["PSP",null,null,null,"Click Here to Add Additional Project Specific Provisions","LGAGeneral;Federal;State;Permits;NoPerm",null,null,null,null,null,null,"","//dot/dfsroot01/cccommon/provisions/01a  Automated Proposal Line Up Sheet/2012 Standard Provisions/","","",""]
[83,null,"SP01 G150","SP01G","OUTSOURCING OUTSIDE U.S.A.","CentralGeneral;CentralResurfacing;CentralStructures;CentralRail;DivGeneral;DivResurf;DivStructures;DivSBEGeneral;DivSBEResurf;State;Permits;NoPerm","2006-05","SP01_G150__Outsourcing_Outside_the_USA.docx","State Funded Projects Only (No Federal Aid)",null,null,0,"","//dot/dfsroot01/cccommon/provisions/01a  Automated Proposal Line Up Sheet/2012 Standard Provisions/","","",""]
["PSP",null,null,null,"Click Here to Add Additional Project Specific Provisions","CentralGeneral;CentralResurfacing;CentralStructures;CentralRail;DivGeneral;DivResurf;DivStructures;DivSBEGeneral;DivSBEResurf;State;Permits;NoPerm",null,null,null,null,null,null,"","//dot/dfsroot01/cccommon/provisions/01a  Automated Proposal Line Up Sheet/2012 Standard Provisions/","","",""]
[84,null,"SP01 G152","SP01G","GIFTS FROM VENDORS AND CONTRACTORS","CentralGeneral;CentralResurfacing;CentralStructures;CentralRail;DivGeneral;DivResurf;DivStructures;DivSBEGeneral;DivSBEResurf;Federal;State;Permits;NoPerm","2009-12","SP01_G152__Gifts_from_Vendors_and_Contractors.docx","All Projects.",null,null,0,"","//dot/dfsroot01/cccommon/provisions/01a  Automated Proposal Line Up Sheet/2012 Standard Provisions/","","",""]
["PSP",null,null,null,"Click Here to Add Additional Project Specific Provisions","CentralGeneral;CentralResurfacing;CentralStructures;CentralRail;DivGeneral;DivResurf;DivStructures;DivSBEGeneral;DivSBEResurf;Federal;State;Permits;NoPerm",null,null,null,null,null,null,"","//dot/dfsroot01/cccommon/provisions/01a  Automated Proposal Line Up Sheet/2012 Standard Provisions/","","",""]
[84,null,"SP01 G160","SP01G","LIABILITY INSURANCE","CentralGeneral;CentralResurfacing;CentralStructures;CentralRail;DivGeneral;DivResurf;DivStructures;DivSBEGeneral;DivSBEResurf;Federal;State;Permits;NoPerm","2014-05","SP01_G160__Liability Insurance.docx","All Projects.",null,null,0,{"$f":"IF(RIGHT(LEFT(E357,2),1)=\":\",E357,\"\")","v":""},"//dot/dfsroot01/cccommon/provisions/01a  Automated Proposal Line Up Sheet/2012 Standard Provisions/",{"$f":"IF(N357=\"\",\"\",IF(H357=\"\",\"\",IF(+B357=\"a\",CONCATENATE(+N357,+H357),\"\")))","v":""},"",""]
["PSP",null,null,null,"Click Here to Add Additional Project Specific Provisions","CentralGeneral;CentralResurfacing;CentralStructures;CentralRail;DivGeneral;DivResurf;DivStructures;DivSBEGeneral;DivSBEResurf;Federal;State;Permits;NoPerm",null,null,null,null,null,null,"","//dot/dfsroot01/cccommon/provisions/01a  Automated Proposal Line Up Sheet/2012 Standard Provisions/","","",""]
[85,null,"SP01 G180","SP01G","EROSION & STORM WATER CERTIFICATION","CentralGeneral;CentralResurfacing;CentralStructures;CentralRail;DivGeneral;DivResurf;DivStructures;DivSBEGeneral;DivSBEResurf;Federal;State;Permits;NoPerm","2012-09","SP01_G180__Erosion_Sed_Control_Stormwatr_Cert.docx","Pay Item 1243 or 1245.  All Projects that have shoulder work or reconstruction. Also consider projects with seeding & mulching. Also, use SP16 R03.",null,null,0,"","//dot/dfsroot01/cccommon/provisions/01a  Automated Proposal Line Up Sheet/2012 Standard Provisions/","","",""]
["PSP",null,null,null,"Click Here to Add Additional Project Specific Provisions","CentralGeneral;CentralResurfacing;CentralStructures;CentralRail;DivGeneral;DivResurf;DivStructures;DivSBEGeneral;DivSBEResurf;Federal;State;Permits;NoPerm",null,null,null,null,null,null,"","//dot/dfsroot01/cccommon/provisions/01a  Automated Proposal Line Up Sheet/2012 Standard Provisions/","","",""]
[86,null,"SP01 G181","SP01G","PROCEDURE FOR MONITORING BORROW PIT DISCHARGE","CentralGeneral;CentralResurfacing;CentralStructures;CentralRail;DivGeneral;DivResurf;DivStructures;DivSBEGeneral;DivSBEResurf;Federal;State;Permits;NoPerm","2013-03","SP01_G181__Monitor Borrow Pit Discharge.docx","All Projects that have Earthwork, Grading or potential for Borrow.",null,null,0,"","//dot/dfsroot01/cccommon/provisions/01a  Automated Proposal Line Up Sheet/2012 Standard Provisions/","","",{"$f":"IF(B361=\"a\",+C361,+M361)","v":""}]
["PSP",null,null,null,"Click Here to Add Additional Project Specific Provisions","CentralGeneral;CentralResurfacing;CentralStructures;CentralRail;DivGeneral;DivResurf;DivStructures;DivSBEGeneral;DivSBEResurf;Federal;State;Permits;NoPerm",null,null,null,null,null,null,"","//dot/dfsroot01/cccommon/provisions/01a  Automated Proposal Line Up Sheet/2012 Standard Provisions/","","",""]
[87,null,"SP01 G182","SP01G","SUPPLEMENTAL CONTRACTOR EROSION CONTROL RESPONSIBILITIES (Rail)","CentralRail;Federal;State;Permits;NoPerm","2013-02","SP01_G182__Supplemental_Contractor_Erosion_Control_Responsibilities.docx","All Projects.",null,null,0,"","//dot/dfsroot01/cccommon/provisions/01a  Automated Proposal Line Up Sheet/2012 Standard Provisions/","","",""]
["PSP",null,null,null,"Click Here to Add Additional Project Specific Provisions","CentralRail;Federal;State;Permits;NoPerm",null,null,null,null,null,null,"","//dot/dfsroot01/cccommon/provisions/01a  Automated Proposal Line Up Sheet/2012 Standard Provisions/","","",""]
[88,null,"SP01 G183","SP01G","SUPPLEMENTAL RESPONSE FOR EROSION CONTROL (Rail)","CentralRail;Federal;State;Permits;NoPerm","2013-02","SP01_G183__Supplemental_Response_For_Erosion_Control.docx","All RAIL projects with Track and Earthwork, Grading or potential for Borrow. (Not Roadway only)",null,null,0,"","//dot/dfsroot01/cccommon/provisions/01a  Automated Proposal Line Up Sheet/2012 Standard Provisions/",{"$f":"IF(N365=\"\",\"\",IF(H365=\"\",\"\",IF(+B365=\"a\",CONCATENATE(+N365,+H365),\"\")))","v":""},"",""]
["PSP",null,null,null,"Click Here to Add Additional Project Specific Provisions","CentralRail;Federal;State;Permits;NoPerm",null,null,null,null,null,null,"","//dot/dfsroot01/cccommon/provisions/01a  Automated Proposal Line Up Sheet/2012 Standard Provisions/","","",""]
[89,null,"SP01 G184","SP01G","EMPLOYMENT","CentralGeneral;CentralResurfacing;CentralStructures;CentralRail;DivGeneral;DivResurf;DivStructures;DivSBEGeneral;DivSBEResurf;Federal;State;Permits;NoPerm","2012-01","SP01_G184__Employment.docx","All Projects.",null,null,0,"","//dot/dfsroot01/cccommon/provisions/01a  Automated Proposal Line Up Sheet/2012 Standard Provisions/","","",""]
["PSP",null,null,null,"Click Here to Add Additional Project Specific Provisions","CentralGeneral;CentralResurfacing;CentralStructures;CentralRail;DivGeneral;DivResurf;DivStructures;DivSBEGeneral;DivSBEResurf;Federal;State;Permits;NoPerm",null,null,null,null,null,null,"","//dot/dfsroot01/cccommon/provisions/01a  Automated Proposal Line Up Sheet/2012 Standard Provisions/","","",""]
[90,null,"SP01 G185","SP01G","STATE HIGHWAY ADMINISTRATOR TITLE CHANGE","CentralGeneral;CentralResurfacing;CentralStructures;CentralRail;DivGeneral;DivResurf;DivStructures;DivSBEGeneral;DivSBEResurf;Federal;State;Permits;NoPerm","2012-09","SP01_G185__State_Highway_Admin_Title_Change.docx","All Projects.",null,null,0,"","//dot/dfsroot01/cccommon/provisions/01a  Automated Proposal Line Up Sheet/2012 Standard Provisions/","","",""]
["PSP",null,null,null,"Click Here to Add Additional Project Specific Provisions","CentralGeneral;CentralResurfacing;CentralStructures;CentralRail;DivGeneral;DivResurf;DivStructures;DivSBEGeneral;DivSBEResurf;Federal;State;Permits;NoPerm",null,null,null,null,null,null,"","//dot/dfsroot01/cccommon/provisions/01a  Automated Proposal Line Up Sheet/2012 Standard Provisions/","","",""]
[90,null,"SP01 G186","SP01G","SUBLETTING OF CONTRACT","CentralGeneral;CentralResurfacing;CentralStructures;CentralRail;DivGeneral;DivResurf;DivStructures;DivSBEGeneral;DivSBEResurf;Federal;State;Permits;NoPerm","2014-11","SP01_G186__Subletting of Contract.docx","All Raleigh Let Projects.  Optional on Division Let Projects.",null,null,0,{"$f":"IF(RIGHT(LEFT(E371,2),1)=\":\",E371,\"\")","v":""},"//dot/dfsroot01/cccommon/provisions/01a  Automated Proposal Line Up Sheet/2012 Standard Provisions/",{"$f":"IF(N371=\"\",\"\",IF(H371=\"\",\"\",IF(+B371=\"a\",CONCATENATE(+N371,+H371),\"\")))","v":""},{"$f":"CONCATENATE(M371,O371)","v":""},{"$f":"IF(B371=\"a\",+C371,+M371)","v":""}]
["PSP",null,null,null,"Click Here to Add Additional Project Specific Provisions","CentralGeneral;CentralResurfacing;CentralStructures;CentralRail;DivGeneral;DivResurf;DivStructures;DivSBEGeneral;DivSBEResurf;Federal;State;Permits;NoPerm",null,null,null,null,null,null,"","//dot/dfsroot01/cccommon/provisions/01a  Automated Proposal Line Up Sheet/2012 Standard Provisions/","","",""]
[90,null,"SP01 G190","SP01G","REVISION TO FHWA-1273 CONCERNING TAP-FUNDED PROJECTS","DivGeneral;DivResurf;DivStructures;DivSBEGeneral;DivSBEResurf;LGAGeneral;LGAResurf;Federal;Permits;NoPerm","2013-10","SP01_G190__Revision_to_FHWA_1273.docx","Transporation Alternative Program (TAP) Funded Projects Only",null,null,0,{"$f":"IF(RIGHT(LEFT(E373,2),1)=\":\",E373,\"\")","v":""},"//dot/dfsroot01/cccommon/provisions/01a  Automated Proposal Line Up Sheet/2012 Standard Provisions/","","",""]
["PSP",null,null,null,"Click Here to Add Additional Project Specific Provisions","DivGeneral;DivResurf;DivStructures;DivSBEGeneral;DivSBEResurf;LGAGeneral;LGAResurf;Federal;Permits;NoPerm",null,null,null,null,null,null,"","//dot/dfsroot01/cccommon/provisions/01a  Automated Proposal Line Up Sheet/2012 Standard Provisions/","","",""]
[90,null,"SP01 G194","SP01G","MOBILIZATION","CentralGeneral;CentralResurfacing;CentralStructures;CentralRail;Federal;State;Permits;NoPerm","2015-09","SP01_G194__Mobilization.docx","Raleigh Let Projects where delay of availability or projects with floating dates is 90 days or more. Check with Contract Time.  ",null,null,0,"","//dot/dfsroot01/cccommon/provisions/01a  Automated Proposal Line Up Sheet/2012 Standard Provisions/","","",""]
["PSP",null,null,null,"Click Here to Add Additional Project Specific Provisions","CentralGeneral;CentralResurfacing;CentralStructures;CentralRail;DivGeneral;DivResurf;DivStructures;DivSBEGeneral;DivSBEResurf;Federal;State;Permits;NoPerm",null,null,null,null,null,null,"","//dot/dfsroot01/cccommon/provisions/01a  Automated Proposal Line Up Sheet/2012 Standard Provisions/","","",""]
[91,null,"SP01 R001","SP01R","PROJECT SPECIAL PROVISIONS (Roadway)","CentralGeneral;CentralResurfacing;CentralStructures;CentralRail;DivGeneral;DivResurf;DivStructures;DivSBEGeneral;DivSBEResurf;Federal;State;Permits;NoPerm","2013-10","SP01_R001__Project_Special_Provisions_Roadway.docx","All projects.  Use this as starter for \"Roadway Section\".",null,null,0,"","//dot/dfsroot01/cccommon/provisions/01a  Automated Proposal Line Up Sheet/2012 Standard Provisions/","","",""]
["PSP",null,null,null,"Click Here to Add Additional Project Specific Provisions","CentralGeneral;CentralResurfacing;CentralStructures;CentralRail;DivGeneral;DivResurf;DivStructures;DivSBEGeneral;DivSBEResurf;Federal;State;Permits;NoPerm",null,null,null,null,null,null,{"$f":"IF(RIGHT(LEFT(E378,2),1)=\":\",E378,\"\")","v":""},"//dot/dfsroot01/cccommon/provisions/01a  Automated Proposal Line Up Sheet/2012 Standard Provisions/",{"$f":"IF(N378=\"\",\"\",IF(H378=\"\",\"\",IF(+B378=\"a\",CONCATENATE(+N378,+H378),\"\")))","v":""},"",""]
[92,null,"SP01 R004R","SP01R","SHOULDER CONSTRUCTION","CentralResurfacing;DivResurf;DivSBEResurf;Federal;State;Permits;NoPerm","1995-07","SP01_R004_R__Shoulder_Construction.docx","Pay Item 1243 must be included in estimate. Determined by Division.",null,null,0,"","//dot/dfsroot01/cccommon/provisions/01a  Automated Proposal Line Up Sheet/2012 Standard Provisions/","","",""]
["PSP",null,null,null,"Click Here to Add Additional Project Specific Provisions","CentralResurfacing;DivResurf;DivSBEResurf;Federal;State;Permits;NoPerm",null,null,null,null,null,null,"","//dot/dfsroot01/cccommon/provisions/01a  Automated Proposal Line Up Sheet/2012 Standard Provisions/","","",""]
[93,null,"SP01 R007AR","SP01R","SHOULDER RECONSTRUCTION (Stone, Seeding Separate)","CentralResurfacing;DivResurf;DivSBEResurf;Federal;State;Permits;NoPerm","2012-08","SP01_R007_A_R__Sh_Reconst_Stone_SM_Separate.docx","  Pay Items for Both Incidental Stone and Seeding & Mulching",null,null,0,"","//dot/dfsroot01/cccommon/provisions/01a  Automated Proposal Line Up Sheet/2012 Standard Provisions/","",{"$f":"CONCATENATE(M381,O381)","v":""},""]
["PSP",null,null,null,"Click Here to Add Additional Project Specific Provisions","CentralResurfacing;DivResurf;DivSBEResurf;Federal;State;Permits;NoPerm",null,null,null,null,null,null,"","//dot/dfsroot01/cccommon/provisions/01a  Automated Proposal Line Up Sheet/2012 Standard Provisions/","","",""]
[94,null,"SP01 R007BR","SP01R","SHOULDER RECONSTRUCTION (No Seeding & Mulching)","CentralResurfacing;DivResurf;DivSBEResurf;Federal;State;Permits;NoPerm","2012-08","SP01_R007_B_R__Sh_Reconst_No_SM.docx","  Pay Item for Incidental Stone.  Seeding & Muching Included in Shldr Recon.",null,null,0,"","//dot/dfsroot01/cccommon/provisions/01a  Automated Proposal Line Up Sheet/2012 Standard Provisions/","","",""]
["PSP",null,null,null,"Click Here to Add Additional Project Specific Provisions","CentralResurfacing;DivResurf;DivSBEResurf;Federal;State;Permits;NoPerm",null,null,null,null,null,null,"","//dot/dfsroot01/cccommon/provisions/01a  Automated Proposal Line Up Sheet/2012 Standard Provisions/","","",""]
[95,null,"SP01 R007CR","SP01R","SHOULDER RECONSTRUCTION (No Stone, Seeding Separate)","CentralResurfacing;DivResurf;DivSBEResurf;Federal;State;Permits;NoPerm","2012-08","SP01_R007_C_R__Sh_Reconst_No_Stone_SM_Sep.docx","  Pay Item for Seeding & Mulching.   NO Incidental Stone Item.",null,null,0,"","//dot/dfsroot01/cccommon/provisions/01a  Automated Proposal Line Up Sheet/2012 Standard Provisions/","","",""]
["PSP",null,null,null,"Click Here to Add Additional Project Specific Provisions","CentralResurfacing;DivResurf;DivSBEResurf;Federal;State;Permits;NoPerm",null,null,null,null,null,null,"","//dot/dfsroot01/cccommon/provisions/01a  Automated Proposal Line Up Sheet/2012 Standard Provisions/","","",""]
[96,null,"SP01 R007DR","SP01R","SHOULDER RECONSTRUCTION (No Stone, No Seeding & Mulch)","CentralResurfacing;DivResurf;DivSBEResurf;Federal;State;Permits;NoPerm","2013-11","SP01_R007_D_R__Sh_Reconst_No_Stone_No_SM.docx","  NO Item for Incidental Stone.  Seeding & Muching Included in Shldr Recon.",null,null,0,"","//dot/dfsroot01/cccommon/provisions/01a  Automated Proposal Line Up Sheet/2012 Standard Provisions/","","",""]
["PSP",null,null,null,"Click Here to Add Additional Project Specific Provisions","CentralResurfacing;DivResurf;DivSBEResurf;Federal;State;Permits;NoPerm",null,null,null,null,null,null,"","//dot/dfsroot01/cccommon/provisions/01a  Automated Proposal Line Up Sheet/2012 Standard Provisions/","","",""]
[97,null,"SP01 R007ER","SP01R","SHOULDER RECONSTRUCTION (State Forces Seeding)","CentralResurfacing;DivResurf;DivSBEResurf;Federal;State;Permits;NoPerm","2012-08","SP01_R007_E_R__Sh_Reconst_Stone_State_SM.docx","  NO Item for Seeding & Muching; Performed by State Forces.",null,null,0,"","//dot/dfsroot01/cccommon/provisions/01a  Automated Proposal Line Up Sheet/2012 Standard Provisions/","","",""]
["PSP",null,null,null,"Click Here to Add Additional Project Specific Provisions","CentralResurfacing;DivResurf;DivSBEResurf;Federal;State;Permits;NoPerm",null,null,null,null,null,null,"","//dot/dfsroot01/cccommon/provisions/01a  Automated Proposal Line Up Sheet/2012 Standard Provisions/","","",""]
[98,null,"SP01 R007FR","SP01R","SHOULDER RECONSTRUCTION (Stone, Seeding Separate, Div 5)","CentralResurfacing;DivResurf;DivSBEResurf;Federal;State;Permits;NoPerm","2012-08","SP01_R007_F_R__Sh_Reconst_Stone_SM_Separate_5.docx","  Pay Items for Both Incidental Stone and Seeding & Mulching.  NO ASB option.",null,null,0,"","//dot/dfsroot01/cccommon/provisions/01a  Automated Proposal Line Up Sheet/2012 Standard Provisions/","","",""]
["PSP",null,null,null,"Click Here to Add Additional Project Specific Provisions","CentralResurfacing;DivResurf;DivSBEResurf;Federal;State;Permits;NoPerm",null,null,null,null,null,null,"","//dot/dfsroot01/cccommon/provisions/01a  Automated Proposal Line Up Sheet/2012 Standard Provisions/","","",""]
[99,null,"SP01 R010AR","SP01R","SHOULDER CONSTRUCTION PROCEDURE","CentralResurfacing;DivResurf;DivSBEResurf;Federal;State;Permits;NoPerm","2013-10","SP01_R010_A_R__Shoulder_Construction_Procedure.docx","Determined by Division.",null,null,0,"","//dot/dfsroot01/cccommon/provisions/01a  Automated Proposal Line Up Sheet/2012 Standard Provisions/","","",""]
["PSP",null,null,null,"Click Here to Add Additional Project Specific Provisions","CentralResurfacing;DivResurf;DivSBEResurf;Federal;State;Permits;NoPerm",null,null,null,null,null,null,"","//dot/dfsroot01/cccommon/provisions/01a  Automated Proposal Line Up Sheet/2012 Standard Provisions/","","",""]
[99,null,"SP01 R010BR","SP01R","SHOULDER RECONSTRUCTION PROCEDURE","CentralResurfacing;DivResurf;DivSBEResurf;Federal;State;Permits;NoPerm","2013-10","SP01_R010_B_R__Shoulder_Reconstruction_Procedure.docx","Determined by Division.",null,null,0,{"$f":"IF(RIGHT(LEFT(E395,2),1)=\":\",E395,\"\")","v":""},"//dot/dfsroot01/cccommon/provisions/01a  Automated Proposal Line Up Sheet/2012 Standard Provisions/",{"$f":"IF(N395=\"\",\"\",IF(H395=\"\",\"\",IF(+B395=\"a\",CONCATENATE(+N395,+H395),\"\")))","v":""},"",""]
["PSP",null,null,null,"Click Here to Add Additional Project Specific Provisions","CentralResurfacing;DivResurf;DivSBEResurf;Federal;State;Permits;NoPerm",null,null,null,null,null,null,"","//dot/dfsroot01/cccommon/provisions/01a  Automated Proposal Line Up Sheet/2012 Standard Provisions/","","",""]
[100,null,"SP01 R034R","SP01R","CONSTRUCTION SEQUENCE","CentralResurfacing;DivResurf;DivSBEResurf;Federal;State;Permits;NoPerm","2012-08","SP01_R034_R__Construction_Sequence.docx","Determined by Division.",null,null,0,"","//dot/dfsroot01/cccommon/provisions/01a  Automated Proposal Line Up Sheet/2012 Standard Provisions/","","",""]
["PSP",null,null,null,"Click Here to Add Additional Project Specific Provisions","CentralResurfacing;DivResurf;DivSBEResurf;Federal;State;Permits;NoPerm",null,null,null,null,null,null,{"$f":"IF(RIGHT(LEFT(E398,2),1)=\":\",E398,\"\")","v":""},"//dot/dfsroot01/cccommon/provisions/01a  Automated Proposal Line Up Sheet/2012 Standard Provisions/","","",""]
[101,null,"SP02 R002A","SP02R","CLEARING AND GRUBBING - Method II","CentralGeneral;CentralStructures;CentralRail;DivGeneral;DivStructures;DivSBEGeneral;Federal;State;Permits;NoPerm","2015-08","SP02_R002_A__Clearing_Grubbing_Method_2.docx","Check Field Inspection Notes and Plan Sheet 1A for method.",null,null,0,"","//dot/dfsroot01/cccommon/provisions/01a  Automated Proposal Line Up Sheet/2012 Standard Provisions/","","",""]
["PSP",null,null,null,"Click Here to Add Additional Project Specific Provisions","CentralGeneral;CentralStructures;CentralRail;DivGeneral;DivStructures;DivSBEGeneral;Federal;State;Permits;NoPerm",null,null,null,null,null,null,"","//dot/dfsroot01/cccommon/provisions/01a  Automated Proposal Line Up Sheet/2012 Standard Provisions/","","",""]
[102,null,"SP02 R002B","SP02R","CLEARING AND GRUBBING - Method III","CentralGeneral;CentralStructures;CentralRail;DivGeneral;DivStructures;DivSBEGeneral;Federal;State;Permits;NoPerm","2015-08","SP02_R002_B__Clearing_Grubbing_Method_3.docx","Check Field Inspection Notes and Plan Sheet 1A for method.",null,null,0,"","//dot/dfsroot01/cccommon/provisions/01a  Automated Proposal Line Up Sheet/2012 Standard Provisions/","","",""]
["PSP",null,null,null,"Click Here to Add Additional Project Specific Provisions","CentralGeneral;CentralStructures;CentralRail;DivGeneral;DivStructures;DivSBEGeneral;Federal;State;Permits;NoPerm",null,null,null,null,null,null,"","//dot/dfsroot01/cccommon/provisions/01a  Automated Proposal Line Up Sheet/2012 Standard Provisions/","","",""]
[103,null,"SP02 R005","SP02R","BURNING RESTRICTIONS","CentralGeneral;CentralStructures;CentralRail;DivGeneral;DivStructures;DivSBEGeneral;Federal;State;Permits;NoPerm","1995-07","SP02_R005__Burning_Restrictions.docx","If applicable, there will be a memo from Soil and Water Eng. Section directing to use this provision. Memo will be separate from the Erosion Control provisions package.",null,null,0,"","//dot/dfsroot01/cccommon/provisions/01a  Automated Proposal Line Up Sheet/2012 Standard Provisions/","","",""]
["PSP",null,null,null,"Click Here to Add Additional Project Specific Provisions","CentralGeneral;CentralStructures;CentralRail;DivGeneral;DivStructures;DivSBEGeneral;Federal;State;Permits;NoPerm",null,null,null,null,null,null,"","//dot/dfsroot01/cccommon/provisions/01a  Automated Proposal Line Up Sheet/2012 Standard Provisions/","","",""]
[104,null,"SP02 R010","SP02R","DEMOLITION OF BUILDINGS AND APPURTENANCES","CentralGeneral;CentralStructures;CentralRail;DivGeneral;DivStructures;DivSBEGeneral;Federal;State;Permits;NoPerm","2012-01","SP02_R010__Demo_Building_Appurtenance.docx","If applicable, there will be a memo from  Right-of-Way Utilities Section directing to use this provision. Memo should include list of buildings.  Do NOT include fences or billboards (signs).",null,null,0,"","//dot/dfsroot01/cccommon/provisions/01a  Automated Proposal Line Up Sheet/2012 Standard Provisions/","","",""]
["PSP",null,null,null,"Click Here to Add Additional Project Specific Provisions","CentralGeneral;CentralStructures;CentralRail;DivGeneral;DivStructures;DivSBEGeneral;Federal;State;Permits;NoPerm",null,null,null,null,null,null,"","//dot/dfsroot01/cccommon/provisions/01a  Automated Proposal Line Up Sheet/2012 Standard Provisions/","","",""]
[105,null,"SP02 R015A","SP02R","BUILDING REMOVAL (Removal inside ROW)","CentralGeneral;CentralStructures;CentralRail;DivGeneral;DivStructures;DivSBEGeneral;Federal;State;Permits;NoPerm","2013-04","SP02_R015_A__Building Removal.docx","Choose one:  A, B, C, or D.  Raleigh has a memo in the file from ROW stating which buildings are to be removed. Include a copy of that list to insert into provision.  Do NOT include fences or signs (billboards). No direct pay item for this work as it is included under clearing and grubbing.  If any building is not yet removed but will be before Date of Availability, include letter or memo for backup.",null,null,0,"","//dot/dfsroot01/cccommon/provisions/01a  Automated Proposal Line Up Sheet/2012 Standard Provisions/","","",""]
["PSP",null,null,null,"Click Here to Add Additional Project Specific Provisions","CentralGeneral;CentralStructures;CentralRail;DivGeneral;DivStructures;DivSBEGeneral;Federal;State;Permits;NoPerm",null,null,null,null,null,null,"","//dot/dfsroot01/cccommon/provisions/01a  Automated Proposal Line Up Sheet/2012 Standard Provisions/","","",""]
[106,null,"SP02 R015B","SP02R","BUILDING REMOVAL (Cut at ROW)","CentralGeneral;CentralStructures;CentralRail;DivGeneral;DivStructures;DivSBEGeneral;Federal;State;Permits;NoPerm","2013-04","SP02_R015_B__Building Removal with Cut.docx","Choose one:  A, B, C, or D.",null,null,0,"","//dot/dfsroot01/cccommon/provisions/01a  Automated Proposal Line Up Sheet/2012 Standard Provisions/","","",""]
["PSP",null,null,null,"Click Here to Add Additional Project Specific Provisions","CentralGeneral;CentralStructures;CentralRail;DivGeneral;DivStructures;DivSBEGeneral;Federal;State;Permits;NoPerm",null,null,null,null,null,null,"","//dot/dfsroot01/cccommon/provisions/01a  Automated Proposal Line Up Sheet/2012 Standard Provisions/","","",""]
[107,null,"SP02 R015C","SP02R","BUILDING REMOVAL (Removal on both side of ROW)","CentralGeneral;CentralStructures;CentralRail;DivGeneral;DivStructures;DivSBEGeneral;Federal;State;Permits;NoPerm","2013-04","SP02_R015_C__Building Removal across ROW.docx","Choose one:  A, B, C, or D.",null,null,0,"","//dot/dfsroot01/cccommon/provisions/01a  Automated Proposal Line Up Sheet/2012 Standard Provisions/","","",""]
["PSP",null,null,null,"Click Here to Add Additional Project Specific Provisions","CentralGeneral;CentralStructures;CentralRail;DivGeneral;DivStructures;DivSBEGeneral;Federal;State;Permits;NoPerm",null,null,null,null,null,null,"","//dot/dfsroot01/cccommon/provisions/01a  Automated Proposal Line Up Sheet/2012 Standard Provisions/","","",""]
[108,null,"SP02 R015D","SP02R","BUILDING AND UNDERGROUND STORAGE TANK REMOVAL (Will have cut and removal at ROW)","CentralGeneral;CentralStructures;CentralRail;DivGeneral;DivStructures;DivSBEGeneral;Federal;State;Permits;NoPerm","2013-04","SP02_R015_D__Building Removal with Cut and Removal on ROW.docx","Choose one:  A, B, C, or D.",null,null,0,"","//dot/dfsroot01/cccommon/provisions/01a  Automated Proposal Line Up Sheet/2012 Standard Provisions/","","",""]
["PSP",null,null,null,"Click Here to Add Additional Project Specific Provisions","CentralGeneral;CentralStructures;CentralRail;DivGeneral;DivStructures;DivSBEGeneral;Federal;State;Permits;NoPerm",null,null,null,null,null,null,"","//dot/dfsroot01/cccommon/provisions/01a  Automated Proposal Line Up Sheet/2012 Standard Provisions/","","",""]
[109,null,"SP02 R016","SP02R","LUMP SUM GRADING","CentralGeneral;CentralStructures;CentralRail;DivGeneral;DivStructures;DivSBEGeneral;Federal;State;Permits;NoPerm","2013-08","SP02_R016__LS_Grading_Separate_Pay_Items.docx","Use this provision if item for Lump Sum Grading Pay Item 0063 and any of the following items are in estimate: (use drop down menu for items in estimate; leave blank if not in estimate)",null,null,9,"","//dot/dfsroot01/cccommon/provisions/01a  Automated Proposal Line Up Sheet/2012 Standard Provisions/","","",""]
["i",null,null,null,"Section 200 Clearing & Grubbing (Item 0001)",null,null,null,null,null,null,0,"","//dot/dfsroot01/cccommon/provisions/01a  Automated Proposal Line Up Sheet/2012 Standard Provisions/","","",""]
["i",null,null,null,"Section 225 Unclassified Excavation (Item 0022)",null,null,null,null,null,null,0,"","//dot/dfsroot01/cccommon/provisions/01a  Automated Proposal Line Up Sheet/2012 Standard Provisions/","","",""]
["i",null,null,null,"Section 230 Borrow Excavation (Item 0106)",null,null,null,null,null,null,0,"",{"$f":"+$P$6","v":"//dot/dfsroot01/cccommon/provisions/01a  Automated Proposal Line Up Sheet/2012 Standard Provisions/"},"","",""]
["i",null,null,null,"Section 250 Removal of Existing Asphalt (Item 0156)",null,null,null,null,null,null,0,"","//dot/dfsroot01/cccommon/provisions/01a  Automated Proposal Line Up Sheet/2012 Standard Provisions/","","",""]
["i",null,null,null,"Section 250 Removal of Existing Concrete (Item 0163)",null,null,null,null,null,null,0,"","//dot/dfsroot01/cccommon/provisions/01a  Automated Proposal Line Up Sheet/2012 Standard Provisions/","","",""]
["i",null,null,null,"Section 250 Breaking of Existing Asphalt (Item 0177)",null,null,null,null,null,null,0,"","//dot/dfsroot01/cccommon/provisions/01a  Automated Proposal Line Up Sheet/2012 Standard Provisions/","","",""]
["i",null,null,null,"Section 250 Breaking of Existing Concrete (Item 0185)",null,null,null,null,null,null,0,"","//dot/dfsroot01/cccommon/provisions/01a  Automated Proposal Line Up Sheet/2012 Standard Provisions/","","",""]
["i",null,null,null,"Section 500 Fine Grading (Item 1011)",null,null,null,null,null,null,0,"","//dot/dfsroot01/cccommon/provisions/01a  Automated Proposal Line Up Sheet/2012 Standard Provisions/","","",""]
["i",null,null,null,"Section 560 Shoulder Borrow (Item 1231)",null,null,null,null,null,null,0,"","//dot/dfsroot01/cccommon/provisions/01a  Automated Proposal Line Up Sheet/2012 Standard Provisions/","","",""]
["PSP",null,null,null,"Click Here to Add Additional Project Specific Provisions","CentralGeneral;CentralStructures;CentralRail;DivGeneral;DivStructures;DivSBEGeneral;Federal;State;Permits;NoPerm",null,null,null,null,null,null,"","//dot/dfsroot01/cccommon/provisions/01a  Automated Proposal Line Up Sheet/2012 Standard Provisions/","","",""]
[110,null,"SP02 R030A","SP02R","TEMPORARY DETOURS (Lump Sum Grading)","CentralGeneral;CentralStructures;CentralRail;DivGeneral;DivStructures;DivSBEGeneral;Federal;State;Permits;NoPerm","2013-11","SP02_R030_A__Temporary_Detours_LS_Grading.docx","Project must have an onsite detour and should have pay items in estimate for detour construction.  Version A will have Lump Sum Grading, Item 0043 or 0063 to pay for detour removal.",null,null,0,"","//dot/dfsroot01/cccommon/provisions/01a  Automated Proposal Line Up Sheet/2012 Standard Provisions/","","",""]
["PSP",null,null,null,"Click Here to Add Additional Project Specific Provisions","CentralGeneral;CentralStructures;CentralRail;DivGeneral;DivStructures;DivSBEGeneral;Federal;State;Permits;NoPerm",null,null,null,null,null,null,"","//dot/dfsroot01/cccommon/provisions/01a  Automated Proposal Line Up Sheet/2012 Standard Provisions/","","",{"$f":"IF(B427=\"a\",+C427,+M427)","v":""}]
[111,null,"SP02 R030B","SP02R","TEMPORARY DETOURS (Individual Pay Items)","CentralGeneral;CentralStructures;CentralRail;DivGeneral;DivStructures;DivSBEGeneral;Federal;State;Permits;NoPerm","2013-11","SP02_R030_B__Temporary_Detours_NO_LS_Grading.docx","Project must have an onsite detour and should have pay items in estimate for detour construction.  Version B should have pay items in estimate for removal of detour.",null,null,0,"","//dot/dfsroot01/cccommon/provisions/01a  Automated Proposal Line Up Sheet/2012 Standard Provisions/","","",""]
["PSP",null,null,null,"Click Here to Add Additional Project Specific Provisions","CentralGeneral;CentralStructures;CentralRail;DivGeneral;DivStructures;DivSBEGeneral;Federal;State;Permits;NoPerm",null,null,null,null,null,null,{"$f":"IF(RIGHT(LEFT(E429,2),1)=\":\",E429,\"\")","v":""},"//dot/dfsroot01/cccommon/provisions/01a  Automated Proposal Line Up Sheet/2012 Standard Provisions/",{"$f":"IF(N429=\"\",\"\",IF(H429=\"\",\"\",IF(+B429=\"a\",CONCATENATE(+N429,+H429),\"\")))","v":""},"",""]
[131,null,"SP02 R030C","SP06R","TEMPORARY DETOURS (LS Grading and Pay Items)","CentralGeneral;CentralStructures;CentralRail;DivGeneral;DivStructures;DivSBEGeneral;Federal;State;Permits;NoPerm","2014-02","SP02_R030_C__Temporary_Detours_Other_and_LS_Grading.docx","Project must have an onsite detour and should have pay items in estimate for detour construction.  Version A will have Lump Sum Grading, Item 0043 or 0063 and other pay items in estimate for removal of detour.",null,null,1,"","//dot/dfsroot01/cccommon/provisions/01a  Automated Proposal Line Up Sheet/2012 Standard Provisions/","","",""]
["i",null,null,null,"Pay Item Excluded from Lump Sum Grading",null,null,null,null,null,null,0,"","//dot/dfsroot01/cccommon/provisions/01a  Automated Proposal Line Up Sheet/2012 Standard Provisions/","","",""]
["PSP",null,null,null,"Click Here to Add Additional Project Specific Provisions","CentralGeneral;CentralStructures;CentralRail;DivGeneral;DivStructures;DivSBEGeneral;Federal;State;Permits;NoPerm",null,null,null,null,null,null,"","//dot/dfsroot01/cccommon/provisions/01a  Automated Proposal Line Up Sheet/2012 Standard Provisions/","","",""]
[112,null,"SP02 R045A","SP02R","SHOULDER AND FILL SLOPE MATERIAL (Lump Sum Grading)","CentralGeneral;CentralStructures;CentralRail;DivGeneral;DivStructures;DivSBEGeneral;Federal;State;Permits;NoPerm","2012-01","SP02_R045_A__Shouldr_Fill_Slope_LS_Grading.docx","Check Typ Sect, use provision if Shoulder or Fill Slope Mat'l is indicated. Payment will be included in Lump Sum Grading except that Borrow Excavation (Item 0106) is being paid separately if that item is included in the contract.",null,null,0,"","//dot/dfsroot01/cccommon/provisions/01a  Automated Proposal Line Up Sheet/2012 Standard Provisions/","","",""]
["PSP",null,null,null,"Click Here to Add Additional Project Specific Provisions","CentralGeneral;CentralStructures;CentralRail;DivGeneral;DivStructures;DivSBEGeneral;Federal;State;Permits;NoPerm",null,null,null,null,null,null,"","//dot/dfsroot01/cccommon/provisions/01a  Automated Proposal Line Up Sheet/2012 Standard Provisions/","","",""]
[113,null,"SP02 R045B","SP02R","SHOULDER AND FILL SLOPE MATERIAL","CentralGeneral;CentralStructures;CentralRail;DivGeneral;DivStructures;DivSBEGeneral;Federal;State;Permits;NoPerm","2012-01","SP02_R045_B__Shouldr_Fill_Slope_NO_LS_Grading.docx","Check Typical Sections, use this provision if Shoulder or Fill Slope Mat'l is indicated but Lump Sum Grading Item is NOT included.",null,null,0,"","//dot/dfsroot01/cccommon/provisions/01a  Automated Proposal Line Up Sheet/2012 Standard Provisions/","","",""]
["PSP",null,null,null,"Click Here to Add Additional Project Specific Provisions","CentralGeneral;CentralStructures;CentralRail;DivGeneral;DivStructures;DivSBEGeneral;Federal;State;Permits;NoPerm",null,null,null,null,null,null,"","//dot/dfsroot01/cccommon/provisions/01a  Automated Proposal Line Up Sheet/2012 Standard Provisions/","","",""]
[114,null,"SP02 R057","SP02R","BORROW EXCAVATION (Truck Measurement)","CentralGeneral;CentralStructures;CentralRail;DivGeneral;DivStructures;DivSBEGeneral;Federal;State;Permits;NoPerm","1995-07","SP02_R057__Borrow_Exc_Truck_Measurement.docx","Pay Item 0106.  This will be specified in the Field Inspection Notes as a request from the Division. Contractor furnishes Borrow, measured in pit. Do NOT use if LS Grading item is in the est.",null,null,0,"","//dot/dfsroot01/cccommon/provisions/01a  Automated Proposal Line Up Sheet/2012 Standard Provisions/","","",""]
["PSP",null,null,null,"Click Here to Add Additional Project Specific Provisions","CentralGeneral;CentralStructures;CentralRail;DivGeneral;DivStructures;DivSBEGeneral;Federal;State;Permits;NoPerm",null,null,null,null,null,null,"","//dot/dfsroot01/cccommon/provisions/01a  Automated Proposal Line Up Sheet/2012 Standard Provisions/",{"$f":"IF(N438=\"\",\"\",IF(H438=\"\",\"\",IF(+B438=\"a\",CONCATENATE(+N438,+H438),\"\")))","v":""},"",""]
[115,null,"SP02 R058","SP02R","BORROW EXCAVATION (In Place or Truck Measurement)","CentralGeneral;CentralStructures;CentralRail;DivGeneral;DivStructures;DivSBEGeneral;Federal;State;Permits;NoPerm","1995-07","SP02_R058__Borrow_Exc_In_Place_or_Truck.docx","Pay Item 0106.  This will be specified in the Field Inspection Notes as a request from the Division. Contractor furnishes Borrow, measured in pit. Do NOT use if LS Grading item is in the est.",null,null,0,"","//dot/dfsroot01/cccommon/provisions/01a  Automated Proposal Line Up Sheet/2012 Standard Provisions/","","",""]
["PSP",null,null,null,"Click Here to Add Additional Project Specific Provisions","CentralGeneral;CentralStructures;CentralRail;DivGeneral;DivStructures;DivSBEGeneral;Federal;State;Permits;NoPerm",null,null,null,null,null,null,"","//dot/dfsroot01/cccommon/provisions/01a  Automated Proposal Line Up Sheet/2012 Standard Provisions/","","",""]
[116,null,"SP02 R065","SP02R","SURCHARGES AND WAITING PERIODS","CentralGeneral;CentralStructures;CentralRail;DivGeneral;DivStructures;DivSBEGeneral;Federal;State;Permits;NoPerm","2015-08","SP02_R065__Surcharges and Waiting Periods.docx","Use when surcharges and waiting periods (bridge and/or embankment) but not settlement gauges are recommended by Geotechnical Engineering Unit.  Do not use with SP2 R75. This provision does not apply to waiting periods for Approach Slabs.",null,null,0,"","//dot/dfsroot01/cccommon/provisions/01a  Automated Proposal Line Up Sheet/2012 Standard Provisions/","","",""]
["PSP",null,null,null,"Click Here to Add Additional Project Specific Provisions","CentralGeneral;CentralStructures;CentralRail;DivGeneral;DivStructures;DivSBEGeneral;Federal;State;Permits;NoPerm",null,null,null,null,null,null,{"$f":"IF(RIGHT(LEFT(E442,2),1)=\":\",E442,\"\")","v":""},"//dot/dfsroot01/cccommon/provisions/01a  Automated Proposal Line Up Sheet/2012 Standard Provisions/",{"$f":"IF(N442=\"\",\"\",IF(H442=\"\",\"\",IF(+B442=\"a\",CONCATENATE(+N442,+H442),\"\")))","v":""},{"$f":"CONCATENATE(M442,O442)","v":""},{"$f":"IF(B442=\"a\",+C442,+M442)","v":""}]
[116,null,"SP02 R070","SP02R","COAL COMBUSTION PRODUCTS IN EMBANKMENTS","CentralGeneral;CentralStructures;CentralRail;DivGeneral;DivStructures;DivSBEGeneral;Federal;State;Permits;NoPerm","2015-05","SP02_R070__Coal_Combustion_Products_In_Embankments.docx","Pay Item 0106, 0113, or 1231. Use with borrow pay items.  Do not use on resurfacings.",null,null,0,"","//dot/dfsroot01/cccommon/provisions/01a  Automated Proposal Line Up Sheet/2012 Standard Provisions/","","",""]
["PSP",null,null,null,"Click Here to Add Additional Project Specific Provisions","CentralGeneral;CentralStructures;CentralRail;DivGeneral;DivStructures;DivSBEGeneral;Federal;State;Permits;NoPerm",null,null,null,null,null,null,"","//dot/dfsroot01/cccommon/provisions/01a  Automated Proposal Line Up Sheet/2012 Standard Provisions/","","",""]
[117,null,"SP02 R075","SP02R","EMBANKMENT SETTLEMENT GAUGES","CentralGeneral;CentralStructures;CentralRail;DivGeneral;DivStructures;DivSBEGeneral;Federal;State;Permits;NoPerm","2015-08","SP02_R075__Embankment Settlement Gauges.docx","Pay Item 0127.  Use this prov. if item for Sett. Gauges is included. 2\" min.",null,null,0,"","//dot/dfsroot01/cccommon/provisions/01a  Automated Proposal Line Up Sheet/2012 Standard Provisions/","","",""]
["PSP",null,null,null,"Click Here to Add Additional Project Specific Provisions","CentralGeneral;CentralStructures;CentralRail;DivGeneral;DivStructures;DivSBEGeneral;Federal;State;Permits;NoPerm",null,null,null,null,null,null,"","//dot/dfsroot01/cccommon/provisions/01a  Automated Proposal Line Up Sheet/2012 Standard Provisions/","","",""]
[118,null,"SP02 R080","SP02R","SELECT GRANULAR MATERIAL","CentralGeneral;CentralStructures;CentralRail;DivGeneral;DivStructures;DivSBEGeneral;Federal;State;Permits;NoPerm","2012-01","SP02_R080__Select_Granular_Material.docx","Use this provision whenever requested by Geotech.  USE SP10 R05 Select Material Class III Type 3 when this provision is used.",null,null,0,"","//dot/dfsroot01/cccommon/provisions/01a  Automated Proposal Line Up Sheet/2012 Standard Provisions/","",{"$f":"CONCATENATE(M447,O447)","v":""},""]
["PSP",null,null,null,"Click Here to Add Additional Project Specific Provisions","CentralGeneral;CentralStructures;CentralRail;DivGeneral;DivStructures;DivSBEGeneral;Federal;State;Permits;NoPerm",null,null,null,null,null,null,"","//dot/dfsroot01/cccommon/provisions/01a  Automated Proposal Line Up Sheet/2012 Standard Provisions/","","",""]
[119,null,"SP03 R001","SP02R","PIPE INSTALLATION","CentralGeneral;CentralResurfacing;CentralStructures;CentralRail;DivGeneral;DivResurf;DivStructures;DivSBEGeneral;DivSBEResurf;Federal;State;Permits;NoPerm","2015-08","SP03_R001__Pipe_Installation.docx","Pay Items 0335-0992.  Use this provision with pipe installations.",null,null,0,"","//dot/dfsroot01/cccommon/provisions/01a  Automated Proposal Line Up Sheet/2012 Standard Provisions/","","",""]
["PSP",null,null,null,"Click Here to Add Additional Project Specific Provisions","CentralGeneral;CentralResurfacing;CentralStructures;CentralRail;DivGeneral;DivResurf;DivStructures;DivSBEGeneral;DivSBEResurf;Federal;State;Permits;NoPerm",null,null,null,null,null,null,"","//dot/dfsroot01/cccommon/provisions/01a  Automated Proposal Line Up Sheet/2012 Standard Provisions/","","",""]
[120,null,"SP03 R005","SP03R","REINFORCED CONCRETE TAPERED INLET","CentralGeneral;CentralStructures;CentralRail;DivGeneral;DivStructures;Federal;State;Permits;NoPerm","2012-11","SP03_R005__Reinforced_Concrete_Tapered_Inlet.docx","Pay Items 0480-0516. Use this provision if item for Reinforced Concrete Tapered Inlet is included in estimate. Do NOT fill in the blanks.  There should also be a Plan Detail Sheet.",null,null,0,"","//dot/dfsroot01/cccommon/provisions/01a  Automated Proposal Line Up Sheet/2012 Standard Provisions/","","",""]
["PSP",null,null,null,"Click Here to Add Additional Project Specific Provisions","CentralGeneral;CentralStructures;CentralRail;DivGeneral;DivStructures;Federal;State;Permits;NoPerm",null,null,null,null,null,null,"","//dot/dfsroot01/cccommon/provisions/01a  Automated Proposal Line Up Sheet/2012 Standard Provisions/","","",""]
[121,null,"SP03 R030","SP03R","FLOWABLE FILL","CentralGeneral;CentralStructures;CentralRail;DivGeneral;DivStructures;Federal;State;Permits;NoPerm","2012-01","SP03_R030__Flowable_Fill.docx","Pay Item 2275.  Use this provision if Flowable Fill is included in estimate.",null,null,0,"","//dot/dfsroot01/cccommon/provisions/01a  Automated Proposal Line Up Sheet/2012 Standard Provisions/","","",""]
["PSP",null,null,null,"Click Here to Add Additional Project Specific Provisions","CentralGeneral;CentralStructures;CentralRail;DivGeneral;DivStructures;Federal;State;Permits;NoPerm",null,null,null,null,null,null,"","//dot/dfsroot01/cccommon/provisions/01a  Automated Proposal Line Up Sheet/2012 Standard Provisions/","","",""]
[122,null,"SP04 R002","SP03R","BRIDGE APPROACH FILLS","CentralGeneral;CentralStructures;CentralRail;DivGeneral;DivStructures;Federal;State;Permits;NoPerm","2012-01","SP04_R002__Bridge_Approach_Fills.docx","Pay Item 0029 or 0030. Use this provision either item is included in est.  The Geotechnical Foundation Rec. Report will indicate if Bridge Approach Fills are required. Detail sheets should match structure type.  Cored Slab/Box Beam (2-insets) or Prestressed Concrete Girders (1-inset).  Do Not use if bridge is built on MSE Wall. This provision applies whether there is one or two end bent fills.  Do NOT modify this provision.",null,null,0,"","//dot/dfsroot01/cccommon/provisions/01a  Automated Proposal Line Up Sheet/2012 Standard Provisions/","","",""]
["PSP",null,null,null,"Click Here to Add Additional Project Specific Provisions","CentralGeneral;CentralStructures;CentralRail;DivGeneral;DivStructures;Federal;State;Permits;NoPerm",null,null,null,null,null,null,"","//dot/dfsroot01/cccommon/provisions/01a  Automated Proposal Line Up Sheet/2012 Standard Provisions/","","",""]
[123,null,"SP05 R005","SP04R","PREPARATION OF SUBGRADE AND BASE","CentralGeneral;CentralStructures;CentralRail;DivGeneral;DivStructures;Federal;State;Permits;NoPerm","1996-01","SP05_R005__Preparation_of_Subgrade_and_Base.docx","Use on new construction having full width lane(s).",null,null,0,"","//dot/dfsroot01/cccommon/provisions/01a  Automated Proposal Line Up Sheet/2012 Standard Provisions/","","",""]
["PSP",null,null,null,"Click Here to Add Additional Project Specific Provisions","CentralGeneral;CentralStructures;CentralRail;DivGeneral;DivStructures;Federal;State;Permits;NoPerm",null,null,null,null,null,null,"","//dot/dfsroot01/cccommon/provisions/01a  Automated Proposal Line Up Sheet/2012 Standard Provisions/","","",""]
[124,null,"SP05 R012","SP05R","CLASS IV AGGREGATE STABILIZATION","CentralGeneral;CentralResurfacing;CentralStructures;CentralRail;DivGeneral;DivResurf;DivStructures;DivSBEGeneral;DivSBEResurf;Federal;State;Permits;NoPerm","2014-11","SP05_R012__Class IV Aggregate Stabilization.docx","For use in certain parts of Eastern NC  when paving directly on subgrade and anticipate Select Material Class IV is needed to reduce wheel rutting of sandy material.",null,null,0,"","//dot/dfsroot01/cccommon/provisions/01a  Automated Proposal Line Up Sheet/2012 Standard Provisions/","","",""]
["PSP",null,null,null,"Click Here to Add Additional Project Specific Provisions","CentralGeneral;CentralResurfacing;CentralStructures;CentralRail;DivGeneral;DivResurf;DivStructures;DivSBEGeneral;DivSBEResurf;Federal;State;Permits;NoPerm",null,null,null,null,null,null,{"$f":"IF(RIGHT(LEFT(E460,2),1)=\":\",E460,\"\")","v":""},"//dot/dfsroot01/cccommon/provisions/01a  Automated Proposal Line Up Sheet/2012 Standard Provisions/",{"$f":"IF(N460=\"\",\"\",IF(H460=\"\",\"\",IF(+B460=\"a\",CONCATENATE(+N460,+H460),\"\")))","v":""},{"$f":"CONCATENATE(M460,O460)","v":""},{"$f":"IF(B460=\"a\",+C460,+M460)","v":""}]
[124,null,"SP05 R017","SP05R","CLASS IV SUBGRADE STABILIZATION IN LIEU OF CHEMICAL STABILIZATION","CentralGeneral;CentralResurfacing;CentralStructures;CentralRail;DivGeneral;DivResurf;DivStructures;DivSBEGeneral;DivSBEResurf;Federal;State;Permits;NoPerm","2015-06","SP05_R017__Class IV Subgrade Stabilization in Lieu of Chemical Stabilization.docx","Include with any of the following pay items:  Items 1044, 1055, 1066 (Lime-Treated Soil); 1176, 1187, 1198 (Soil-Cement Base)",null,null,0,"","//dot/dfsroot01/cccommon/provisions/01a  Automated Proposal Line Up Sheet/2012 Standard Provisions/","","",""]
["PSP",null,null,null,"Click Here to Add Additional Project Specific Provisions","CentralGeneral;CentralResurfacing;CentralStructures;CentralRail;DivGeneral;DivResurf;DivStructures;DivSBEGeneral;DivSBEResurf;Federal;State;Permits;NoPerm",null,null,null,null,null,null,{"$f":"IF(RIGHT(LEFT(E462,2),1)=\":\",E462,\"\")","v":""},"//dot/dfsroot01/cccommon/provisions/01a  Automated Proposal Line Up Sheet/2012 Standard Provisions/",{"$f":"IF(N462=\"\",\"\",IF(H462=\"\",\"\",IF(+B462=\"a\",CONCATENATE(+N462,+H462),\"\")))","v":""},{"$f":"CONCATENATE(M462,O462)","v":""},{"$f":"IF(B462=\"a\",+C462,+M462)","v":""}]
[124,null,"SP05 R014","SP05R","AGGREGATE BASE COURSE","CentralGeneral;CentralResurfacing;CentralStructures;CentralRail;DivGeneral;DivResurf;DivStructures;DivSBEGeneral;DivSBEResurf;Federal;State;Permits;NoPerm","2014-11","SP05_R014__Aggregate Base Course.docx","End dumping of ABC in certain parts of Eastern NC to provide a work platform and reduce wheel rutting of sandy material prior to placing final ABC. ",null,null,0,{"$f":"IF(RIGHT(LEFT(E463,2),1)=\":\",E463,\"\")","v":""},"//dot/dfsroot01/cccommon/provisions/01a  Automated Proposal Line Up Sheet/2012 Standard Provisions/",{"$f":"IF(N463=\"\",\"\",IF(H463=\"\",\"\",IF(+B463=\"a\",CONCATENATE(+N463,+H463),\"\")))","v":""},{"$f":"CONCATENATE(M463,O463)","v":""},{"$f":"IF(B463=\"a\",+C463,+M463)","v":""}]
["PSP",null,null,null,"Click Here to Add Additional Project Specific Provisions","CentralGeneral;CentralResurfacing;CentralStructures;CentralRail;DivGeneral;DivResurf;DivStructures;DivSBEGeneral;DivSBEResurf;Federal;State;Permits;NoPerm",null,null,null,null,null,null,"","//dot/dfsroot01/cccommon/provisions/01a  Automated Proposal Line Up Sheet/2012 Standard Provisions/","","",""]
[124,null,"SP05 R020","SP05R","SOIL-CEMENT BASE (FULL DEPTH RECLAMATION)","CentralGeneral;CentralResurfacing;CentralStructures;CentralRail;DivGeneral;DivResurf;DivStructures;DivSBEGeneral;DivSBEResurf;Federal;State;Permits;NoPerm","2013-11","SP05_R020__Soil-Cement Base (FDR).docx","Item 1176.  Use when Full Depth Reclamation is recommended by Geotech or Division.",null,null,0,{"$f":"IF(RIGHT(LEFT(E465,2),1)=\":\",E465,\"\")","v":""},"//dot/dfsroot01/cccommon/provisions/01a  Automated Proposal Line Up Sheet/2012 Standard Provisions/","","",""]
["PSP",null,null,null,"Click Here to Add Additional Project Specific Provisions","CentralGeneral;CentralResurfacing;CentralStructures;CentralRail;DivGeneral;DivResurf;DivStructures;DivSBEGeneral;DivSBEResurf;Federal;State;Permits;NoPerm",null,null,null,null,null,null,"","//dot/dfsroot01/cccommon/provisions/01a  Automated Proposal Line Up Sheet/2012 Standard Provisions/","","",""]
[124,null,"SP05 R028R","SP05R","INCIDENTAL STONE BASE","CentralResurfacing;DivResurf;DivSBEResurf;Federal;State;Permits;NoPerm","2012-08","SP05_R028_R__Incidental_Stone_Base.docx","Item 1220 should be included in the estimate.",null,null,0,{"$f":"IF(RIGHT(LEFT(E467,2),1)=\":\",E467,\"\")","v":""},"//dot/dfsroot01/cccommon/provisions/01a  Automated Proposal Line Up Sheet/2012 Standard Provisions/","","",""]
["PSP",null,null,null,"Click Here to Add Additional Project Specific Provisions","CentralResurfacing;DivResurf;DivSBEResurf;Federal;State;Permits;NoPerm",null,null,null,null,null,null,{"$f":"IF(RIGHT(LEFT(E468,2),1)=\":\",E468,\"\")","v":""},"//dot/dfsroot01/cccommon/provisions/01a  Automated Proposal Line Up Sheet/2012 Standard Provisions/",{"$f":"IF(N468=\"\",\"\",IF(H468=\"\",\"\",IF(+B468=\"a\",CONCATENATE(+N468,+H468),\"\")))","v":""},"",""]
[125,null,"SP06 R001","SP05R","ASPHALT PAVEMENTS SUPERPAVE","CentralGeneral;CentralResurfacing;CentralStructures;CentralRail;DivGeneral;DivResurf;DivStructures;DivSBEGeneral;DivSBEResurf;Federal;State;Permits;NoPerm","2014-02","SP06_R001__Asphalt_Pavements_Superpave.docx","Use this provision when Superpave items are included.  Watch for conflicts with Table 660 Note A (i.e., Div 7)",null,null,0,"","//dot/dfsroot01/cccommon/provisions/01a  Automated Proposal Line Up Sheet/2012 Standard Provisions/","","",""]
["PSP",null,null,null,"Click Here to Add Additional Project Specific Provisions","CentralGeneral;CentralResurfacing;CentralStructures;CentralRail;DivGeneral;DivResurf;DivStructures;DivSBEGeneral;DivSBEResurf;Federal;State;Permits;NoPerm",null,null,null,null,null,null,{"$f":"IF(RIGHT(LEFT(E470,2),1)=\":\",E470,\"\")","v":""},"//dot/dfsroot01/cccommon/provisions/01a  Automated Proposal Line Up Sheet/2012 Standard Provisions/",{"$f":"IF(N470=\"\",\"\",IF(H470=\"\",\"\",IF(+B470=\"a\",CONCATENATE(+N470,+H470),\"\")))","v":""},"",""]
[126,null,"SP06 R003R","SP06R","SHOULDER WEDGE","CentralResurfacing;DivResurf;DivSBEResurf;Federal;State;Permits;NoPerm","2012-08","SP06_R003_R__Shoulder_Wedge.docx","Determined by Division.  (Do not modify without approval of Ron Hancock.)",null,null,0,"","//dot/dfsroot01/cccommon/provisions/01a  Automated Proposal Line Up Sheet/2012 Standard Provisions/","","",""]
["PSP",null,null,null,"Click Here to Add Additional Project Specific Provisions","CentralResurfacing;DivResurf;DivSBEResurf;Federal;State;Permits;NoPerm",null,null,null,null,null,null,"","//dot/dfsroot01/cccommon/provisions/01a  Automated Proposal Line Up Sheet/2012 Standard Provisions/","","",""]
[127,null,"SP06 R006A","SP06R","ASPHALT PAVER FIXED STRINGLINES","CentralGeneral;CentralResurfacing;CentralStructures;CentralRail;DivGeneral;DivResurf;DivStructures;DivSBEGeneral;DivSBEResurf;Federal;State;Permits;NoPerm","2012-01","SP06_R006_A__Asphalt_Fixed_String_Line.docx","Check Field Inspection Notes.  Div 4 uses.",null,null,0,"","//dot/dfsroot01/cccommon/provisions/01a  Automated Proposal Line Up Sheet/2012 Standard Provisions/","","",""]
["PSP",null,null,null,"Click Here to Add Additional Project Specific Provisions","CentralGeneral;CentralResurfacing;CentralStructures;CentralRail;DivGeneral;DivResurf;DivStructures;DivSBEGeneral;DivSBEResurf;Federal;State;Permits;NoPerm",null,null,null,null,null,null,"","//dot/dfsroot01/cccommon/provisions/01a  Automated Proposal Line Up Sheet/2012 Standard Provisions/","","",""]
[128,null,"SP06 R006B","SP06R","ASPHALT PAVER FIXED AND MOBILE STRINGLINES","CentralGeneral;CentralResurfacing;CentralStructures;CentralRail;DivGeneral;DivResurf;DivStructures;DivSBEGeneral;DivSBEResurf;Federal;State;Permits;NoPerm","2012-01","SP06_R006_B__Asphalt_Fixed_Mbl_String_Line.docx","Determined by Division.  Do not use on typical resurfacing.  Use with NEW pavement ONLY.  Mobile line is called for in QMS manual and Fixed only used on NEW pavement.",null,null,0,{"$f":"IF(RIGHT(LEFT(E475,2),1)=\":\",E475,\"\")","v":""},"//dot/dfsroot01/cccommon/provisions/01a  Automated Proposal Line Up Sheet/2012 Standard Provisions/","","",""]
["PSP",null,null,null,"Click Here to Add Additional Project Specific Provisions","CentralGeneral;CentralResurfacing;CentralStructures;CentralRail;DivGeneral;DivResurf;DivStructures;DivSBEGeneral;DivSBEResurf;Federal;State;Permits;NoPerm",null,null,null,null,null,null,"","//dot/dfsroot01/cccommon/provisions/01a  Automated Proposal Line Up Sheet/2012 Standard Provisions/","","",""]
[129,null,"SP06 R015","SP06R","ASPHALT BINDER CONTENT OF ASPHALT PLANT MIX","CentralGeneral;CentralResurfacing;CentralStructures;CentralRail;DivGeneral;DivResurf;DivStructures;DivSBEGeneral;DivSBEResurf;Federal;State;Permits;NoPerm","2012-07","SP06_R015__Asphalt_Binder_Content_Plant_Mixes.docx","Use this provision if Superpave items in est.  Don't fill in blanks.",null,null,0,"","//dot/dfsroot01/cccommon/provisions/01a  Automated Proposal Line Up Sheet/2012 Standard Provisions/","","",""]
["PSP",null,null,null,"Click Here to Add Additional Project Specific Provisions","CentralGeneral;CentralResurfacing;CentralStructures;CentralRail;DivGeneral;DivResurf;DivStructures;DivSBEGeneral;DivSBEResurf;Federal;State;Permits;NoPerm",null,null,null,null,null,null,"","//dot/dfsroot01/cccommon/provisions/01a  Automated Proposal Line Up Sheet/2012 Standard Provisions/","","",""]
[130,null,"SP06 R020","SP06R","ASPHALT PLANT MIXTURES","CentralGeneral;CentralResurfacing;CentralStructures;CentralRail;DivGeneral;DivResurf;DivStructures;DivSBEGeneral;DivSBEResurf;Federal;State;Permits;NoPerm","1995-07","SP06_R020__Asphalt_Plant_Mixtures.docx","Pay Item 1489-1493 should be included in est. Use on projects with widening up to 4 feet (Typical Sections).  May need to modify type.  Use provision with R6R79 (Typical) or R6R82 (only if specified by Division).",null,null,0,"","//dot/dfsroot01/cccommon/provisions/01a  Automated Proposal Line Up Sheet/2012 Standard Provisions/","","",""]
["PSP",null,null,null,"Click Here to Add Additional Project Specific Provisions","CentralGeneral;CentralResurfacing;CentralStructures;CentralRail;DivGeneral;DivResurf;DivStructures;DivSBEGeneral;DivSBEResurf;Federal;State;Permits;NoPerm",null,null,null,null,null,null,"","//dot/dfsroot01/cccommon/provisions/01a  Automated Proposal Line Up Sheet/2012 Standard Provisions/","","",""]
[131,null,"SP06 R025","SP06R","PRICE ADJUSTMENT FOR ASPHALT BINDER FOR PLANT MIX","CentralGeneral;CentralResurfacing;CentralStructures;CentralRail;DivGeneral;DivResurf;DivStructures;DivSBEGeneral;DivSBEResurf;Federal;State;Permits;NoPerm","2000-11","SP06_R025__Price_Adj_Asphalt_Binder_Plant_Mix.docx","All Projects with Asphalt in Raleigh let projects.  Updated monthly. 1 month lag. Fill in blanks. Divisions use discretion.  Use with all AST projects (with SP06 R54).",null,null,2,"","//dot/dfsroot01/cccommon/provisions/01a  Automated Proposal Line Up Sheet/2012 Standard Provisions/","","",""]
["i",null,null,null,"Asphalt Price",null,null,null,null,null,null,0,"","//dot/dfsroot01/cccommon/provisions/01a  Automated Proposal Line Up Sheet/2012 Standard Provisions/","","",""]
["i",null,null,null,"Date",null,null,null,null,null,null,0,"","//dot/dfsroot01/cccommon/provisions/01a  Automated Proposal Line Up Sheet/2012 Standard Provisions/","","",""]
["PSP",null,null,null,"Click Here to Add Additional Project Specific Provisions","CentralGeneral;CentralResurfacing;CentralStructures;CentralRail;DivGeneral;DivResurf;DivStructures;DivSBEGeneral;DivSBEResurf;Federal;State;Permits;NoPerm",null,null,null,null,null,null,"","//dot/dfsroot01/cccommon/provisions/01a  Automated Proposal Line Up Sheet/2012 Standard Provisions/","","",""]
[132,null,"SP06 R045","SP06R","FINAL SURFACE TESTING NOT REQUIRED","CentralGeneral;CentralResurfacing;CentralStructures;CentralRail;DivGeneral;DivResurf;DivStructures;DivSBEGeneral;DivSBEResurf;Federal;State;Permits;NoPerm","2012-05","SP06_R045__FST_Not_Required.docx","Use if the project is located on a secondary route and has only one lift of new asphalt.  Use on any route where the speed limit is less than 45 mph or  the project is less than one mile in length.  Also use anytime the existing site conditions make it impractical to obtain ridability as determined by the Division (Considerations may include pavement width, traffic phasing constraints, type of facility, and large number of utility adjustments, driveways, or -Y-lines.) ",null,null,0,"","//dot/dfsroot01/cccommon/provisions/01a  Automated Proposal Line Up Sheet/2012 Standard Provisions/","","",""]
["PSP",null,null,null,"Click Here to Add Additional Project Specific Provisions","CentralGeneral;CentralResurfacing;CentralStructures;CentralRail;DivGeneral;DivResurf;DivStructures;DivSBEGeneral;DivSBEResurf;Federal;State;Permits;NoPerm",null,null,null,null,null,null,"","//dot/dfsroot01/cccommon/provisions/01a  Automated Proposal Line Up Sheet/2012 Standard Provisions/","","",""]
[133,null,"SP06 R049R","SP06R","ASPHALT CONCRETE SURFACE COURSE COMPACTION","CentralResurfacing;DivResurf;DivSBEResurf;Federal;State;Permits;NoPerm","2012-08","SP06_R049_R__Asphalt_Conc_Surf_Crs_Compctn.docx","Determined by Division.",null,null,0,"","//dot/dfsroot01/cccommon/provisions/01a  Automated Proposal Line Up Sheet/2012 Standard Provisions/","","",""]
["PSP",null,null,null,"Click Here to Add Additional Project Specific Provisions","CentralResurfacing;DivResurf;DivSBEResurf;Federal;State;Permits;NoPerm",null,null,null,null,null,null,"","//dot/dfsroot01/cccommon/provisions/01a  Automated Proposal Line Up Sheet/2012 Standard Provisions/","","",""]
[134,null,"SP06 R052R","SP06R","WEDGE COURSE","CentralResurfacing;DivResurf;DivSBEResurf;Federal;State;Permits;NoPerm","2012-08","SP06_R052_R__Wedge_Course.docx","Determined by Division.",null,null,0,"","//dot/dfsroot01/cccommon/provisions/01a  Automated Proposal Line Up Sheet/2012 Standard Provisions/","","",""]
["PSP",null,null,null,"Click Here to Add Additional Project Specific Provisions","CentralResurfacing;DivResurf;DivSBEResurf;Federal;State;Permits;NoPerm",null,null,null,null,null,null,"","//dot/dfsroot01/cccommon/provisions/01a  Automated Proposal Line Up Sheet/2012 Standard Provisions/","","",""]
[135,null,"SP06 R054","SP06R","ASPHALT SURFACE TREATMENT","CentralGeneral;CentralResurfacing;CentralStructures;CentralRail;DivGeneral;DivResurf;DivStructures;DivSBEGeneral;DivSBEResurf;Federal;State;Permits;NoPerm","2015-04","SP06_R054__Asphalt Surface Treatment.docx","Pay Items 17485, 17490, 17755, 18035, 18145, 18200, 18255, or 18365.\nUse on ALL projects with Asphalt Surface Treatment .  Check Typical Sections.  Include SP06 R025 asphalt fuel price adjustment with this provision.",null,null,0,"",{"$f":"+$P$6","v":"//dot/dfsroot01/cccommon/provisions/01a  Automated Proposal Line Up Sheet/2012 Standard Provisions/"},"","",""]
["PSP",null,null,null,"Click Here to Add Additional Project Specific Provisions","CentralGeneral;CentralResurfacing;CentralStructures;CentralRail;DivGeneral;DivResurf;DivStructures;DivSBEGeneral;DivSBEResurf;Federal;State;Permits;NoPerm",null,null,null,null,null,null,"","//dot/dfsroot01/cccommon/provisions/01a  Automated Proposal Line Up Sheet/2012 Standard Provisions/","","",""]
[136,null,"SP06 R058R","SP06R","REPAIR OF EXISTING PAVEMENT","CentralResurfacing;DivResurf;DivSBEResurf;Federal;State;Permits;NoPerm","2012-08","SP06_R058_R__Repair_of_Existing_Pavement.docx","Determined by Division.",null,null,0,"","//dot/dfsroot01/cccommon/provisions/01a  Automated Proposal Line Up Sheet/2012 Standard Provisions/","","",""]
["PSP",null,null,null,"Click Here to Add Additional Project Specific Provisions","CentralResurfacing;DivResurf;DivSBEResurf;Federal;State;Permits;NoPerm",null,null,null,null,null,null,"","//dot/dfsroot01/cccommon/provisions/01a  Automated Proposal Line Up Sheet/2012 Standard Provisions/","","",""]
[137,null,"SP06 R061AR","SP06R","RESURFACING EXISTING BRIDGES","CentralResurfacing;DivResurf;DivSBEResurf;Federal;State;Permits;NoPerm","2012-08","SP06_R061_A_R__Resurfacing_Existing_Bridges.docx","ALL Projects have A or B.  \"A\" is the original provision.",null,null,0,"","//dot/dfsroot01/cccommon/provisions/01a  Automated Proposal Line Up Sheet/2012 Standard Provisions/","","",""]
["PSP",null,null,null,"Click Here to Add Additional Project Specific Provisions","CentralResurfacing;DivResurf;DivSBEResurf;Federal;State;Permits;NoPerm",null,null,null,null,null,null,"","//dot/dfsroot01/cccommon/provisions/01a  Automated Proposal Line Up Sheet/2012 Standard Provisions/","","",""]
[138,null,"SP06 R061BR","SP06R","RESURFACING EXISTING BRIDGES (With Milling)","CentralResurfacing;DivResurf;DivSBEResurf;Federal;State;Permits;NoPerm","2012-08","SP06_R061_B_R__Resurfacing_Existing_Bridges.docx","ALL Projects have A or B. ALL Projects.  Division 5 requested \"B\" to add milling requirements.",null,null,0,"","//dot/dfsroot01/cccommon/provisions/01a  Automated Proposal Line Up Sheet/2012 Standard Provisions/","","",{"$f":"IF(B497=\"a\",+C497,+M497)","v":""}]
["PSP",null,null,null,"Click Here to Add Additional Project Specific Provisions","CentralResurfacing;DivResurf;DivSBEResurf;Federal;State;Permits;NoPerm",null,null,null,null,null,null,"","//dot/dfsroot01/cccommon/provisions/01a  Automated Proposal Line Up Sheet/2012 Standard Provisions/","","",""]
[139,null,"SP06 R062","SP06R","OPEN GRADED ASPHALT FRICTION COURSE, PERMEABLE ASPHALT DRAINAGE COURSE, AND ULTRA-THIN BONDED WEARING COURSE","CentralGeneral;CentralResurfacing;CentralStructures;CentralRail;DivGeneral;DivResurf;DivStructures;DivSBEGeneral;DivSBEResurf;Federal;State;Permits;NoPerm","2012-04","SP06_R062__OGAFC_PADC_UTBWC.docx","Include with any of the following pay items:  Items 1661 - 1663 OGAFC;  Items 1671, 1682 PADL;  Items 183910 - 183912 Ultra-Thin Mix;  or  Item 183920 Ultra-Thin Application",null,null,0,"","//dot/dfsroot01/cccommon/provisions/01a  Automated Proposal Line Up Sheet/2012 Standard Provisions/","","",""]
["PSP",null,null,null,"Click Here to Add Additional Project Specific Provisions","CentralGeneral;CentralResurfacing;CentralStructures;CentralRail;DivGeneral;DivResurf;DivStructures;DivSBEGeneral;DivSBEResurf;Federal;State;Permits;NoPerm",null,null,null,null,null,null,"","//dot/dfsroot01/cccommon/provisions/01a  Automated Proposal Line Up Sheet/2012 Standard Provisions/","","",""]
[140,null,"SP06 R067AR","SP06R","PAVING INTERSECTIONS (State Forces)","CentralResurfacing;DivResurf;DivSBEResurf;Federal;State;Permits;NoPerm","2012-08","SP06_R067_A_R__Paving_Intersections_State.docx","Determined by Division.  State Forces to prepare base for surfacing.",null,null,0,"","//dot/dfsroot01/cccommon/provisions/01a  Automated Proposal Line Up Sheet/2012 Standard Provisions/","","",""]
["PSP",null,null,null,"Click Here to Add Additional Project Specific Provisions","CentralResurfacing;DivResurf;DivSBEResurf;Federal;State;Permits;NoPerm",null,null,null,null,null,null,"","//dot/dfsroot01/cccommon/provisions/01a  Automated Proposal Line Up Sheet/2012 Standard Provisions/","","",""]
[141,null,"SP06 R067BR","SP06R","PAVING INTERSECTIONS (Contractor Forces)","CentralResurfacing;DivResurf;DivSBEResurf;Federal;State;Permits;NoPerm","2012-08","SP06_R067_B_R__Paving_Intersections_Contr.docx","Determined by Division. Contractor Forces to prepare base for surfacing.",null,null,0,"","//dot/dfsroot01/cccommon/provisions/01a  Automated Proposal Line Up Sheet/2012 Standard Provisions/","","",""]
["PSP",null,null,null,"Click Here to Add Additional Project Specific Provisions","CentralResurfacing;DivResurf;DivSBEResurf;Federal;State;Permits;NoPerm",null,null,null,null,null,null,"","//dot/dfsroot01/cccommon/provisions/01a  Automated Proposal Line Up Sheet/2012 Standard Provisions/","","",""]
[142,null,"SP06 R070AR","SP06R","PAVING DRIVEWAYS AND MAILBOX TURNOUTS (State Forces)","CentralResurfacing;DivResurf;DivSBEResurf;Federal;State;Permits;NoPerm","2012-08","SP06_R070_A_R__Pav_Driveway_Mailbox_State.docx","Determined by Division.  State Forces to prepare base for surfacing.",null,null,0,"","//dot/dfsroot01/cccommon/provisions/01a  Automated Proposal Line Up Sheet/2012 Standard Provisions/","","",""]
["PSP",null,null,null,"Click Here to Add Additional Project Specific Provisions","CentralResurfacing;DivResurf;DivSBEResurf;Federal;State;Permits;NoPerm",null,null,null,null,null,null,"","//dot/dfsroot01/cccommon/provisions/01a  Automated Proposal Line Up Sheet/2012 Standard Provisions/","","",""]
[143,null,"SP06 R070BR","SP06R","PAVING DRIVEWAYS AND MAILBOX TURNOUTS (Contractor Forces)","CentralResurfacing;DivResurf;DivSBEResurf;Federal;State;Permits;NoPerm","2012-08","SP06_R070_B_R__Pav_Driveway_Mailbox_Contr.docx","Determined by Division. Contractor Forces to prepare base for surfacing.",null,null,0,"","//dot/dfsroot01/cccommon/provisions/01a  Automated Proposal Line Up Sheet/2012 Standard Provisions/","","",""]
["PSP",null,null,null,"Click Here to Add Additional Project Specific Provisions","CentralResurfacing;DivResurf;DivSBEResurf;Federal;State;Permits;NoPerm",null,null,null,null,null,null,"","//dot/dfsroot01/cccommon/provisions/01a  Automated Proposal Line Up Sheet/2012 Standard Provisions/",{"$f":"IF(N508=\"\",\"\",IF(H508=\"\",\"\",IF(+B508=\"a\",CONCATENATE(+N508,+H508),\"\")))","v":""},"",""]
[144,null,"SP06 R076R","SP06R","PAVEMENT WIDTH VARIES","CentralResurfacing;DivResurf;DivSBEResurf;Federal;State;Permits;NoPerm","2012-08","SP06_R076_R__Pavement_Width_Varies.docx","Determined by Division.",null,null,0,"","//dot/dfsroot01/cccommon/provisions/01a  Automated Proposal Line Up Sheet/2012 Standard Provisions/","","",""]
["PSP",null,null,null,"Click Here to Add Additional Project Specific Provisions","CentralResurfacing;DivResurf;DivSBEResurf;Federal;State;Permits;NoPerm",null,null,null,null,null,null,"","//dot/dfsroot01/cccommon/provisions/01a  Automated Proposal Line Up Sheet/2012 Standard Provisions/","","",""]
[145,null,"SP06 R079AR","SP06R","TRENCHING FOR ASPHALT xxx COURSE (Base Course, Contractor Disposes of Excess)","CentralResurfacing;DivResurf;DivSBEResurf;Federal;State;Permits;NoPerm","2012-08","SP06_R079_A_R__Trenching_for_Base_Course.docx","Check to see if there is a trenching detail for base course asphalt.  Contractor disposes of excess material.  Normally don't use if there is an item for Grading.  Check A or B.",null,null,0,"","//dot/dfsroot01/cccommon/provisions/01a  Automated Proposal Line Up Sheet/2012 Standard Provisions/","","",""]
["PSP",null,null,null,"Click Here to Add Additional Project Specific Provisions","CentralResurfacing;DivResurf;DivSBEResurf;Federal;State;Permits;NoPerm",null,null,null,null,null,null,"","//dot/dfsroot01/cccommon/provisions/01a  Automated Proposal Line Up Sheet/2012 Standard Provisions/","","",""]
[146,null,"SP06 R079BR","SP06R","TRENCHING FOR ASPHALT xxx COURSE (Int. Course, Contractor Disposes of Excess)","CentralResurfacing;DivResurf;DivSBEResurf;Federal;State;Permits;NoPerm","2012-08","SP06_R079_B_R__Trenching_Intermediate_Course.docx","Check to see if there is a trenching detail for intermediate course asphalt.  Contractor disposes of excess material.  Normally don't use if there is an item for Grading.  Check A or B.",null,null,0,"","//dot/dfsroot01/cccommon/provisions/01a  Automated Proposal Line Up Sheet/2012 Standard Provisions/","","",""]
["PSP",null,null,null,"Click Here to Add Additional Project Specific Provisions","CentralResurfacing;DivResurf;DivSBEResurf;Federal;State;Permits;NoPerm",null,null,null,null,null,null,"","//dot/dfsroot01/cccommon/provisions/01a  Automated Proposal Line Up Sheet/2012 Standard Provisions/","","",""]
[147,null,"SP06 R082AR","SP06R","TRENCHING FOR ASPHALT xxx COURSE (Base Course, State Disposes of Excess)","CentralResurfacing;DivResurf;DivSBEResurf;Federal;State;Permits;NoPerm","2012-08","SP06_R082_A_R__Trenching_for_Base_Course.docx","Check to see if there is a trenching detail for base course asphalt.  State Forces  dispose of excess material.  Normally don't use if there is an item for Grading.  Check A or B.",null,null,0,"","//dot/dfsroot01/cccommon/provisions/01a  Automated Proposal Line Up Sheet/2012 Standard Provisions/","",{"$f":"CONCATENATE(M515,O515)","v":""},""]
["PSP",null,null,null,"Click Here to Add Additional Project Specific Provisions","CentralResurfacing;DivResurf;DivSBEResurf;Federal;State;Permits;NoPerm",null,null,null,null,null,null,"","//dot/dfsroot01/cccommon/provisions/01a  Automated Proposal Line Up Sheet/2012 Standard Provisions/","","",""]
[148,null,"SP06 R082BR","SP06R","TRENCHING FOR ASPHALT xxx COURSE (Int. Course, State Disposes of Excess)","CentralResurfacing;DivResurf;DivSBEResurf;Federal;State;Permits;NoPerm","2012-08","SP06_R082_B_R__Trenching_Intermediate_Course.docx","Check to see if there is a trenching detail for intermediate course asphalt.  State Forces  dispose of excess material.  Normally don't use if there is an item for Grading.  Check A or B.",null,null,0,"","//dot/dfsroot01/cccommon/provisions/01a  Automated Proposal Line Up Sheet/2012 Standard Provisions/","","",""]
["PSP",null,null,null,"Click Here to Add Additional Project Specific Provisions","CentralResurfacing;DivResurf;DivSBEResurf;Federal;State;Permits;NoPerm",null,null,null,null,null,null,"","//dot/dfsroot01/cccommon/provisions/01a  Automated Proposal Line Up Sheet/2012 Standard Provisions/","","",""]
[149,null,"SP06 R085R","SP06R","ASPHALT CONC. SURF. COURSE, TYPE xxx (Leveling Course)","CentralResurfacing;DivResurf;DivSBEResurf;Federal;State;Permits;NoPerm","2012-08","SP06_R085_R__Asph_Conc_SC_Type_Level_Course.docx","Pay Item 1520-1551 (leveling Course) must be included in est. Don't fill in type.",null,null,0,"","//dot/dfsroot01/cccommon/provisions/01a  Automated Proposal Line Up Sheet/2012 Standard Provisions/","","",""]
["PSP",null,null,null,"Click Here to Add Additional Project Specific Provisions","CentralResurfacing;DivResurf;DivSBEResurf;Federal;State;Permits;NoPerm",null,null,null,null,null,null,"","//dot/dfsroot01/cccommon/provisions/01a  Automated Proposal Line Up Sheet/2012 Standard Provisions/","","",""]
[150,null,"SP06 R090","SP06R","ASPHALT PAVEMENTS - ULTRA THIN","CentralResurfacing;DivResurf;DivSBEResurf;Federal;State;Permits;NoPerm","2015-09","SP06_R090__Asphalt_Pavements_Ultra-thin.docx","Use when Section 661 Ultra Thin Bonded Wearing Surface is in contract",null,null,0,"","//dot/dfsroot01/cccommon/provisions/01a  Automated Proposal Line Up Sheet/2012 Standard Provisions/","","",""]
["PSP",null,null,null,"Click Here to Add Additional Project Specific Provisions","CentralResurfacing;DivResurf;DivSBEResurf;Federal;State;Permits;NoPerm",null,null,null,null,null,null,"","//dot/dfsroot01/cccommon/provisions/01a  Automated Proposal Line Up Sheet/2012 Standard Provisions/","","",""]
[150,null,"SP06 R088R","SP06R","PATCHING EXISTING PAVEMENT","CentralResurfacing;DivResurf;DivSBEResurf;Federal;State;Permits;NoPerm","2012-08","SP06_R088_R__Patching_Existing_Pavement.docx","Pay Item 1704 must be included in estimate.",null,null,0,{"$f":"IF(RIGHT(LEFT(E523,2),1)=\":\",E523,\"\")","v":""},"//dot/dfsroot01/cccommon/provisions/01a  Automated Proposal Line Up Sheet/2012 Standard Provisions/",{"$f":"IF(N523=\"\",\"\",IF(H523=\"\",\"\",IF(+B523=\"a\",CONCATENATE(+N523,+H523),\"\")))","v":""},{"$f":"CONCATENATE(M523,O523)","v":""},{"$f":"IF(B523=\"a\",+C523,+M523)","v":""}]
["PSP",null,null,null,"Click Here to Add Additional Project Specific Provisions","CentralResurfacing;DivResurf;DivSBEResurf;Federal;State;Permits;NoPerm",null,null,null,null,null,null,"","//dot/dfsroot01/cccommon/provisions/01a  Automated Proposal Line Up Sheet/2012 Standard Provisions/","","",""]
[151,null,"SP08 R010","SP06R","MODIFIED CONCRETE FLUME WITH CONCRETE OUTLET","CentralGeneral;CentralStructures;CentralRail;DivGeneral;DivStructures;Federal;State;Permits;NoPerm","2012-12","SP08_R010__Mod_Concrt_Flume_wth_Concrt_Outlet.docx","Pay Item 2570. Use this provision if item for Modified Concrete Flume w/ Concrete Outlet is included in estimate.  ",null,null,0,"","//dot/dfsroot01/cccommon/provisions/01a  Automated Proposal Line Up Sheet/2012 Standard Provisions/","","",""]
["PSP",null,null,null,"Click Here to Add Additional Project Specific Provisions","CentralGeneral;CentralStructures;CentralRail;DivGeneral;DivStructures;Federal;State;Permits;NoPerm",null,null,null,null,null,null,"","//dot/dfsroot01/cccommon/provisions/01a  Automated Proposal Line Up Sheet/2012 Standard Provisions/","","",""]
[153,null,"SP08 R020","SP08R","SLUICE GATE","CentralGeneral;CentralStructures;CentralRail;DivGeneral;DivStructures;Federal;State;Permits;NoPerm","2009-03","SP08_R020__Sluice_Gate.docx","Pay Item 2462. Use this provision if item for Sluice Gate is included in est.",null,null,0,"","//dot/dfsroot01/cccommon/provisions/01a  Automated Proposal Line Up Sheet/2012 Standard Provisions/","","",""]
["PSP",null,null,null,"Click Here to Add Additional Project Specific Provisions","CentralGeneral;CentralStructures;CentralRail;DivGeneral;DivStructures;Federal;State;Permits;NoPerm",null,null,null,null,null,null,"","//dot/dfsroot01/cccommon/provisions/01a  Automated Proposal Line Up Sheet/2012 Standard Provisions/","","",""]
[154,null,"SP08 R045","SP08R","CONVERTING EXISTING DROP INLET TO SHOULDER DROP INLET","CentralGeneral;CentralStructures;CentralRail;DivGeneral;DivStructures;Federal;State;Permits;NoPerm","2006-07","SP08_R045__Convert_Drp_Inlt_to_Shldr_Drp_Inlt.docx","Pay Items 2860-2980. Use this provision if item for Convert Existing Drop Inlet to Shoulder Drop Inlet is included in est. These are SP items.",null,null,0,"","//dot/dfsroot01/cccommon/provisions/01a  Automated Proposal Line Up Sheet/2012 Standard Provisions/","","",""]
["PSP",null,null,null,"Click Here to Add Additional Project Specific Provisions","CentralGeneral;CentralStructures;CentralRail;DivGeneral;DivStructures;Federal;State;Permits;NoPerm",null,null,null,null,null,null,"","//dot/dfsroot01/cccommon/provisions/01a  Automated Proposal Line Up Sheet/2012 Standard Provisions/","","",""]
[155,null,"SP08 R050","SP08R","CONVERTING EXISTING ___ TO ___","CentralGeneral;CentralStructures;CentralRail;DivGeneral;DivStructures;Federal;State;Permits;NoPerm","2006-07","SP08_R050__Convert_Existing___To___.docx","Pay Items  2860-2995. Use this provision if item for Convert ______ to _____ is included in estimate.  Fill in the blanks. Include ONLY if listed as SP item.",null,null,2,"","//dot/dfsroot01/cccommon/provisions/01a  Automated Proposal Line Up Sheet/2012 Standard Provisions/","","",""]
["i",null,null,null,"Convert Existing",null,null,null,"",null,null,0,"","//dot/dfsroot01/cccommon/provisions/01a  Automated Proposal Line Up Sheet/2012 Standard Provisions/","","",""]
["i",null,null,null,"To",null,null,null,"",null,null,0,"","//dot/dfsroot01/cccommon/provisions/01a  Automated Proposal Line Up Sheet/2012 Standard Provisions/","","",""]
["PSP",null,null,null,"Click Here to Add Additional Project Specific Provisions","CentralGeneral;CentralStructures;CentralRail;DivGeneral;DivStructures;Federal;State;Permits;NoPerm",null,null,null,null,null,null,"","//dot/dfsroot01/cccommon/provisions/01a  Automated Proposal Line Up Sheet/2012 Standard Provisions/","","",""]
[156,null,"SP08 R055","SP08R","REMOVAL AND STOCKPILE OF EXISTING GUARDRAIL","CentralGeneral;CentralStructures;CentralRail;DivGeneral;DivStructures;Federal;State;Permits;NoPerm","2006-07","SP08_R055__Remove_Stockpile_Exsting_Guardrail.docx","Pay Item 3375.  Use this provision if specified in Field Inspection Notes.",null,null,0,"","//dot/dfsroot01/cccommon/provisions/01a  Automated Proposal Line Up Sheet/2012 Standard Provisions/","","",""]
["PSP",null,null,null,"Click Here to Add Additional Project Specific Provisions","CentralGeneral;CentralStructures;CentralRail;DivGeneral;DivStructures;Federal;State;Permits;NoPerm",null,null,null,null,null,null,"","//dot/dfsroot01/cccommon/provisions/01a  Automated Proposal Line Up Sheet/2012 Standard Provisions/","","",""]
[157,null,"SP08 R060","SP08R","GUARDRAIL ANCHOR UNITS TYPE M-350","CentralGeneral;CentralStructures;CentralRail;DivGeneral;DivStructures;Federal;State;Permits;NoPerm","2012-01","SP08_R060__Guardrail_Anchr_Unit_Type_M-350.docx","Pay Item 3285.  Use this provision if item for Guardrail Anchor Units Type M-350 is included in estimate.  ",null,null,0,"","//dot/dfsroot01/cccommon/provisions/01a  Automated Proposal Line Up Sheet/2012 Standard Provisions/","","",""]
["PSP",null,null,null,"Click Here to Add Additional Project Specific Provisions","CentralGeneral;CentralStructures;CentralRail;DivGeneral;DivStructures;Federal;State;Permits;NoPerm",null,null,null,null,null,null,"","//dot/dfsroot01/cccommon/provisions/01a  Automated Proposal Line Up Sheet/2012 Standard Provisions/","","",""]
[158,null,"SP08 R064","SP08R","GUARDRAIL ANCHOR UNITS TYPE TL-2","CentralGeneral;CentralResurfacing;CentralStructures;CentralRail;DivGeneral;DivResurf;DivStructures;DivSBEGeneral;DivSBEResurf;Federal;State;Permits;NoPerm","2011-08","SP08_R064__Guardrail_Anchr_Unit_Type_TL-2.docx","Pay Item 3165.  Use this provision if item for Guardrail Anchor Unit Type 350 TL-2 is included in estimate.",null,null,0,{"$f":"IF(RIGHT(LEFT(E539,2),1)=\":\",E539,\"\")","v":""},"//dot/dfsroot01/cccommon/provisions/01a  Automated Proposal Line Up Sheet/2012 Standard Provisions/","","",""]
["PSP",null,null,null,"Click Here to Add Additional Project Specific Provisions","CentralGeneral;CentralResurfacing;CentralStructures;CentralRail;DivGeneral;DivResurf;DivStructures;DivSBEGeneral;DivSBEResurf;Federal;State;Permits;NoPerm",null,null,null,null,null,null,"","//dot/dfsroot01/cccommon/provisions/01a  Automated Proposal Line Up Sheet/2012 Standard Provisions/","","",""]
[159,null,"SP08 R065","SP08R","GUARDRAIL ANCHOR UNITS TYPE 350","CentralGeneral;CentralResurfacing;CentralStructures;CentralRail;DivGeneral;DivResurf;DivStructures;DivSBEGeneral;DivSBEResurf;Federal;State;Permits;NoPerm","2011-08","SP08_R065__Guardrail_Anchr_Unit_Type_350.docx","Pay Item 3270.  Use this provision if item for Guardrail Anchor Units, Type 350 is included in estimate.  Also for Temporary Anchor Item 33891.",null,null,0,"","//dot/dfsroot01/cccommon/provisions/01a  Automated Proposal Line Up Sheet/2012 Standard Provisions/","","",""]
["PSP",null,null,null,"Click Here to Add Additional Project Specific Provisions","CentralGeneral;CentralResurfacing;CentralStructures;CentralRail;DivGeneral;DivResurf;DivStructures;DivSBEGeneral;DivSBEResurf;Federal;State;Permits;NoPerm",null,null,null,null,null,null,"","//dot/dfsroot01/cccommon/provisions/01a  Automated Proposal Line Up Sheet/2012 Standard Provisions/","","",""]
[160,null,"SP08 R075","SP08R","IMPACT ATTENUATOR UNITS TYPE 350","CentralGeneral;CentralStructures;CentralRail;DivGeneral;DivStructures;Federal;State;Permits;NoPerm","2012-01","SP08_R075__Impact_Attenuator_Units_Type_350.docx","Pay Item 3000. Use this provision if item for Impact Attenuator Unit Type 350 is included in estimate.",null,null,0,"","//dot/dfsroot01/cccommon/provisions/01a  Automated Proposal Line Up Sheet/2012 Standard Provisions/","","",""]
["PSP",null,null,null,"Click Here to Add Additional Project Specific Provisions","CentralGeneral;CentralStructures;CentralRail;DivGeneral;DivStructures;Federal;State;Permits;NoPerm",null,null,null,null,null,null,"","//dot/dfsroot01/cccommon/provisions/01a  Automated Proposal Line Up Sheet/2012 Standard Provisions/","","",""]
[161,null,"SP08 R085","SP08R","TEMPORARY WOVEN WIRE FENCE","CentralGeneral;CentralStructures;CentralRail;DivGeneral;DivStructures;Federal;State;Permits;NoPerm","2013-10","SP08_R085__Temporary_Woven_Wire_Fence.docx","Pay Item 3563. Use this provision if item for Temporary Woven Wire Fence w/ Posts is included in estimate.  ",null,null,0,"","//dot/dfsroot01/cccommon/provisions/01a  Automated Proposal Line Up Sheet/2012 Standard Provisions/","","",""]
["PSP",null,null,null,"Click Here to Add Additional Project Specific Provisions","CentralGeneral;CentralStructures;CentralRail;DivGeneral;DivStructures;Federal;State;Permits;NoPerm",null,null,null,null,null,null,"","//dot/dfsroot01/cccommon/provisions/01a  Automated Proposal Line Up Sheet/2012 Standard Provisions/","","",""]
[162,null,"SP08 R095R","SP08R","ADJUSTMENTS OF MANHOLES","CentralResurfacing;DivResurf;DivSBEResurf;Federal;State;Permits;NoPerm","2012-08","SP08_R095_R__Adjustment_of_Manholes.docx","Determined by Division, usually requested by Division 5.  Cast Iron or Steel Fittings NOT permitted unless approved by Engineer.",null,null,0,"","//dot/dfsroot01/cccommon/provisions/01a  Automated Proposal Line Up Sheet/2012 Standard Provisions/","","",""]
["PSP",null,null,null,"Click Here to Add Additional Project Specific Provisions","CentralResurfacing;DivResurf;DivSBEResurf;Federal;State;Permits;NoPerm",null,null,null,null,null,null,"","//dot/dfsroot01/cccommon/provisions/01a  Automated Proposal Line Up Sheet/2012 Standard Provisions/","","",""]
[163,null,"SP08 R096R","SP08R","ADJUSTMENTS TO MANHOLES","CentralResurfacing;DivResurf;DivSBEResurf;Federal;State;Permits;NoPerm","2012-08","SP08_R096_R__Adjustment_to_Manholes.docx","Determined by Div., Rings or Rapid Set, Requires App. by Engineer.",null,null,0,"","//dot/dfsroot01/cccommon/provisions/01a  Automated Proposal Line Up Sheet/2012 Standard Provisions/","","",""]
["PSP",null,null,null,"Click Here to Add Additional Project Specific Provisions","CentralResurfacing;DivResurf;DivSBEResurf;Federal;State;Permits;NoPerm",null,null,null,null,null,null,"","//dot/dfsroot01/cccommon/provisions/01a  Automated Proposal Line Up Sheet/2012 Standard Provisions/","","",""]
[164,null,"SP08 R097R","SP08R","ADJUSTMENT OF MANHOLES, METER BOXES, AND VALVE BOXES","CentralResurfacing;DivResurf;DivSBEResurf;Federal;State;Permits;NoPerm","2012-08","SP08_R097_R__Adj_Manholes_Meter_Box_Valve_Box.docx","Determined by Division, Cast Iron or Steel Fitting are NOT permitted.",null,null,0,"","//dot/dfsroot01/cccommon/provisions/01a  Automated Proposal Line Up Sheet/2012 Standard Provisions/","","",""]
["PSP",null,null,null,"Click Here to Add Additional Project Specific Provisions","CentralResurfacing;DivResurf;DivSBEResurf;Federal;State;Permits;NoPerm",null,null,null,null,null,null,"","//dot/dfsroot01/cccommon/provisions/01a  Automated Proposal Line Up Sheet/2012 Standard Provisions/","","",""]
[165,null,"SP08 R100","SP08R","CHAIN LINK FENCE w/BARBED WIRE ON EXTENSION ARMS","CentralGeneral;CentralStructures;CentralRail;DivGeneral;DivStructures;Federal;State;Permits;NoPerm","1995-07","SP08_R100__Chain_Link_Fence_Brbd_Wire_Ext_Arm.docx","Use this provision if barbed wire and post extensions are part of chain link fence item.  NO separate pay item.",null,null,1,"","//dot/dfsroot01/cccommon/provisions/01a  Automated Proposal Line Up Sheet/2012 Standard Provisions/","","",""]
["i",null,null,null,"Size or Sizes of Fence",null,null,null,"",null,null,0,"","//dot/dfsroot01/cccommon/provisions/01a  Automated Proposal Line Up Sheet/2012 Standard Provisions/","","",""]
["PSP",null,null,null,"Click Here to Add Additional Project Specific Provisions","CentralGeneral;CentralStructures;CentralRail;DivGeneral;DivStructures;Federal;State;Permits;NoPerm",null,null,null,null,null,null,"","//dot/dfsroot01/cccommon/provisions/01a  Automated Proposal Line Up Sheet/2012 Standard Provisions/","","",""]
[166,null,"SP08 R105","SP08R","PREFORMED SCOUR HOLE WITH LEVEL SPREADER","CentralGeneral;CentralStructures;CentralRail;DivGeneral;DivStructures;Federal;State;Permits;NoPerm","2009-10","SP08_R105__Prfrm_Scour_Hole_Level_Spreader.docx","Pay Item 3659. Use this provision if item for Preformed Scour Hole is included in estimate.  Detail on Plans.",null,null,0,"","//dot/dfsroot01/cccommon/provisions/01a  Automated Proposal Line Up Sheet/2012 Standard Provisions/","","",""]
["PSP",null,null,null,"Click Here to Add Additional Project Specific Provisions","CentralGeneral;CentralStructures;CentralRail;DivGeneral;DivStructures;Federal;State;Permits;NoPerm",null,null,null,null,null,null,"",{"$f":"+$P$6","v":"//dot/dfsroot01/cccommon/provisions/01a  Automated Proposal Line Up Sheet/2012 Standard Provisions/"},"","",""]
[167,null,"SP08 R125","SP08R","DETECTABLE WARNINGS FOR EXISTING CURB RAMPS","CentralGeneral;CentralResurfacing;CentralStructures;CentralRail;DivGeneral;DivResurf;DivStructures;DivSBEGeneral;DivSBEResurf;Federal;State;Permits;NoPerm","2011-08","SP08_R125__Retrofit_Existing_Curb_Ramps.docx","Pay Item 2600. Use this provision if item for Retrofit Existing Curb Ramp is included in estimate.  Should be Plan Detail.  Adding Domes Only.",null,null,0,"","//dot/dfsroot01/cccommon/provisions/01a  Automated Proposal Line Up Sheet/2012 Standard Provisions/","","",""]
["PSP",null,null,null,"Click Here to Add Additional Project Specific Provisions","CentralGeneral;CentralResurfacing;CentralStructures;CentralRail;DivGeneral;DivResurf;DivStructures;DivSBEGeneral;DivSBEResurf;Federal;State;Permits;NoPerm",null,null,null,null,null,null,"","//dot/dfsroot01/cccommon/provisions/01a  Automated Proposal Line Up Sheet/2012 Standard Provisions/","","",""]
[168,null,"SP08 R126","SP08R","DETECTABLE WARNINGS FOR PROPOSED CURB RAMPS","CentralGeneral;CentralResurfacing;CentralStructures;CentralRail;DivGeneral;DivResurf;DivStructures;DivSBEGeneral;DivSBEResurf;Federal;State;Permits;NoPerm","2011-08","SP08_R126__New_Curb_Ramps_Detect_Warning.docx","Pay Item 2605. Use this provision if item for Concrete Curb Ramps is included in estimate.  Should be Plan Detail.  New Concrete Ramps w/Domes",null,null,0,"","//dot/dfsroot01/cccommon/provisions/01a  Automated Proposal Line Up Sheet/2012 Standard Provisions/","","",""]
["PSP",null,null,null,"Click Here to Add Additional Project Specific Provisions","CentralGeneral;CentralResurfacing;CentralStructures;CentralRail;DivGeneral;DivResurf;DivStructures;DivSBEGeneral;DivSBEResurf;Federal;State;Permits;NoPerm",null,null,null,null,null,null,"","//dot/dfsroot01/cccommon/provisions/01a  Automated Proposal Line Up Sheet/2012 Standard Provisions/","","",""]
[169,null,"SP08 R127","SP08R","REMOVE AND REPLACE CURB RAMPS","CentralGeneral;CentralResurfacing;CentralStructures;CentralRail;DivGeneral;DivResurf;DivStructures;DivSBEGeneral;DivSBEResurf;Federal;State;Permits;NoPerm","2012-08","SP08_R127__Remove_and_Replace_Curb_Ramps.docx","Pay Item 2759.  Use this provision if there is a Generic work item for Remove and Replace Curb Ramps. (Rare)  Plan Detail. Existing Ramp Damaged.",null,null,0,"","//dot/dfsroot01/cccommon/provisions/01a  Automated Proposal Line Up Sheet/2012 Standard Provisions/","","",""]
["PSP",null,null,null,"Click Here to Add Additional Project Specific Provisions","CentralGeneral;CentralResurfacing;CentralStructures;CentralRail;DivGeneral;DivResurf;DivStructures;DivSBEGeneral;DivSBEResurf;Federal;State;Permits;NoPerm",null,null,null,null,null,null,"","//dot/dfsroot01/cccommon/provisions/01a  Automated Proposal Line Up Sheet/2012 Standard Provisions/","","",{"$f":"IF(B563=\"a\",+C563,+M563)","v":""}]
[170,null,"SP09 R002","SP08R","STREET SIGNS AND ROUTE MARKERS","CentralGeneral;CentralStructures;CentralRail;DivGeneral;DivStructures;Federal;State;Permits;NoPerm","1995-07","SP09_R002__Street_Signs_Markers_Route_Markers.docx","Use this provision if specified in the Field Inspection Notes.",null,null,0,"","//dot/dfsroot01/cccommon/provisions/01a  Automated Proposal Line Up Sheet/2012 Standard Provisions/","","",""]
["PSP",null,null,null,"Click Here to Add Additional Project Specific Provisions","CentralGeneral;CentralStructures;CentralRail;DivGeneral;DivStructures;Federal;State;Permits;NoPerm",null,null,null,null,null,null,"","//dot/dfsroot01/cccommon/provisions/01a  Automated Proposal Line Up Sheet/2012 Standard Provisions/","","",""]
[171,null,"SP09 R005","SP08R","FOUNDATIONS AND ANCHOR ROD ASSEMBLIES FOR METAL POLES","CentralGeneral;CentralStructures;CentralRail;DivGeneral;DivStructures;Federal;State;Permits;NoPerm","2015-05","SP09_R005__Foundations_Anchor_Rod_Assembly.docx","Pay Item 4057, 5025, 5070, or 7614.  Use with signals, cameras, overhead and dynamic message signs (DMS) and high mount and low level light standards supported by metal poles or upright trusses.",null,null,0,"","//dot/dfsroot01/cccommon/provisions/01a  Automated Proposal Line Up Sheet/2012 Standard Provisions/","","",""]
["PSP",null,null,null,"Click Here to Add Additional Project Specific Provisions","CentralGeneral;CentralStructures;CentralRail;DivGeneral;DivStructures;Federal;State;Permits;NoPerm",null,null,null,null,null,null,"","//dot/dfsroot01/cccommon/provisions/01a  Automated Proposal Line Up Sheet/2012 Standard Provisions/","","",""]
[172,null,"SP10 R001","SP09R","MATERIALS","CentralGeneral;CentralResurfacing;CentralStructures;CentralRail;DivGeneral;DivResurf;DivStructures;DivSBEGeneral;DivSBEResurf;Federal;State;Permits;NoPerm","2015-05","SP10_R001__Materials.docx","All projects.",null,null,0,"","//dot/dfsroot01/cccommon/provisions/01a  Automated Proposal Line Up Sheet/2012 Standard Provisions/","","",""]
["PSP",null,null,null,"Click Here to Add Additional Project Specific Provisions","CentralGeneral;CentralResurfacing;CentralStructures;CentralRail;DivGeneral;DivResurf;DivStructures;DivSBEGeneral;DivSBEResurf;Federal;State;Permits;NoPerm",null,null,null,null,null,null,"","//dot/dfsroot01/cccommon/provisions/01a  Automated Proposal Line Up Sheet/2012 Standard Provisions/","","",""]
[173,null,"SP10 R002","SP10R","HIGH STRENGTH CONCRETE FOR DRIVEWAYS","CentralGeneral;CentralResurfacing;CentralStructures;CentralRail;DivGeneral;DivResurf;DivStructures;DivSBEGeneral;DivSBEResurf;Federal;State;Permits;NoPerm","2012-01","SP10_R002__High_Str_Concrete_For_Driveways.docx","Pay Item 2612 for concrete driveways must be in est. Use this provision if specified in the Field Inspection Notes.",null,null,0,"","//dot/dfsroot01/cccommon/provisions/01a  Automated Proposal Line Up Sheet/2012 Standard Provisions/","","",""]
["PSP",null,null,null,"Click Here to Add Additional Project Specific Provisions","CentralGeneral;CentralResurfacing;CentralStructures;CentralRail;DivGeneral;DivResurf;DivStructures;DivSBEGeneral;DivSBEResurf;Federal;State;Permits;NoPerm",null,null,null,null,null,null,"","//dot/dfsroot01/cccommon/provisions/01a  Automated Proposal Line Up Sheet/2012 Standard Provisions/","","",""]
[174,null,"SP10 R005","SP10R","SELECT MATERIAL, CLASS III, TYPE 3","CentralGeneral;CentralResurfacing;CentralStructures;CentralRail;DivGeneral;DivResurf;DivStructures;DivSBEGeneral;DivSBEResurf;Federal;State;Permits;NoPerm","2012-01","SP10_R005__Select_Material_Class_III_Type_3.docx","Pay Items 0194, 0195, 0314, 58350, or 583640-58367241.  Use with Select Granular Material or Select Material Class III.  Also, use with encasement pipes (not carrier pipe size) of 36\" or greater.",null,null,0,"","//dot/dfsroot01/cccommon/provisions/01a  Automated Proposal Line Up Sheet/2012 Standard Provisions/","","",""]
["PSP",null,null,null,"Click Here to Add Additional Project Specific Provisions","CentralGeneral;CentralResurfacing;CentralStructures;CentralRail;DivGeneral;DivResurf;DivStructures;DivSBEGeneral;DivSBEResurf;Federal;State;Permits;NoPerm",null,null,null,null,null,null,"","//dot/dfsroot01/cccommon/provisions/01a  Automated Proposal Line Up Sheet/2012 Standard Provisions/","","",""]
[175,null,"SP10 R010","SP10R","SHOULDER AND SLOPE BORROW","CentralGeneral;CentralResurfacing;CentralStructures;CentralRail;DivGeneral;DivResurf;DivStructures;DivSBEGeneral;DivSBEResurf;Federal;State;Permits;NoPerm","2013-03","SP10_R010__Shoulder and Slope Borrow.docx","All projects with shoulder or slope work.",null,null,0,"","//dot/dfsroot01/cccommon/provisions/01a  Automated Proposal Line Up Sheet/2012 Standard Provisions/",{"$f":"IF(N574=\"\",\"\",IF(H574=\"\",\"\",IF(+B574=\"a\",CONCATENATE(+N574,+H574),\"\")))","v":""},"",""]
["PSP",null,null,null,"Click Here to Add Additional Project Specific Provisions","CentralGeneral;CentralResurfacing;CentralStructures;CentralRail;DivGeneral;DivResurf;DivStructures;DivSBEGeneral;DivSBEResurf;Federal;State;Permits;NoPerm",null,null,null,null,null,null,"","//dot/dfsroot01/cccommon/provisions/01a  Automated Proposal Line Up Sheet/2012 Standard Provisions/","","",""]
[175,null,"SP10 R020","SP10R","GROUT PRODUCTION AND DELIVERY","CentralGeneral;CentralResurfacing;CentralStructures;CentralRail;DivGeneral;DivResurf;DivStructures;DivSBEGeneral;DivSBEResurf;Federal;State;Permits;NoPerm","2015-03","SP10_R020__Grout Production and Delivery.docx","All projects.",null,null,0,{"$f":"IF(RIGHT(LEFT(E576,2),1)=\":\",E576,\"\")","v":""},"//dot/dfsroot01/cccommon/provisions/01a  Automated Proposal Line Up Sheet/2012 Standard Provisions/",{"$f":"IF(N576=\"\",\"\",IF(H576=\"\",\"\",IF(+B576=\"a\",CONCATENATE(+N576,+H576),\"\")))","v":""},{"$f":"CONCATENATE(M576,O576)","v":""},{"$f":"IF(B576=\"a\",+C576,+M576)","v":""}]
["PSP",null,null,null,"Click Here to Add Additional Project Specific Provisions","CentralGeneral;CentralResurfacing;CentralStructures;CentralRail;DivGeneral;DivResurf;DivStructures;DivSBEGeneral;DivSBEResurf;Federal;State;Permits;NoPerm",null,null,null,null,null,null,"","//dot/dfsroot01/cccommon/provisions/01a  Automated Proposal Line Up Sheet/2012 Standard Provisions/","","",""]
[176,null,"SP11 R002","SP10R","TEMPORARY SHORING","CentralGeneral;CentralStructures;CentralRail;DivGeneral;DivStructures;DivSBEGeneral;Federal;State;Permits;NoPerm","2013-05","SP11_R002__Temporary_Shoring.docx","Pay Item 0199. Use this provision when there are items for Temporary Shoring for Maint. of Traffic included in the est. Check detail sheets.  Use when the Standard Shoring provision is provided by Geotech.",null,null,0,"","//dot/dfsroot01/cccommon/provisions/01a  Automated Proposal Line Up Sheet/2012 Standard Provisions/","","",""]
["PSP",null,null,null,"Click Here to Add Additional Project Specific Provisions","CentralGeneral;CentralStructures;CentralRail;DivGeneral;DivStructures;DivSBEGeneral;Federal;State;Permits;NoPerm",null,null,null,null,null,null,"","//dot/dfsroot01/cccommon/provisions/01a  Automated Proposal Line Up Sheet/2012 Standard Provisions/","","",""]
[177,null,"SP11 R005","SP11R","TEMPORARY TRAFFIC CONTROL DEVICES","CentralGeneral;CentralStructures;CentralRail;DivGeneral;DivStructures;Federal;State;Permits;NoPerm","2012-01","SP11_R005__Temporary_Traffic_Control_Devices.docx","Pay Item 4399. Use this provision with \"standard\" lump sum traffic control.  Do NOT use with RWZ-1 Traffic Control Provision",null,null,0,"","//dot/dfsroot01/cccommon/provisions/01a  Automated Proposal Line Up Sheet/2012 Standard Provisions/","","",""]
["PSP",null,null,null,"Click Here to Add Additional Project Specific Provisions","CentralGeneral;CentralStructures;CentralRail;DivGeneral;DivStructures;Federal;State;Permits;NoPerm",null,null,null,null,null,null,"","//dot/dfsroot01/cccommon/provisions/01a  Automated Proposal Line Up Sheet/2012 Standard Provisions/","","",""]
[178,null,"SP11 R010","SP11R","TRUCK MOUNTED CHANGEABLE MESSAGE SIGNS","CentralGeneral;CentralResurfacing;CentralStructures;CentralRail;DivGeneral;DivResurf;DivStructures;DivSBEGeneral;DivSBEResurf;Federal;State;Permits;NoPerm","2012-08","SP11_R010__Truck_Mounted_CMS.docx","Pay Item 4399, 4420-4422.  Use with portable changeable message signs. Use if have RWZ 1 in contract.",null,null,0,"","//dot/dfsroot01/cccommon/provisions/01a  Automated Proposal Line Up Sheet/2012 Standard Provisions/","","",""]
["PSP",null,null,null,"Click Here to Add Additional Project Specific Provisions","CentralGeneral;CentralResurfacing;CentralStructures;CentralRail;DivGeneral;DivResurf;DivStructures;DivSBEGeneral;DivSBEResurf;Federal;State;Permits;NoPerm",null,null,null,null,null,null,"","//dot/dfsroot01/cccommon/provisions/01a  Automated Proposal Line Up Sheet/2012 Standard Provisions/","",{"$f":"CONCATENATE(M583,O583)","v":""},""]
[178,null,"SP11 R020","SP11R","GROUT REFERENCES FOR POSITIVE PROTECTION","CentralGeneral;CentralResurfacing;CentralStructures;CentralRail;DivGeneral;DivResurf;DivStructures;DivSBEGeneral;DivSBEResurf;Federal;State;Permits;NoPerm","2015-05","SP11_R020__Grout References for Positive Protection.docx","Pay Item 44900, 45050.  Use with portable concrete barriers (anchored).",null,null,0,{"$f":"IF(RIGHT(LEFT(E584,2),1)=\":\",E584,\"\")","v":""},"//dot/dfsroot01/cccommon/provisions/01a  Automated Proposal Line Up Sheet/2012 Standard Provisions/",{"$f":"IF(N584=\"\",\"\",IF(H584=\"\",\"\",IF(+B584=\"a\",CONCATENATE(+N584,+H584),\"\")))","v":""},"",{"$f":"IF(B584=\"a\",+C584,+M584)","v":""}]
["PSP",null,null,null,"Click Here to Add Additional Project Specific Provisions","CentralGeneral;CentralResurfacing;CentralStructures;CentralRail;DivGeneral;DivResurf;DivStructures;DivSBEGeneral;DivSBEResurf;Federal;State;Permits;NoPerm",null,null,null,null,null,null,"","//dot/dfsroot01/cccommon/provisions/01a  Automated Proposal Line Up Sheet/2012 Standard Provisions/","",{"$f":"CONCATENATE(M585,O585)","v":""},""]
[179,null,"SP14 R002","SP14R","COORDINATION OF LIGHTING WORK","CentralGeneral;CentralStructures;CentralRail;DivGeneral;DivStructures;Federal;State;Permits;NoPerm","2012-08","SP14_R002__Coordination_of_Lighting_Work.docx","Pay Items 5000-5273. All Projects with extg. and proposed lighting. ",null,null,0,"","//dot/dfsroot01/cccommon/provisions/01a  Automated Proposal Line Up Sheet/2012 Standard Provisions/","","",""]
["PSP",null,null,null,"Click Here to Add Additional Project Specific Provisions","CentralGeneral;CentralStructures;CentralRail;DivGeneral;DivStructures;Federal;State;Permits;NoPerm",null,null,null,null,null,null,{"$f":"IF(RIGHT(LEFT(E587,2),1)=\":\",E587,\"\")","v":""},"//dot/dfsroot01/cccommon/provisions/01a  Automated Proposal Line Up Sheet/2012 Standard Provisions/",{"$f":"IF(N587=\"\",\"\",IF(H587=\"\",\"\",IF(+B587=\"a\",CONCATENATE(+N587,+H587),\"\")))","v":""},"",""]
[179,null,"SP15 R020","SP15R","SANITARY SEWER","CentralGeneral;CentralResurfacing;CentralStructures;CentralRail;DivGeneral;DivResurf;DivStructures;DivSBEGeneral;DivSBEResurf;Federal;State;Permits;NoPerm","2013-11","SP15_R020__Sanitary Sewer.docx","Items 5691-5692. DIVISION USE ONLY.  Raleigh confirm provision in Utilities section if sanitary gravity sewer pay item.",null,null,0,{"$f":"IF(RIGHT(LEFT(E588,2),1)=\":\",E588,\"\")","v":""},"//dot/dfsroot01/cccommon/provisions/01a  Automated Proposal Line Up Sheet/2012 Standard Provisions/",{"$f":"IF(N588=\"\",\"\",IF(H588=\"\",\"\",IF(+B588=\"a\",CONCATENATE(+N588,+H588),\"\")))","v":""},"",""]
["PSP",null,null,null,"Click Here to Add Additional Project Specific Provisions","CentralGeneral;CentralResurfacing;CentralStructures;CentralRail;DivGeneral;DivResurf;DivStructures;DivSBEGeneral;DivSBEResurf;Federal;State;Permits;NoPerm",null,null,null,null,null,null,"","//dot/dfsroot01/cccommon/provisions/01a  Automated Proposal Line Up Sheet/2012 Standard Provisions/",{"$f":"IF(N589=\"\",\"\",IF(H589=\"\",\"\",IF(+B589=\"a\",CONCATENATE(+N589,+H589),\"\")))","v":""},"",""]
[179,null,"SP15 R040","SP15R","GROUT REFERENCES FOR UTILITY MANHOLES","CentralGeneral;CentralResurfacing;CentralStructures;CentralRail;DivGeneral;DivResurf;DivStructures;DivSBEGeneral;DivSBEResurf;Federal;State;Permits;NoPerm","2015-08","SP15_R040__Grout_References_for_Utility_Manholes.docx","Use when pay items in 1525 are in a contract.",null,null,0,{"$f":"IF(RIGHT(LEFT(E590,2),1)=\":\",E590,\"\")","v":""},"//dot/dfsroot01/cccommon/provisions/01a  Automated Proposal Line Up Sheet/2012 Standard Provisions/",{"$f":"IF(N590=\"\",\"\",IF(H590=\"\",\"\",IF(+B590=\"a\",CONCATENATE(+N590,+H590),\"\")))","v":""},{"$f":"CONCATENATE(M590,O590)","v":""},{"$f":"IF(B590=\"a\",+C590,+M590)","v":""}]
["PSP",null,null,null,"Click Here to Add Additional Project Specific Provisions","CentralGeneral;CentralResurfacing;CentralStructures;CentralRail;DivGeneral;DivResurf;DivStructures;DivSBEGeneral;DivSBEResurf;Federal;State;Permits;NoPerm",null,null,null,null,null,null,"","//dot/dfsroot01/cccommon/provisions/01a  Automated Proposal Line Up Sheet/2012 Standard Provisions/",{"$f":"IF(N591=\"\",\"\",IF(H591=\"\",\"\",IF(+B591=\"a\",CONCATENATE(+N591,+H591),\"\")))","v":""},"",""]
[180,null,"SP16 R002","SP16R","PERMANENT SEEDING AND MULCHING","CentralGeneral;CentralStructures;CentralRail;DivGeneral;DivStructures;Federal;State;Permits;NoPerm","2012-08","SP16_R002__Permanent_Seeding_And_Mulching.docx","Pay Item 6084.  There will be a memo from Soil and Water Engineering Section directing us to include this provision.  Typically used on projects with a minimum 10 Acres of Seeding and Mulching in estimate.",null,null,0,"","//dot/dfsroot01/cccommon/provisions/01a  Automated Proposal Line Up Sheet/2012 Standard Provisions/","","",""]
["PSP",null,null,null,"Click Here to Add Additional Project Specific Provisions","CentralGeneral;CentralStructures;CentralRail;DivGeneral;DivStructures;Federal;State;Permits;NoPerm",null,null,null,null,null,null,"","//dot/dfsroot01/cccommon/provisions/01a  Automated Proposal Line Up Sheet/2012 Standard Provisions/","","",""]
[181,null,"SP16 R003R","SP16R","EROSION AND STORMWATER CONTROL FOR SHOULDER","CentralResurfacing;DivResurf;DivSBEResurf;Federal;State;Permits;NoPerm","2012-08","SP16_R003_R__Ero_Stormwtr_Control_Shoulders.docx","Pay Item 1243 or 1245. Will have Temp. Silt Fence (item 6000) and /or Wattles (item 607101).  Should have an Erosion Control detail on plans.  If you use this provision also include provision RG180.",null,null,0,"",{"$f":"+$P$6","v":"//dot/dfsroot01/cccommon/provisions/01a  Automated Proposal Line Up Sheet/2012 Standard Provisions/"},"","",""]
["PSP",null,null,null,"Click Here to Add Additional Project Specific Provisions","CentralResurfacing;DivResurf;DivSBEResurf;Federal;State;Permits;NoPerm",null,null,null,null,null,null,"",{"$f":"+$P$6","v":"//dot/dfsroot01/cccommon/provisions/01a  Automated Proposal Line Up Sheet/2012 Standard Provisions/"},"","",""]
[199,null,"Z002","Z","AVAILABILITY FUNDS – TERMINATION OF CONTRACTS","CentralGeneral;CentralResurfacing;CentralStructures;CentralRail;DivGeneral;DivResurf;DivStructures;DivSBEGeneral;DivSBEResurf;Federal;State;Permits;NoPerm","2008-05","Z002__Availability_of_Funds.docx","All Projects.",null,null,0,"","//dot/dfsroot01/cccommon/provisions/01a  Automated Proposal Line Up Sheet/2012 Standard Provisions/","",{"$f":"CONCATENATE(M596,O596)","v":""},"",null,{"$f":"IF(B596=\"a\",+E596,\"\")","v":""}]
["PSP",null,null,null,"Click Here to Add Additional Project Specific Provisions","CentralGeneral;CentralResurfacing;CentralStructures;CentralRail;DivGeneral;DivResurf;DivStructures;DivSBEGeneral;DivSBEResurf;Federal;State;Permits;NoPerm",null,null,null,null,null,null,"","//dot/dfsroot01/cccommon/provisions/01a  Automated Proposal Line Up Sheet/2012 Standard Provisions/","","",""]
[200,null,"Z003","Z","NCDOT GENERAL SEED SPECIFICATION FOR SEED QUALITY","CentralGeneral;CentralResurfacing;CentralStructures;CentralRail;DivGeneral;DivResurf;DivStructures;DivSBEGeneral;DivSBEResurf;Federal;State;Permits;NoPerm","2011-05","Z003__Seed_Quality.docx","All Projects with seeding. Also consider if shoulder reconstruction. (Do NOT use if seeding is NOT required on project)",null,null,0,"","//dot/dfsroot01/cccommon/provisions/01a  Automated Proposal Line Up Sheet/2012 Standard Provisions/","","","",null,""]
["PSP",null,null,null,"Click Here to Add Additional Project Specific Provisions","CentralGeneral;CentralResurfacing;CentralStructures;CentralRail;DivGeneral;DivResurf;DivStructures;DivSBEGeneral;DivSBEResurf;Federal;State;Permits;NoPerm",null,null,null,null,null,null,"","//dot/dfsroot01/cccommon/provisions/01a  Automated Proposal Line Up Sheet/2012 Standard Provisions/","","",""]
[201,null,"Z004","Z","ERRATA","CentralGeneral;CentralResurfacing;CentralStructures;CentralRail;DivGeneral;DivResurf;DivStructures;DivSBEGeneral;DivSBEResurf;Federal;State;Permits;NoPerm","2013-10","Z004__Errata_2012.docx","All Projects.",null,null,0,"","//dot/dfsroot01/cccommon/provisions/01a  Automated Proposal Line Up Sheet/2012 Standard Provisions/","","","",null,""]
["PSP",null,null,null,"Click Here to Add Additional Project Specific Provisions","CentralGeneral;CentralResurfacing;CentralStructures;CentralRail;DivGeneral;DivResurf;DivStructures;DivSBEGeneral;DivSBEResurf;Federal;State;Permits;NoPerm",null,null,null,null,null,null,"","//dot/dfsroot01/cccommon/provisions/01a  Automated Proposal Line Up Sheet/2012 Standard Provisions/","","",""]
[202,null,"Z004A","Z","PLANT AND PEST QUARANTINES","CentralGeneral;CentralResurfacing;CentralStructures;CentralRail;DivGeneral;DivResurf;DivStructures;DivSBEGeneral;DivSBEResurf;Federal;State;Permits;NoPerm","2013-10","Z004_A__Plant_And_Pest_Quarantines.docx","All Projects.",null,null,0,"","//dot/dfsroot01/cccommon/provisions/01a  Automated Proposal Line Up Sheet/2012 Standard Provisions/","","","",null,""]
["PSP",null,null,null,"Click Here to Add Additional Project Specific Provisions","CentralGeneral;CentralResurfacing;CentralStructures;CentralRail;DivGeneral;DivResurf;DivStructures;DivSBEGeneral;DivSBEResurf;Federal;State;Permits;NoPerm",null,null,null,null,null,null,"","//dot/dfsroot01/cccommon/provisions/01a  Automated Proposal Line Up Sheet/2012 Standard Provisions/","","",""]
[203,null,"Z005","Z","MINIMUM WAGES","CentralGeneral;CentralResurfacing;CentralStructures;CentralRail;DivGeneral;DivResurf;DivStructures;DivSBEGeneral;DivSBEResurf;State;Permits;NoPerm","2009-07","Z005__Minimum_Wages_Jul_09.docx","All State Funded Projects.",null,null,0,"","//dot/dfsroot01/cccommon/provisions/01a  Automated Proposal Line Up Sheet/2012 Standard Provisions/","","","",null,""]
["PSP",null,null,null,"Click Here to Add Additional Project Specific Provisions","CentralGeneral;CentralResurfacing;CentralStructures;CentralRail;DivGeneral;DivResurf;DivStructures;DivSBEGeneral;DivSBEResurf;State;Permits;NoPerm",null,null,null,null,null,null,"","//dot/dfsroot01/cccommon/provisions/01a  Automated Proposal Line Up Sheet/2012 Standard Provisions/","","",""]
[204,null,"Z006","Z","AWARD OF CONTRACT","CentralGeneral;CentralResurfacing;CentralStructures;CentralRail;DivGeneral;DivResurf;DivStructures;DivSBEGeneral;DivSBEResurf;Federal;Permits;NoPerm","1977-06","Z006__Award_of_Contract.docx","All Federal Aid Projects.",null,null,0,"","//dot/dfsroot01/cccommon/provisions/01a  Automated Proposal Line Up Sheet/2012 Standard Provisions/","","","",null,""]
["PSP",null,null,null,"Click Here to Add Additional Project Specific Provisions","CentralGeneral;CentralResurfacing;CentralStructures;CentralRail;DivGeneral;DivResurf;DivStructures;DivSBEGeneral;DivSBEResurf;Federal;Permits;NoPerm",null,null,null,null,null,null,"","//dot/dfsroot01/cccommon/provisions/01a  Automated Proposal Line Up Sheet/2012 Standard Provisions/","","",""]
[205,null,"Z007","Z","MINORITY AND FEMALE EMPLOYMENT REQUIREMENTS","CentralGeneral;CentralResurfacing;CentralStructures;CentralRail;DivGeneral;DivResurf;DivStructures;DivSBEGeneral;DivSBEResurf;Federal;Permits;NoPerm","2000-00","Z007__Minority_Female_Employment_Requirements.docx","All Federal Aid Projects. (Prime Contractor Company wide)",null,null,0,"","//dot/dfsroot01/cccommon/provisions/01a  Automated Proposal Line Up Sheet/2012 Standard Provisions/","","","",null,""]
["PSP",null,null,null,"Click Here to Add Additional Project Specific Provisions","CentralGeneral;CentralResurfacing;CentralStructures;CentralRail;DivGeneral;DivResurf;DivStructures;DivSBEGeneral;DivSBEResurf;Federal;Permits;NoPerm",null,null,null,null,null,null,"","//dot/dfsroot01/cccommon/provisions/01a  Automated Proposal Line Up Sheet/2012 Standard Provisions/","","",""]
[206,null,"Z008","Z","REQUIRED CONTRACT PROVISIONS FEDERAL-AID CONST.  CONTRACTS","CentralGeneral;CentralResurfacing;CentralStructures;CentralRail;DivGeneral;DivResurf;DivStructures;DivSBEGeneral;DivSBEResurf;Federal;Permits;NoPerm","2012-05","Z008__FHWA_Required_Contract_Provisions.docx","All Federal Aid Projects. FHWA 1273",null,null,0,"","//dot/dfsroot01/cccommon/provisions/01a  Automated Proposal Line Up Sheet/2012 Standard Provisions/","","","",null,""]
["PSP",null,null,null,"Click Here to Add Additional Project Specific Provisions","CentralGeneral;CentralResurfacing;CentralStructures;CentralRail;DivGeneral;DivResurf;DivStructures;DivSBEGeneral;DivSBEResurf;Federal;Permits;NoPerm",null,null,null,null,null,null,"","//dot/dfsroot01/cccommon/provisions/01a  Automated Proposal Line Up Sheet/2012 Standard Provisions/","","",""]
[207,null,"Z009","Z","ATTACHMENT A","CentralGeneral;CentralResurfacing;CentralStructures;CentralRail;DivGeneral;DivResurf;DivStructures;DivSBEGeneral;DivSBEResurf;Federal;Permits;NoPerm","1994-10","Z009__FHWA_Appalachian_Contracts_ONLY.docx","Federal Aid Projects with \"A-\".  FHWA 1273, Attachment A (Appalachian Only), add to Z-8.",null,null,0,"","//dot/dfsroot01/cccommon/provisions/01a  Automated Proposal Line Up Sheet/2012 Standard Provisions/","","","",null,""]
["PSP",null,null,null,"Click Here to Add Additional Project Specific Provisions","CentralGeneral;CentralResurfacing;CentralStructures;CentralRail;DivGeneral;DivResurf;DivStructures;DivSBEGeneral;DivSBEResurf;Federal;Permits;NoPerm",null,null,null,null,null,null,"","//dot/dfsroot01/cccommon/provisions/01a  Automated Proposal Line Up Sheet/2012 Standard Provisions/","","",""]
[208,null,"Z010","Z","ON-THE-JOB TRAINING","CentralGeneral;CentralResurfacing;CentralStructures;CentralRail;DivGeneral;DivResurf;DivStructures;DivSBEGeneral;DivSBEResurf;Federal;State;Permits;NoPerm","2013-05","Z010__OJT_July_09.docx","All Projects.",null,null,0,{"$f":"IF(RIGHT(LEFT(E614,2),1)=\":\",E614,\"\")","v":""},"//dot/dfsroot01/cccommon/provisions/01a  Automated Proposal Line Up Sheet/2012 Standard Provisions/",{"$f":"IF(N614=\"\",\"\",IF(H614=\"\",\"\",IF(+B614=\"a\",CONCATENATE(+N614,+H614),\"\")))","v":""},{"$f":"CONCATENATE(M614,O614)","v":""},{"$f":"IF(B614=\"a\",+C614,+M614)","v":""},null,{"$f":"IF(B614=\"a\",+E614,\"\")","v":""}]
["PSP",null,null,null,"Click Here to Add Additional Project Specific Provisions","CentralGeneral;CentralResurfacing;CentralStructures;CentralRail;DivGeneral;DivResurf;DivStructures;DivSBEGeneral;DivSBEResurf;Federal;State;Permits;NoPerm",null,null,null,null,null,null,"","//dot/dfsroot01/cccommon/provisions/01a  Automated Proposal Line Up Sheet/2012 Standard Provisions/","","",""]
[209,null,"NC99","Z","DAVIS-BACON DECISIONS - Alleghany, Ashe, Avery, Cherokee, Clay, Cleveland, Graham, Jackson, Lincoln, Macon, McDowell, Mitchell, Polk, Rutherford, Surry, Swain, Transylvania, Watauga, Wilkes and Yancey Counties ","CentralGeneral;CentralResurfacing;CentralStructures;CentralRail;DivGeneral;DivResurf;DivStructures;DivSBEGeneral;DivSBEResurf;Federal;Permits;NoPerm","2014-02","Z099__Federal_Wages_NC099.docx","Federal Aid Projects (not rural routes or BRZ) based on County.",null,null,0,"","//dot/dfsroot01/cccommon/provisions/01a  Automated Proposal Line Up Sheet/2012 Standard Provisions/","","","",null,{"$f":"IF(OR(B616=\"a\",B618=\"a\",B620=\"a\",B622=\"a\",B624=\"a\",B626=\"a\"),+E604,\"\")","v":""}]
["PSP",null,null,null,"Click Here to Add Additional Project Specific Provisions","CentralGeneral;CentralResurfacing;CentralStructures;CentralRail;DivGeneral;DivResurf;DivStructures;DivSBEGeneral;DivSBEResurf;Federal;Permits;NoPerm",null,null,null,null,null,null,"","//dot/dfsroot01/cccommon/provisions/01a  Automated Proposal Line Up Sheet/2012 Standard Provisions/","","",""]
[210,null,"NC100","Z","DAVIS-BACON DECISIONS - Alexander, Buncombe, Burke, Caldwell, Catawba, Haywood, Henderson and Madison Counties","CentralGeneral;CentralResurfacing;CentralStructures;CentralRail;DivGeneral;DivResurf;DivStructures;DivSBEGeneral;DivSBEResurf;Federal;Permits;NoPerm","2014-02","Z100__Federal_Wages_NC100.docx","Federal Aid Projects (not rural routes or BRZ) based on County.",null,null,0,"","//dot/dfsroot01/cccommon/provisions/01a  Automated Proposal Line Up Sheet/2012 Standard Provisions/","","",""]
["PSP",null,null,null,"Click Here to Add Additional Project Specific Provisions","CentralGeneral;CentralResurfacing;CentralStructures;CentralRail;DivGeneral;DivResurf;DivStructures;DivSBEGeneral;DivSBEResurf;Federal;Permits;NoPerm",null,null,null,null,null,null,"","//dot/dfsroot01/cccommon/provisions/01a  Automated Proposal Line Up Sheet/2012 Standard Provisions/","","",""]
[211,null,"NC101","Z","DAVIS-BACON DECISIONS - Alamance, Anson, Cabarrus, Chatham, Davie, Durham, Forsyth, Gaston, Guilford, Mecklenburg, Orange, Person, Randolph, Rockingham, Stokes, Union and Yadkin Counties","CentralGeneral;CentralResurfacing;CentralStructures;CentralRail;DivGeneral;DivResurf;DivStructures;DivSBEGeneral;DivSBEResurf;Federal;Permits;NoPerm","2014-02","Z101__Federal_Wages_NC101.docx","Federal Aid Projects (not rural routes or BRZ) based on County.",null,null,0,"","//dot/dfsroot01/cccommon/provisions/01a  Automated Proposal Line Up Sheet/2012 Standard Provisions/","","",""]
["PSP",null,null,null,"Click Here to Add Additional Project Specific Provisions","CentralGeneral;CentralResurfacing;CentralStructures;CentralRail;DivGeneral;DivResurf;DivStructures;DivSBEGeneral;DivSBEResurf;Federal;Permits;NoPerm",null,null,null,null,null,null,"","//dot/dfsroot01/cccommon/provisions/01a  Automated Proposal Line Up Sheet/2012 Standard Provisions/","","",""]
[212,null,"NC102","Z","DAVIS-BACON DECISIONS -Caswell, Davidson, Iredell, Lee, Montgomery, Moore, Richmond, Rowan and Stanly Counties \n","CentralGeneral;CentralResurfacing;CentralStructures;CentralRail;DivGeneral;DivResurf;DivStructures;DivSBEGeneral;DivSBEResurf;Federal;Permits;NoPerm","2014-02","Z102__Federal_Wages_NC102.docx","Federal Aid Projects (not rural routes or BRZ) based on County.",null,null,0,"","//dot/dfsroot01/cccommon/provisions/01a  Automated Proposal Line Up Sheet/2012 Standard Provisions/","","",""]
["PSP",null,null,null,"Click Here to Add Additional Project Specific Provisions","CentralGeneral;CentralResurfacing;CentralStructures;CentralRail;DivGeneral;DivResurf;DivStructures;DivSBEGeneral;DivSBEResurf;Federal;Permits;NoPerm",null,null,null,null,null,null,"","//dot/dfsroot01/cccommon/provisions/01a  Automated Proposal Line Up Sheet/2012 Standard Provisions/","","",""]
[213,null,"NC103","Z","DAVIS-BACON DECISIONS - Brunswick, Cumberland, Currituck, Edgecombe, Franklin, Greene, Hoke, Johnston, Nash, New Hanover, Onslow, Pender, Pitt, Wake and Wayne Counties","CentralGeneral;CentralResurfacing;CentralStructures;CentralRail;DivGeneral;DivResurf;DivStructures;DivSBEGeneral;DivSBEResurf;Federal;Permits;NoPerm","2014-02","Z103__Federal_Wages_NC103.docx","Federal Aid Projects (not rural routes or BRZ) based on County.",null,null,0,"","//dot/dfsroot01/cccommon/provisions/01a  Automated Proposal Line Up Sheet/2012 Standard Provisions/","","",""]
["PSP",null,null,null,"Click Here to Add Additional Project Specific Provisions","CentralGeneral;CentralResurfacing;CentralStructures;CentralRail;DivGeneral;DivResurf;DivStructures;DivSBEGeneral;DivSBEResurf;Federal;Permits;NoPerm",null,null,null,null,null,null,"","//dot/dfsroot01/cccommon/provisions/01a  Automated Proposal Line Up Sheet/2012 Standard Provisions/","","",""]
[214,null,"NC104","Z","DAVIS-BACON DECISIONS - Beaufort, Bertie, Bladen, Camden, Carteret, Chowan, Columbus, Craven, Dare, Duplin, Gates, Granville, Halifax, Harnett, Hertford, Hyde, Jones, Lenoir, Martin, Northampton, Pamlico, Pasquotank, Perquimans, Robeson, Sampson, Scotland, Tyrrell, Vance, Warren, Washington and Wilson Counties ","CentralGeneral;CentralResurfacing;CentralStructures;CentralRail;DivGeneral;DivResurf;DivStructures;DivSBEGeneral;DivSBEResurf;Federal;Permits;NoPerm","2014-02","Z104__Federal_Wages_NC104.docx","Federal Aid Projects (not rural routes or BRZ) based on County.",null,null,0,"","//dot/dfsroot01/cccommon/provisions/01a  Automated Proposal Line Up Sheet/2012 Standard Provisions/","","",""]
["PSP",null,null,null,"Click Here to Add Additional Project Specific Provisions","CentralGeneral;CentralResurfacing;CentralStructures;CentralRail;DivGeneral;DivResurf;DivStructures;DivSBEGeneral;DivSBEResurf;Federal;Permits;NoPerm",null,null,null,null,null,null,"","//dot/dfsroot01/cccommon/provisions/01a  Automated Proposal Line Up Sheet/2012 Standard Provisions/","","",""]
[182,null,"GEOTECHNICAL","UNIT","GEOTECHNICAL","CentralGeneral;CentralResurfacing;CentralStructures;CentralRail;DivGeneral;DivResurf;DivStructures;DivSBEGeneral;DivSBEResurf;Federal;State;Permits;NoPerm",null,null,"Check if units submitted provision for inclusion in this proposal.",null,null,0,"","//dot/dfsroot01/cccommon/provisions/01a  Automated Proposal Line Up Sheet/2012 Standard Provisions/","","","",null,{"$f":"+Q628","v":""}]
["PSP",null,null,null,"Click Here to Add Additional Project Specific Provisions","CentralGeneral;CentralResurfacing;CentralStructures;CentralRail;DivGeneral;DivResurf;DivStructures;DivSBEGeneral;DivSBEResurf;Federal;State;Permits;NoPerm",null,null,null,null,null,null,"","//dot/dfsroot01/cccommon/provisions/01a  Automated Proposal Line Up Sheet/2012 Standard Provisions/","","",""]
[182,null,"GEOENVIRONMENTAL","UNIT","GEOENVIRONMENTAL","CentralGeneral;CentralResurfacing;CentralStructures;CentralRail;DivGeneral;DivResurf;DivStructures;DivSBEGeneral;DivSBEResurf;Federal;State;Permits;NoPerm",null,null,"Check if units submitted provision for inclusion in this proposal.",null,null,0,{"$f":"IF(RIGHT(LEFT(E630,2),1)=\":\",E630,\"\")","v":""},"//dot/dfsroot01/cccommon/provisions/01a  Automated Proposal Line Up Sheet/2012 Standard Provisions/","","","",null,{"$f":"+Q630","v":""}]
["PSP",null,null,null,"Click Here to Add Additional Project Specific Provisions","CentralGeneral;CentralResurfacing;CentralStructures;CentralRail;DivGeneral;DivResurf;DivStructures;DivSBEGeneral;DivSBEResurf;Federal;State;Permits;NoPerm",null,null,null,null,null,null,"","//dot/dfsroot01/cccommon/provisions/01a  Automated Proposal Line Up Sheet/2012 Standard Provisions/","","",""]
[183,null,"SIGNING","UNIT","SIGNING AND DELINEATION","CentralGeneral;CentralResurfacing;CentralStructures;CentralRail;DivGeneral;DivResurf;DivStructures;DivSBEGeneral;DivSBEResurf;Federal;State;Permits;NoPerm",null,null,"Check if units submitted provision for inclusion in this proposal.",null,null,0,"","//dot/dfsroot01/cccommon/provisions/01a  Automated Proposal Line Up Sheet/2012 Standard Provisions/","","","",null,{"$f":"+Q632","v":""}]
["PSP",null,null,null,"Click Here to Add Additional Project Specific Provisions","CentralGeneral;CentralResurfacing;CentralStructures;CentralRail;DivGeneral;DivResurf;DivStructures;DivSBEGeneral;DivSBEResurf;Federal;State;Permits;NoPerm",null,null,null,null,null,null,"","//dot/dfsroot01/cccommon/provisions/01a  Automated Proposal Line Up Sheet/2012 Standard Provisions/","","",""]
[183,null,"SIGNING","UNIT","PAVEMENT MARKING","CentralGeneral;CentralResurfacing;CentralStructures;CentralRail;DivGeneral;DivResurf;DivStructures;DivSBEGeneral;DivSBEResurf;Federal;State;Permits;NoPerm",null,null,"Check if units submitted provision for inclusion in this proposal.",null,null,0,{"$f":"IF(RIGHT(LEFT(E634,2),1)=\":\",E634,\"\")","v":""},"//dot/dfsroot01/cccommon/provisions/01a  Automated Proposal Line Up Sheet/2012 Standard Provisions/",{"$f":"IF(N634=\"\",\"\",IF(H634=\"\",\"\",IF(+B634=\"a\",CONCATENATE(+N634,+H634),\"\")))","v":""},{"$f":"CONCATENATE(M634,O634)","v":""},{"$f":"IF(B634=\"a\",+C634,+M634)","v":""},null,{"$f":"+Q634","v":""}]
["PSP",null,null,null,"Click Here to Add Additional Project Specific Provisions","CentralGeneral;CentralResurfacing;CentralStructures;CentralRail;DivGeneral;DivResurf;DivStructures;DivSBEGeneral;DivSBEResurf;Federal;State;Permits;NoPerm",null,null,null,null,null,null,"","//dot/dfsroot01/cccommon/provisions/01a  Automated Proposal Line Up Sheet/2012 Standard Provisions/","","",""]
[183,null,"TRAFFIC CONTROL","UNIT","TRAFFIC CONTROL","CentralGeneral;CentralResurfacing;CentralStructures;CentralRail;DivGeneral;DivResurf;DivStructures;DivSBEGeneral;DivSBEResurf;Federal;State;Permits;NoPerm",null,null,"Check if units submitted provision for inclusion in this proposal.",null,null,0,"","//dot/dfsroot01/cccommon/provisions/01a  Automated Proposal Line Up Sheet/2012 Standard Provisions/","","","",null,{"$f":"+Q636","v":""}]
["PSP",null,null,null,"Click Here to Add Additional Project Specific Provisions","CentralGeneral;CentralResurfacing;CentralStructures;CentralRail;DivGeneral;DivResurf;DivStructures;DivSBEGeneral;DivSBEResurf;Federal;State;Permits;NoPerm",null,null,null,null,null,null,"","//dot/dfsroot01/cccommon/provisions/01a  Automated Proposal Line Up Sheet/2012 Standard Provisions/","","",""]
[196,null,"U RWZ1","U","WORK ZONE TRAFFIC CONTROL GENERAL REQUIREMENTS","DivGeneral;DivResurf;DivStructures;DivSBEGeneral;DivSBEResurf;Federal;State;Permits;NoPerm","2013-07","U RWZ1.docx","Resurfacing projects.",null,null,0,"","//dot/dfsroot01/cccommon/provisions/01a  Automated Proposal Line Up Sheet/2012 Standard Provisions/",{"$f":"IF(N638=\"\",\"\",IF(H638=\"\",\"\",IF(+B638=\"a\",CONCATENATE(+N638,+H638),\"\")))","v":""},{"$f":"CONCATENATE(M638,O638)","v":""},""]
["PSP",null,null,null,"Click Here to Add Additional Project Specific Provisions","DivGeneral;DivResurf;DivStructures;DivSBEGeneral;DivSBEResurf;Federal;State;Permits;NoPerm",null,null,null,null,null,null,"","//dot/dfsroot01/cccommon/provisions/01a  Automated Proposal Line Up Sheet/2012 Standard Provisions/","","",""]
[196,null,"U RWZ2","U","RESURFACING OPERATIONS","DivGeneral;DivResurf;DivStructures;DivSBEGeneral;DivSBEResurf;Federal;State;Permits;NoPerm","2013-07","U RWZ2.docx","Resurfacing projects.",null,null,0,"","//dot/dfsroot01/cccommon/provisions/01a  Automated Proposal Line Up Sheet/2012 Standard Provisions/","","",""]
["PSP",null,null,null,"Click Here to Add Additional Project Specific Provisions","DivGeneral;DivResurf;DivStructures;DivSBEGeneral;DivSBEResurf;Federal;State;Permits;NoPerm",null,null,null,null,null,null,"","//dot/dfsroot01/cccommon/provisions/01a  Automated Proposal Line Up Sheet/2012 Standard Provisions/","","",""]
[196,null,"U RWZ3","U","PAVEMENT MARKINGS AND MARKERS","DivGeneral;DivResurf;DivStructures;DivSBEGeneral;DivSBEResurf;Federal;State;Permits;NoPerm","2013-07","U RWZ3.docx","Resurfacing projects.",null,null,0,"","//dot/dfsroot01/cccommon/provisions/01a  Automated Proposal Line Up Sheet/2012 Standard Provisions/","","",""]
["PSP",null,null,null,"Click Here to Add Additional Project Specific Provisions","DivGeneral;DivResurf;DivStructures;DivSBEGeneral;DivSBEResurf;Federal;State;Permits;NoPerm",null,null,null,null,null,null,{"$f":"IF(RIGHT(LEFT(E643,2),1)=\":\",E643,\"\")","v":""},"//dot/dfsroot01/cccommon/provisions/01a  Automated Proposal Line Up Sheet/2012 Standard Provisions/",{"$f":"IF(N643=\"\",\"\",IF(H643=\"\",\"\",IF(+B643=\"a\",CONCATENATE(+N643,+H643),\"\")))","v":""},{"$f":"CONCATENATE(M643,O643)","v":""},{"$f":"IF(B643=\"a\",+C643,+M643)","v":""}]
[196,null,"U RWZ4","U","LAW ENFORCEMENT","DivGeneral;DivResurf;DivStructures;DivSBEGeneral;DivSBEResurf;Federal;State;Permits;NoPerm","2013-07","SPD 11-500 Law Enforcement.docx","Resurfacing projects.",null,null,0,{"$f":"IF(RIGHT(LEFT(E644,2),1)=\":\",E644,\"\")","v":""},"//dot/dfsroot01/cccommon/provisions/01a  Automated Proposal Line Up Sheet/2012 Standard Provisions/","",{"$f":"CONCATENATE(M644,O644)","v":""},{"$f":"IF(B644=\"a\",+C644,+M644)","v":""}]
["PSP",null,null,null,"Click Here to Add Additional Project Specific Provisions","DivGeneral;DivResurf;DivStructures;DivSBEGeneral;DivSBEResurf;Federal;State;Permits;NoPerm",null,null,null,null,null,null,"","//dot/dfsroot01/cccommon/provisions/01a  Automated Proposal Line Up Sheet/2012 Standard Provisions/","","",""]
[183,null,"LIGHTING","UNIT","LIGHTING","CentralGeneral;CentralResurfacing;CentralStructures;CentralRail;DivGeneral;DivResurf;DivStructures;DivSBEGeneral;DivSBEResurf;Federal;State;Permits;NoPerm",null,null,"Check if units submitted provision for inclusion in this proposal.",null,null,0,"","//dot/dfsroot01/cccommon/provisions/01a  Automated Proposal Line Up Sheet/2012 Standard Provisions/","","","",null,{"$f":"+Q646","v":""}]
["PSP",null,null,null,"Click Here to Add Additional Project Specific Provisions","CentralGeneral;CentralResurfacing;CentralStructures;CentralRail;DivGeneral;DivResurf;DivStructures;DivSBEGeneral;DivSBEResurf;Federal;State;Permits;NoPerm",null,null,null,null,null,null,"","//dot/dfsroot01/cccommon/provisions/01a  Automated Proposal Line Up Sheet/2012 Standard Provisions/","","",""]
[183,null,"UTILITY CONSTRUCTION","UNIT","UTILITY CONSTRUCTION","CentralGeneral;CentralResurfacing;CentralStructures;CentralRail;DivGeneral;DivResurf;DivStructures;DivSBEGeneral;DivSBEResurf;Federal;State;Permits;NoPerm",null,null,"Check if units submitted provision for inclusion in this proposal.",null,null,0,"","//dot/dfsroot01/cccommon/provisions/01a  Automated Proposal Line Up Sheet/2012 Standard Provisions/","","","",null,{"$f":"+Q648","v":""}]
["PSP",null,null,null,"Click Here to Add Additional Project Specific Provisions","CentralGeneral;CentralResurfacing;CentralStructures;CentralRail;DivGeneral;DivResurf;DivStructures;DivSBEGeneral;DivSBEResurf;Federal;State;Permits;NoPerm",null,null,null,null,null,null,"","//dot/dfsroot01/cccommon/provisions/01a  Automated Proposal Line Up Sheet/2012 Standard Provisions/","","",""]
[183,null,"UTILITY BY OTHERS","UNIT","UTILITIES BY OTHERS","CentralGeneral;CentralResurfacing;CentralStructures;CentralRail;DivGeneral;DivResurf;DivStructures;DivSBEGeneral;DivSBEResurf;Federal;State;Permits;NoPerm",null,null,"Check if units submitted provision for inclusion in this proposal.",null,null,0,"","//dot/dfsroot01/cccommon/provisions/01a  Automated Proposal Line Up Sheet/2012 Standard Provisions/","","","",null,{"$f":"+Q650","v":""}]
["PSP",null,null,null,"Click Here to Add Additional Project Specific Provisions","CentralGeneral;CentralResurfacing;CentralStructures;CentralRail;DivGeneral;DivResurf;DivStructures;DivSBEGeneral;DivSBEResurf;Federal;State;Permits;NoPerm",null,null,null,null,null,null,"","//dot/dfsroot01/cccommon/provisions/01a  Automated Proposal Line Up Sheet/2012 Standard Provisions/","","",""]
[183,null,"EROSION CONTROL","UNIT","EROSION CONTROL","CentralGeneral;CentralResurfacing;CentralStructures;CentralRail;DivGeneral;DivResurf;DivStructures;DivSBEGeneral;DivSBEResurf;Federal;State;Permits;NoPerm",null,null,"Check if units submitted provision for inclusion in this proposal.",null,null,0,"","//dot/dfsroot01/cccommon/provisions/01a  Automated Proposal Line Up Sheet/2012 Standard Provisions/","","","",null,{"$f":"+Q652","v":""}]
["PSP",null,null,null,"Click Here to Add Additional Project Specific Provisions","CentralGeneral;CentralResurfacing;CentralStructures;CentralRail;DivGeneral;DivResurf;DivStructures;DivSBEGeneral;DivSBEResurf;Federal;State;Permits;NoPerm",null,null,null,null,null,null,{"$f":"IF(RIGHT(LEFT(E653,2),1)=\":\",E653,\"\")","v":""},"//dot/dfsroot01/cccommon/provisions/01a  Automated Proposal Line Up Sheet/2012 Standard Provisions/",{"$f":"IF(N653=\"\",\"\",IF(H653=\"\",\"\",IF(+B653=\"a\",CONCATENATE(+N653,+H653),\"\")))","v":""},{"$f":"CONCATENATE(M653,O653)","v":""},{"$f":"IF(B653=\"a\",+C653,+M653)","v":""}]
[189,null,"T S1East","T","SEED MIX EAST (Alamance, Anson, Franklin, Guilford, Orange, Person, Vance, Wake and Warren)","DivGeneral;DivResurf;DivStructures;DivSBEGeneral;DivSBEResurf;Federal;State;Permits;NoPerm","2015-5","T_S1East.doc","Resurfacing projects.",null,null,0,"","//dot/dfsroot01/cccommon/provisions/01a  Automated Proposal Line Up Sheet/2012 Standard Provisions/","","",""]
["PSP",null,null,null,"Click Here to Add Additional Project Specific Provisions","DivGeneral;DivResurf;DivStructures;DivSBEGeneral;DivSBEResurf;Federal;State;Permits;NoPerm",null,null,null,null,null,null,"","//dot/dfsroot01/cccommon/provisions/01a  Automated Proposal Line Up Sheet/2012 Standard Provisions/","","",""]
[190,null,"T S2","T","SEED MIX EAST CRIMP (All other counties not listed elsewhere)","DivGeneral;DivResurf;DivStructures;DivSBEGeneral;DivSBEResurf;Federal;State;Permits;NoPerm","2015-5","T_S2.doc","Resurfacing projects.",null,null,0,"","//dot/dfsroot01/cccommon/provisions/01a  Automated Proposal Line Up Sheet/2012 Standard Provisions/","","",""]
["PSP",null,null,null,"Click Here to Add Additional Project Specific Provisions","DivGeneral;DivResurf;DivStructures;DivSBEGeneral;DivSBEResurf;Federal;State;Permits;NoPerm",null,null,null,null,null,null,"","//dot/dfsroot01/cccommon/provisions/01a  Automated Proposal Line Up Sheet/2012 Standard Provisions/","","",""]
[191,null,"T S2A","T","SEED MIX DIVISION 3 CRIMP (Brunswick, Duplin, New Hanover, Onslow, Pender, and Sampson)","DivGeneral;DivResurf;DivStructures;DivSBEGeneral;DivSBEResurf;Federal;State;Permits;NoPerm","2015-5","T_S2A.doc","Resurfacing projects.",null,null,0,"","//dot/dfsroot01/cccommon/provisions/01a  Automated Proposal Line Up Sheet/2012 Standard Provisions/","","",""]
["PSP",null,null,null,"Click Here to Add Additional Project Specific Provisions","DivGeneral;DivResurf;DivStructures;DivSBEGeneral;DivSBEResurf;Federal;State;Permits;NoPerm",null,null,null,null,null,null,"","//dot/dfsroot01/cccommon/provisions/01a  Automated Proposal Line Up Sheet/2012 Standard Provisions/","","",""]
[192,null,"T S3","T","SEED MIX WEST (Alexander, Alleghany, Ashe, Avery, Cabarrus, Caldwell, Caswell, Catawba, Cleveland, Davidson, Davie, Forsyth, Gaston, Iredell, Lincoln, Mechlenburg, Rockingham, Rowan, Stanly, Stokes, Surry, Union, Watauga, Wilkes, and Yadkin)","DivGeneral;DivResurf;DivStructures;DivSBEGeneral;DivSBEResurf;Federal;State;Permits;NoPerm","2015-5","T_S3.doc","Resurfacing projects.",null,null,0,"","//dot/dfsroot01/cccommon/provisions/01a  Automated Proposal Line Up Sheet/2012 Standard Provisions/","","",""]
["PSP",null,null,null,"Click Here to Add Additional Project Specific Provisions","DivGeneral;DivResurf;DivStructures;DivSBEGeneral;DivSBEResurf;Federal;State;Permits;NoPerm",null,null,null,null,null,null,{"$f":"IF(RIGHT(LEFT(E661,2),1)=\":\",E661,\"\")","v":""},"//dot/dfsroot01/cccommon/provisions/01a  Automated Proposal Line Up Sheet/2012 Standard Provisions/",{"$f":"IF(N661=\"\",\"\",IF(H661=\"\",\"\",IF(+B661=\"a\",CONCATENATE(+N661,+H661),\"\")))","v":""},{"$f":"CONCATENATE(M661,O661)","v":""},{"$f":"IF(B661=\"a\",+C661,+M661)","v":""}]
[193,null,"T S4","T","SEED MIX WEST ED (Buncombe, Burke, Cherokee, Clay, Graham, Haywood, Henderson, Jackson, Macon, Madison, Mitchell, Polk, Rutherford, Swain, Transylvania, and Yancey)","DivGeneral;DivResurf;DivStructures;DivSBEGeneral;DivSBEResurf;Federal;State;Permits;NoPerm","2015-5","T_S4.doc","Resurfacing projects.",null,null,0,"","//dot/dfsroot01/cccommon/provisions/01a  Automated Proposal Line Up Sheet/2012 Standard Provisions/","","",""]
["PSP",null,null,null,"Click Here to Add Additional Project Specific Provisions","DivGeneral;DivResurf;DivStructures;DivSBEGeneral;DivSBEResurf;Federal;State;Permits;NoPerm",null,null,null,null,null,null,"","//dot/dfsroot01/cccommon/provisions/01a  Automated Proposal Line Up Sheet/2012 Standard Provisions/","","",""]
[193,null,"T S5","T","SEED MIX WEST CRIMP (All other counties not listed elsewhere)","DivGeneral;DivResurf;DivStructures;DivSBEGeneral;DivSBEResurf;Federal;State;Permits;NoPerm","2015-5","T_S4.doc","Resurfacing projects.",null,null,0,{"$f":"IF(RIGHT(LEFT(E664,2),1)=\":\",E664,\"\")","v":""},"//dot/dfsroot01/cccommon/provisions/01a  Automated Proposal Line Up Sheet/2012 Standard Provisions/",{"$f":"IF(N664=\"\",\"\",IF(H664=\"\",\"\",IF(+B664=\"a\",CONCATENATE(+N664,+H664),\"\")))","v":""},{"$f":"CONCATENATE(M664,O664)","v":""},{"$f":"IF(B664=\"a\",+C664,+M664)","v":""}]
["PSP",null,null,null,"Click Here to Add Additional Project Specific Provisions","DivGeneral;DivResurf;DivStructures;DivSBEGeneral;DivSBEResurf;Federal;State;Permits;NoPerm",null,null,null,null,null,null,"","//dot/dfsroot01/cccommon/provisions/01a  Automated Proposal Line Up Sheet/2012 Standard Provisions/","","",""]
[194,null,"T1","T","WATTLES","DivGeneral;DivResurf;DivStructures;DivSBEGeneral;DivSBEResurf;Federal;State;Permits;NoPerm","2012-01","T_1__Wattle.docx","Resurfacing projects.",null,null,0,"","//dot/dfsroot01/cccommon/provisions/01a  Automated Proposal Line Up Sheet/2012 Standard Provisions/","","",""]
["PSP",null,null,null,"Click Here to Add Additional Project Specific Provisions","DivGeneral;DivResurf;DivStructures;DivSBEGeneral;DivSBEResurf;Federal;State;Permits;NoPerm",null,null,null,null,null,null,"","//dot/dfsroot01/cccommon/provisions/01a  Automated Proposal Line Up Sheet/2012 Standard Provisions/","","",""]
[195,null,"T2","T","WATTLES WITH POLYACRYLAMIDE (PAM)","DivGeneral;DivResurf;DivStructures;DivSBEGeneral;DivSBEResurf;Federal;State;Permits;NoPerm","2012-01","T_2__Wattles_With_Polyacrylamide.docx","Resurfacing projects.",null,null,0,"","//dot/dfsroot01/cccommon/provisions/01a  Automated Proposal Line Up Sheet/2012 Standard Provisions/","","",""]
["PSP",null,null,null,"Click Here to Add Additional Project Specific Provisions","DivGeneral;DivResurf;DivStructures;DivSBEGeneral;DivSBEResurf;Federal;State;Permits;NoPerm",null,null,null,null,null,null,"","//dot/dfsroot01/cccommon/provisions/01a  Automated Proposal Line Up Sheet/2012 Standard Provisions/","","",""]
[184,null,"PLANTING/REFORESTATION","UNIT","PLANTING/REFORESTATION","CentralGeneral;CentralResurfacing;CentralStructures;CentralRail;DivGeneral;DivResurf;DivStructures;DivSBEGeneral;DivSBEResurf;Federal;State;Permits;NoPerm",null,null,"Check if units submitted provision for inclusion in this proposal.",null,null,0,"","//dot/dfsroot01/cccommon/provisions/01a  Automated Proposal Line Up Sheet/2012 Standard Provisions/","","","",null,{"$f":"+Q670","v":""}]
["PSP",null,null,null,"Click Here to Add Additional Project Specific Provisions","CentralGeneral;CentralResurfacing;CentralStructures;CentralRail;DivGeneral;DivResurf;DivStructures;DivSBEGeneral;DivSBEResurf;Federal;State;Permits;NoPerm",null,null,null,null,null,null,"","//dot/dfsroot01/cccommon/provisions/01a  Automated Proposal Line Up Sheet/2012 Standard Provisions/","","",""]
[185,null,"REST AREA","UNIT","REST AREA","CentralGeneral;CentralResurfacing;CentralStructures;CentralRail;DivGeneral;DivResurf;DivStructures;DivSBEGeneral;DivSBEResurf;Federal;State;Permits;NoPerm",null,null,"Check if units submitted provision for inclusion in this proposal.",null,null,0,"","//dot/dfsroot01/cccommon/provisions/01a  Automated Proposal Line Up Sheet/2012 Standard Provisions/","","","",null,{"$f":"+Q672","v":""}]
["PSP",null,null,null,"Click Here to Add Additional Project Specific Provisions","CentralGeneral;CentralResurfacing;CentralStructures;CentralRail;DivGeneral;DivResurf;DivStructures;DivSBEGeneral;DivSBEResurf;Federal;State;Permits;NoPerm",null,null,null,null,null,null,"","//dot/dfsroot01/cccommon/provisions/01a  Automated Proposal Line Up Sheet/2012 Standard Provisions/","","",""]
[186,null,"TRAFFIC SIGNALS","UNIT","TRAFFIC SIGNALS","CentralGeneral;CentralResurfacing;CentralStructures;CentralRail;DivGeneral;DivResurf;DivStructures;DivSBEGeneral;DivSBEResurf;Federal;State;Permits;NoPerm",null,null,"Check if units submitted provision for inclusion in this proposal.",null,null,0,"","//dot/dfsroot01/cccommon/provisions/01a  Automated Proposal Line Up Sheet/2012 Standard Provisions/","","","",null,{"$f":"+Q674","v":""}]
["PSP",null,null,null,"Click Here to Add Additional Project Specific Provisions","CentralGeneral;CentralResurfacing;CentralStructures;CentralRail;DivGeneral;DivResurf;DivStructures;DivSBEGeneral;DivSBEResurf;Federal;State;Permits;NoPerm",null,null,null,null,null,null,"","//dot/dfsroot01/cccommon/provisions/01a  Automated Proposal Line Up Sheet/2012 Standard Provisions/","","",""]
[187,null,"ITS","UNIT","INTELLIGENT TRANSPORTATION SYSTEMS","CentralGeneral;CentralResurfacing;CentralStructures;CentralRail;DivGeneral;DivResurf;DivStructures;DivSBEGeneral;DivSBEResurf;Federal;State;Permits;NoPerm",null,null,"Check if units submitted provision for inclusion in this proposal.",null,null,0,"","//dot/dfsroot01/cccommon/provisions/01a  Automated Proposal Line Up Sheet/2012 Standard Provisions/","","","",null,{"$f":"+Q676","v":""}]
["PSP",null,null,null,"Click Here to Add Additional Project Specific Provisions","CentralGeneral;CentralResurfacing;CentralStructures;CentralRail;DivGeneral;DivResurf;DivStructures;DivSBEGeneral;DivSBEResurf;Federal;State;Permits;NoPerm",null,null,null,null,null,null,"","//dot/dfsroot01/cccommon/provisions/01a  Automated Proposal Line Up Sheet/2012 Standard Provisions/","","",""]
[187,null,"RAILROAD INSURANCE (Roadway)","UNIT","RAILROAD INSURANCE (Roadway)","CentralGeneral;CentralResurfacing;CentralStructures;CentralRail;DivGeneral;DivResurf;DivStructures;DivSBEGeneral;DivSBEResurf;Federal;State;Permits;NoPerm",null,null,"Check if units submitted provision for inclusion in this proposal.",null,null,0,{"$f":"IF(RIGHT(LEFT(E678,2),1)=\":\",E678,\"\")","v":""},"//dot/dfsroot01/cccommon/provisions/01a  Automated Proposal Line Up Sheet/2012 Standard Provisions/","","","",null,{"$f":"+Q678","v":""}]
["PSP",null,null,null,"Click Here to Add Additional Project Specific Provisions","CentralGeneral;CentralResurfacing;CentralStructures;CentralRail;DivGeneral;DivResurf;DivStructures;DivSBEGeneral;DivSBEResurf;Federal;State;Permits;NoPerm",null,null,null,null,null,null,"","//dot/dfsroot01/cccommon/provisions/01a  Automated Proposal Line Up Sheet/2012 Standard Provisions/","","",""]
[188,null,"STRUCTURE / CULVERTS","UNIT","STRUCTURE / CULVERTS","CentralGeneral;CentralResurfacing;CentralStructures;CentralRail;DivGeneral;DivResurf;DivStructures;DivSBEGeneral;DivSBEResurf;Federal;State;Permits;NoPerm",null,null,"Check if units submitted provision for inclusion in this proposal.",null,null,0,"","//dot/dfsroot01/cccommon/provisions/01a  Automated Proposal Line Up Sheet/2012 Standard Provisions/","","","",null,{"$f":"+Q680","v":""}]
["PSP",null,null,null,"Click Here to Add Additional Project Specific Provisions","CentralGeneral;CentralResurfacing;CentralStructures;CentralRail;DivGeneral;DivResurf;DivStructures;DivSBEGeneral;DivSBEResurf;Federal;State;Permits;NoPerm",null,null,null,null,null,null,"","//dot/dfsroot01/cccommon/provisions/01a  Automated Proposal Line Up Sheet/2012 Standard Provisions/","","",""]
[188,null,"RAILROAD INSURANCE (Structures)","UNIT","RAILROAD INSURANCE (Structures)","CentralGeneral;CentralResurfacing;CentralStructures;CentralRail;DivGeneral;DivResurf;DivStructures;DivSBEGeneral;DivSBEResurf;Federal;State;Permits;NoPerm",null,null,"Check if units submitted provision for inclusion in this proposal.",null,null,0,{"$f":"IF(RIGHT(LEFT(E682,2),1)=\":\",E682,\"\")","v":""},"//dot/dfsroot01/cccommon/provisions/01a  Automated Proposal Line Up Sheet/2012 Standard Provisions/","","","",null,{"$f":"+Q682","v":""}]
["PSP",null,null,null,"Click Here to Add Additional Project Specific Provisions","CentralGeneral;CentralResurfacing;CentralStructures;CentralRail;DivGeneral;DivResurf;DivStructures;DivSBEGeneral;DivSBEResurf;Federal;State;Permits;NoPerm",null,null,null,null,null,null,"","//dot/dfsroot01/cccommon/provisions/01a  Automated Proposal Line Up Sheet/2012 Standard Provisions/","","",""]
[197,null,"PERMITS","Z","PERMITS","CentralGeneral;CentralResurfacing;CentralStructures;CentralRail;DivGeneral;DivResurf;DivStructures;DivSBEGeneral;DivSBEResurf;Federal;State;Permits","2013-10",null,"All Projects with Permits.",null,null,0,{"$f":"IF(RIGHT(LEFT(E684,2),1)=\":\",E684,\"\")","v":""},"//dot/dfsroot01/cccommon/provisions/01a  Automated Proposal Line Up Sheet/2012 Standard Provisions/","","",{"$f":"IF(B684=\"a\",+C684,+M684)","v":""},null,{"$f":"+Q684","v":""}]
["PSP",null,null,null,"Click Here to Add Additional Project Specific Provisions","CentralGeneral;CentralResurfacing;CentralStructures;CentralRail;DivGeneral;DivResurf;DivStructures;DivSBEGeneral;DivSBEResurf;Federal;State;Permits",null,null,null,null,null,null,"","//dot/dfsroot01/cccommon/provisions/01a  Automated Proposal Line Up Sheet/2012 Standard Provisions/","","",{"$f":"IF(B685=\"a\",+C685,+M685)","v":""}]
[198,null,"Z001","Z","PERMIT COVER (With Permits)","DivGeneral;DivResurf;DivStructures;DivSBEGeneral;DivSBEResurf;Federal;State;Permits","2013-10","Z001__Permits_Cover_DELETE_NOT_APPLICABLE.docx","All Projects with Permits included in advertisement (all Permits are received).",null,null,0,{"$f":"IF(RIGHT(LEFT(E686,2),1)=\":\",E686,\"\")","v":""},"//dot/dfsroot01/cccommon/provisions/01a  Automated Proposal Line Up Sheet/2012 Standard Provisions/",{"$f":"IF(N686=\"\",\"\",IF(H686=\"\",\"\",IF(+B686=\"a\",CONCATENATE(+N686,+H686),\"\")))","v":""},{"$f":"CONCATENATE(M686,O686)","v":""},{"$f":"IF(B686=\"a\",+C686,+M686)","v":""}]
["PSP",null,null,null,"Click Here to Add Additional Project Specific Provisions","DivGeneral;DivResurf;DivStructures;DivSBEGeneral;DivSBEResurf;Federal;State;Permits",null,null,null,null,null,null,"","//dot/dfsroot01/cccommon/provisions/01a  Automated Proposal Line Up Sheet/2012 Standard Provisions/","","",""]
[198,null,"Z001A","Z","PERMIT COVER (No Additional Permits)","DivGeneral;DivResurf;DivStructures;DivSBEGeneral;DivSBEResurf;Federal;State;Permits","2013-10","Z001___A__Permits_Cover_without_Permits.docx","All Projects with Permits advertised *before* Permits are received.",null,null,0,"","//dot/dfsroot01/cccommon/provisions/01a  Automated Proposal Line Up Sheet/2012 Standard Provisions/","","",""]
["PSP",null,null,null,"Click Here to Add Additional Project Specific Provisions","DivGeneral;DivResurf;DivStructures;DivSBEGeneral;DivSBEResurf;Federal;State;Permits",null,null,null,null,null,null,{"$f":"IF(RIGHT(LEFT(E689,2),1)=\":\",E689,\"\")","v":""},"//dot/dfsroot01/cccommon/provisions/01a  Automated Proposal Line Up Sheet/2012 Standard Provisions/",{"$f":"IF(N689=\"\",\"\",IF(H689=\"\",\"\",IF(+B689=\"a\",CONCATENATE(+N689,+H689),\"\")))","v":""},{"$f":"CONCATENATE(M689,O689)","v":""},{"$f":"IF(B689=\"a\",+C689,+M689)","v":""}]
[198,null,"SKETCH MAPS (INSERT)","Z","SKETCH MAPS (INSERT)","CentralResurfacing;DivResurf;DivSBEResurf;Federal;State;Permits;NoPerm",null,null,"Resurfacing Projects with Sketch Maps.",null,null,0,"","//dot/dfsroot01/cccommon/provisions/01a  Automated Proposal Line Up Sheet/2012 Standard Provisions/","","","",null,{"$f":"+Q690","v":""}]
["PSP",null,null,null,"Click Here to Add Additional Project Specific Provisions","CentralResurfacing;DivResurf;DivSBEResurf;Federal;State;Permits;NoPerm",null,null,null,null,null,null,"","//dot/dfsroot01/cccommon/provisions/01a  Automated Proposal Line Up Sheet/2012 Standard Provisions/","",""]
[222,null,"Z110","Z","LISTING OF DBE SUBCONTRACTORS","DivGeneral;DivResurf;DivStructures;DivSBEGeneral;DivSBEResurf;Federal;Permits;NoPerm","2013-11","D 08 DBE Subcontractors (Federal).docx","All Federal Aid Division Let Projects.",null,null,0,{"$f":"IF(RIGHT(LEFT(E692,2),1)=\":\",E692,\"\")","v":""},{"$f":"+$P$6","v":"//dot/dfsroot01/cccommon/provisions/01a  Automated Proposal Line Up Sheet/2012 Standard Provisions/"},{"$f":"IF(N692=\"\",\"\",IF(H692=\"\",\"\",IF(+B692=\"a\",CONCATENATE(+N692,+H692),\"\")))","v":""},{"$f":"CONCATENATE(M692,O692)","v":""},""]
["PSP",null,null,null,"Click Here to Add Additional Project Specific Provisions","DivGeneral;DivResurf;DivStructures;DivSBEGeneral;DivSBEResurf;Federal;Permits;NoPerm",null,null,null,null,null,null,"","//dot/dfsroot01/cccommon/provisions/01a  Automated Proposal Line Up Sheet/2012 Standard Provisions/","","",""]
[223,null,"Z115","Z","LISTING OF MBE/WBE SUBCONTRACTORS","DivGeneral;DivResurf;DivStructures;DivSBEGeneral;DivSBEResurf;State;Permits;NoPerm","2013-11","D 09 MBE-WBE Subcontractors (State).docx","All State Funded Division Let Projects.",null,null,0,"","//dot/dfsroot01/cccommon/provisions/01a  Automated Proposal Line Up Sheet/2012 Standard Provisions/","","",""]
["PSP",null,null,null,"Click Here to Add Additional Project Specific Provisions","DivGeneral;DivResurf;DivStructures;DivSBEGeneral;DivSBEResurf;State;Permits;NoPerm",null,null,null,null,null,null,"","//dot/dfsroot01/cccommon/provisions/01a  Automated Proposal Line Up Sheet/2012 Standard Provisions/","","",""]
[224,null,"Z118","Z","PAYMENT BOND FORMS","DivGeneral;DivResurf;DivStructures;DivSBEGeneral;DivSBEResurf;Federal;State;Permits;NoPerm",null,"D 05 Payment Bonds.docx","Projects with Bonds.",null,null,0,"","//dot/dfsroot01/cccommon/provisions/01a  Automated Proposal Line Up Sheet/2012 Standard Provisions/","","",""]
["PSP",null,null,null,"Click Here to Add Additional Project Specific Provisions","DivGeneral;DivResurf;DivStructures;DivSBEGeneral;DivSBEResurf;Federal;State;Permits;NoPerm",null,null,null,null,null,null,"","//dot/dfsroot01/cccommon/provisions/01a  Automated Proposal Line Up Sheet/2012 Standard Provisions/","","",{"$f":"IF(B697=\"a\",+C697,+M697)","v":""}]
[225,null,"Z120","Z","PERFORMANCE BOND FORMS","DivGeneral;DivResurf;DivStructures;DivSBEGeneral;DivSBEResurf;Federal;State;Permits;NoPerm",null,"D 06 Performance Bonds.docx","Projects with Bonds (Optional).",null,null,0,"","//dot/dfsroot01/cccommon/provisions/01a  Automated Proposal Line Up Sheet/2012 Standard Provisions/","","",""]
["PSP",null,null,null,"Click Here to Add Additional Project Specific Provisions","DivGeneral;DivResurf;DivStructures;DivSBEGeneral;DivSBEResurf;Federal;State;Permits;NoPerm",null,null,null,null,null,null,"","//dot/dfsroot01/cccommon/provisions/01a  Automated Proposal Line Up Sheet/2012 Standard Provisions/","","",""]
[224,null,"Z122","Z","BID BOND FORMS","DivGeneral;DivResurf;DivStructures;DivSBEGeneral;DivSBEResurf;Federal;State;Permits;NoPerm",null,"D Bid Bonds.docx","Projects with Bonds.",null,null,0,"","//dot/dfsroot01/cccommon/provisions/01a  Automated Proposal Line Up Sheet/2012 Standard Provisions/","","",""]
["PSP",null,null,null,"Click Here to Add Additional Project Specific Provisions","DivGeneral;DivResurf;DivStructures;DivSBEGeneral;DivSBEResurf;Federal;State;Permits;NoPerm",null,null,null,null,null,null,"","//dot/dfsroot01/cccommon/provisions/01a  Automated Proposal Line Up Sheet/2012 Standard Provisions/","","",""]
[224,null,"Z124","Z","ADDENDUM(S) (Division Let)","DivGeneral;DivResurf;DivStructures;DivSBEGeneral;DivSBEResurf;Federal;State;Permits;NoPerm",null,"D ADDENDUM.docx","All Division Let Projects.",null,null,0,"","//dot/dfsroot01/cccommon/provisions/01a  Automated Proposal Line Up Sheet/2012 Standard Provisions/","","",""]
["PSP",null,null,null,"Click Here to Add Additional Project Specific Provisions","DivGeneral;DivResurf;DivStructures;DivSBEGeneral;DivSBEResurf;Federal;State;Permits;NoPerm",null,null,null,null,null,null,"","//dot/dfsroot01/cccommon/provisions/01a  Automated Proposal Line Up Sheet/2012 Standard Provisions/","","",""]
[225,null,"Z125","Z","AWARD LIMITS ON MULTIPLE PROJECTS (Divison Let Only)","DivGeneral;DivResurf;DivStructures;DivSBEGeneral;DivSBEResurf;Federal;State;Permits;NoPerm",null,"D AWARD LIMITS ON MULTIPLE PROJECTS.docx","Division Let Projects (Optional).",null,null,0,"","//dot/dfsroot01/cccommon/provisions/01a  Automated Proposal Line Up Sheet/2012 Standard Provisions/","","",""]
["PSP",null,null,null,"Click Here to Add Additional Project Specific Provisions","DivGeneral;DivResurf;DivStructures;DivSBEGeneral;DivSBEResurf;Federal;State;Permits;NoPerm",null,null,null,null,null,null,"","//dot/dfsroot01/cccommon/provisions/01a  Automated Proposal Line Up Sheet/2012 Standard Provisions/","","",""]
[226,null,"Z130","Z","***MANUALLY ADD PROJECT ITEM SHEETS HERE (SPACER FILE)***","DivGeneral;DivResurf;DivStructures;DivSBEGeneral;DivSBEResurf;Federal;State;Permits;NoPerm",null,"D PO Proposal bid form.docx","All Division Let Projects.",null,null,0,"","//dot/dfsroot01/cccommon/provisions/01a  Automated Proposal Line Up Sheet/2012 Standard Provisions/","","",""]
["PSP",null,null,null,"Click Here to Add Additional Project Specific Provisions","DivGeneral;DivResurf;DivStructures;DivSBEGeneral;DivSBEResurf;Federal;State;Permits;NoPerm",null,null,null,null,null,null,"","//dot/dfsroot01/cccommon/provisions/01a  Automated Proposal Line Up Sheet/2012 Standard Provisions/","","",""]
[225,null,"Z135","Z","Execution of BID forms","DivGeneral;DivResurf;DivStructures;DivSBEGeneral;DivSBEResurf;Federal;State;Permits;NoPerm",null,"D Execution of BID.docx","All Division Let Projects.",null,null,0,"","//dot/dfsroot01/cccommon/provisions/01a  Automated Proposal Line Up Sheet/2012 Standard Provisions/","","",""]
["PSP",null,null,null,"Click Here to Add Additional Project Specific Provisions","DivGeneral;DivResurf;DivStructures;DivSBEGeneral;DivSBEResurf;Federal;State;Permits;NoPerm",null,null,null,null,null,null,"","//dot/dfsroot01/cccommon/provisions/01a  Automated Proposal Line Up Sheet/2012 Standard Provisions/","","",""]
[227,null,"Z136","Z","Signature Sheet (Division Let)","DivGeneral;DivResurf;DivStructures;DivSBEGeneral;DivSBEResurf;Federal;State;Permits;NoPerm","2012-01","D PO Execution Form.docx","All Division Let Projects.",null,null,0,"","//dot/dfsroot01/cccommon/provisions/01a  Automated Proposal Line Up Sheet/2012 Standard Provisions/",{"$f":"IF(N710=\"\",\"\",IF(H710=\"\",\"\",IF(+B710=\"a\",CONCATENATE(+N710,+H710),\"\")))","v":""},"",""]
["PSP",null,null,null,"Click Here to Add Additional Project Specific Provisions","DivGeneral;DivResurf;DivStructures;DivSBEGeneral;DivSBEResurf;Federal;State;Permits;NoPerm",null,null,null,null,null,null,{"$f":"IF(RIGHT(LEFT(E711,2),1)=\":\",E711,\"\")","v":""},"//dot/dfsroot01/cccommon/provisions/01a  Automated Proposal Line Up Sheet/2012 Standard Provisions/","","",""]
["lastrow"]
[]
[]
[]
[]
[]
[]
[]
[]
[]
[]
[]
[]
[]
[]
[]
[]
[]
[]
[]
[]
[]
[]
[]
[]
[]
[]
[]
[]
[]
[]
[]
[]
[]
[]
[]
[]
[]
[]
[]
[]
[]
[]
[]
[]
[]
[]
[]
[]
[]
[]
[]
[]
[]
[]
[]
[]
[]
[]
[]
[]
[]
[]
[]
[]
[]
[]
[]
[]
[]
[]
[]
[]
[]
[]
[]
[]
[]
[]
[]
[]
[]
[]
[]
[]
[]
[]
[]
[]
[]
[]
[]
[]
[]
[]
[]
[]
[]
[]
[]
[]
[]
[]
[]
[]
[]
[]
[]
[]
[]
[]
[]
[]
[]
[]
[]
[]
[]
[]
[]
[]
[]
[]
[]
[]
[]
[]
[]
[]
[]
[]
[]
[]
[]
[]
[]
[]
[]
[]
[]
[]
[]
[]
[]
[]
[]
[]
[]
[]
[]
[]
[]
[]
[]
[]
[]
[]
[]
[]
[]
[]
[]
[]
[]
[]
[]
[]
[]
[]
[]
[]
[]
[]
[]
[]
[]
[]
[]
[]
[]
[]
[]
[]
[]
[]
[]
[]
[]
[]
[]
[]
[]
[]
[]
[]
[]
[]
[]
[]
[]
[]
[]
[]
[]
[]
[]
[]
[]
[]
[]
[]
[]
[]
[]
[]
[]
[]
[]
[]
[]
[]
[]
[]
[]
[]
[]
[]
[]
[]
[]
[]
[]
[]
[]
[]
[]
[]
[]
[]
[]
[]
[]
[]
[]
[]
[]
[]
[]
[]
[]
[]
[]
[]
[]
[]
[]
[]
[]
[]
[]
[]
[]
[]
[]
[]
[]
[]
[]
[]
[]
[]
[]
[]
[]
[]
[]
[]
[]
[]
[]
[]
[]
[]
[]
[]
[]
[]
[]
[]
[]
[]
[]
[]
[]
[]
[]
[]
[]
[]
[]
[]
[]
[]
[]
[]
[]
[null,null,null,null,null,null,null,null,null,null,null,null,null,null,null,null,null,null,null,null,null,null,null,null,null,null,null,69]

{"sheet":"UserNames","index":2,"n_rows":3,"n_cols":9,"rows_kept":3,"cut":false,"hidden":true,"merged":[]}
["User Name","Password","ÇintDivision","ÇstrProposalOutputPath","Saved Data Output File (project data)","ÇstrContractOfficer","ÇstrMailingAddress1","ÇstrMailingAddress2","ÇstrTimeBidOpening"]
["tcanales","ncdot",15,"S:\\Proposals\\Aplus Proposal Inbox\\","\\\\dot\\dfsroot01\\cccommon\\Provisions Data\\aplusRaleigh.xlsx",null,null,null,"14:00:00"]
[{"$f":"NOW()","v":"2015-07-21T09:11:54.690"},"=time application opened"]

{"sheet":"LineUpSheetType","index":3,"n_rows":100,"n_cols":7,"rows_kept":100,"cut":false,"hidden":true,"merged":[]}
["Raleigh Let - General Construction","CentralGeneral","chkAlamance","Alamance","Washington",{"$f":"COUNTA(E1:E100)","v":1},{"$f":"IF(F1=0,\"\",IF(F1=1,+E1,IF(F1=2,CONCATENATE(+E1,\" and \",E2),IF(F1=3,CONCATENATE(+E1,\", \",+E2,\" and \",E3),IF(F1=4,CONCATENATE(+E1,\", \",+E2,\", \",+E3,\" and \",E4),IF(F1=5,CONCATENATE(+E1,\", \",+E2,\", \",+E3,\", \",+E4,\" and \",E5),IF(F1=6,CONCATENATE(+E1,\", \",+E2,\", \",+E3,\", \",+E4,\", \",+E5,\" and \",E6),IF(F1=7,CONCATENATE(+E1,\", \",+E2,\", \",+E3,\", \",+E4,\", \",+E5,\", \",+E6,\" and \",E7),IF(F1=8,CONCATENATE(+E1,\", \",+E2,\", \",+E3,\", \",+E4,\", \",+E5,\", \",+E6,\", \",+E7,\" and \",E8),IF(F1=9,CONCATENATE(+E1,\", \",+E2,\", \",+E3,\", \",+E4,\", \",+E5,\", \",+E6,\", \",+E7,\", \",+E8,\" and \",E9),IF(F1=10,CONCATENATE(+E1,\", \",+E2,\", \",+E3,\", \",+E4,\", \",+E5,\", \",+E6,\", \",+E7,\", \",+E8,\", \",+E9,\" and \",E10),IF(F1=11,CONCATENATE(+E1,\", \",+E2,\", \",+E3,\", \",+E4,\", \",+E5,\", \",+E6,\", \",+E7,\", \",+E8,\", \",+E9,\", \",E10,\" and \",E11),\"TOO MANY?\"))))))))))))","v":"Washington"}]
["Raleigh Let - Resurfacing","CentralResurfacing","chkAlexander","Alexander"]
["Raleigh Let - Rail","CentralRail","chkAlleghany","Alleghany"]
["ALL Raleigh Let Provisions","Central","chkAnson","Anson"]
["Division Let - General Construction","DivGeneral","chkAshe","Ashe"]
["Division Let - Resurfacing","DivResurf","chkAvery","Avery"]
["Division Let - SBE General Construction","DivSBEGeneral","chkBeaufort","Beaufort"]
["Division Let - SBE Resurfacing","DivSBEResurf","chkBertie","Bertie"]
["ALL Division Let Provisions","Div","chkBladen","Bladen"]
["ALL Provisions","ALL","chkBrunswick","Brunswick"]
[null,null,"chkBuncombe","Buncombe"]
[null,null,"chkBurke","Burke"]
[null,null,"chkCabarrus","Cabarrus"]
[null,null,"chkCaldwell","Caldwell"]
[null,null,"chkCamden","Camden"]
[null,null,"chkCarteret","Carteret"]
[null,null,"chkCaswell","Caswell"]
[null,null,"chkCatawba","Catawba"]
[null,null,"chkChatham","Chatham"]
[null,null,"chkCherokee","Cherokee"]
[null,null,"chkChowan","Chowan"]
[null,null,"chkClay","Clay"]
[null,null,"chkCleveland","Cleveland"]
[null,null,"chkColumbus","Columbus"]
[null,null,"chkCraven","Craven"]
[null,null,"chkCumberland","Cumberland"]
[null,null,"chkCurrituck","Currituck"]
[null,null,"chkDare","Dare"]
[null,null,"chkDavidson","Davidson"]
[null,null,"chkDavie","Davie"]
[null,null,"chkDuplin","Duplin"]
[null,null,"chkDurham","Durham"]
[null,null,"chkEdgecombe","Edgecombe"]
[null,null,"chkForsyth","Forsyth"]
[null,null,"chkFranklin","Franklin"]
[null,null,"chkGaston","Gaston"]
[null,null,"chkGates","Gates"]
[null,null,"chkGraham","Graham"]
[null,null,"chkGranville","Granville"]
[null,null,"chkGreene","Greene"]
[null,null,"chkGuilford","Guilford"]
[null,null,"chkHalifax","Halifax"]
[null,null,"chkHarnett","Harnett"]
[null,null,"chkHaywood","Haywood"]
[null,null,"chkHenderson","Henderson"]
[null,null,"chkHertford","Hertford"]
[null,null,"chkHoke","Hoke"]
[null,null,"chkHyde","Hyde"]
[null,null,"chkIredell","Iredell"]
[null,null,"chkJackson","Jackson"]
[null,null,"chkJohnston","Johnston"]
[null,null,"chkJones","Jones"]
[null,null,"chkLee","Lee"]
[null,null,"chkLenoir","Lenoir"]
[null,null,"chkLincoln","Lincoln"]
[null,null,"chkMacon","Macon"]
[null,null,"chkMadison","Madison"]
[null,null,"chkMartin","Martin"]
[null,null,"chkMcDowell","McDowell"]
[null,null,"chkMecklenburg","Mecklenburg"]
[null,null,"chkMitchell","Mitchell"]
[null,null,"chkMontgomery","Montgomery"]
[null,null,"chkMoore","Moore"]
[null,null,"chkNash","Nash"]
[null,null,"chkNew_Hanover","New Hanover"]
[null,null,"chkNorthampton","Northampton"]
[null,null,"chkOnslow","Onslow"]
[null,null,"chkOrange","Orange"]
[null,null,"chkPamlico","Pamlico"]
[null,null,"chkPasquotank","Pasquotank"]
[null,null,"chkPender","Pender"]
[null,null,"chkPerquimans","Perquimans"]
[null,null,"chkPerson","Person"]
[null,null,"chkPitt","Pitt"]
[null,null,"chkPolk","Polk"]
[null,null,"chkRandolph","Randolph"]
[null,null,"chkRichmond","Richmond"]
[null,null,"chkRobeson","Robeson"]
[null,null,"chkRockingham","Rockingham"]
[null,null,"chkRowan","Rowan"]
[null,null,"chkRutherford","Rutherford"]
[null,null,"chkSampson","Sampson"]
[null,null,"chkScotland","Scotland"]
[null,null,"chkStanly","Stanly"]
[null,null,"chkStokes","Stokes"]
[null,null,"chkSurry","Surry"]
[null,null,"chkSwain","Swain"]
[null,null,"chkTransylvania","Transylvania"]
[null,null,"chkTyrrell","Tyrrell"]
[null,null,"chkUnion","Union"]
[null,null,"chkVance","Vance"]
[null,null,"chkWake","Wake"]
[null,null,"chkWarren","Warren"]
[null,null,"chkWashington","Washington"]
[null,null,"chkWatauga","Watauga"]
[null,null,"chkWayne","Wayne"]
[null,null,"chkWilkes","Wilkes"]
[null,null,"chkWilson","Wilson"]
[null,null,"chkYadkin","Yadkin"]
[null,null,"chkYancey","Yancey"]

{"sheet":"DataInput","index":4,"n_rows":735,"n_cols":11,"rows_kept":735,"cut":false,"hidden":true,"merged":[]}
[null,"Is SPI?","Column for where to put the final data?",2,0,null,null,"Name","Variable","Line Number","Note"]
[null,{"$f":"MID(D2,2,2)","v":""}]
[null,{"$f":"MID(D3,2,2)","v":""}]
[null,""]
[null,""]
[null,""]
[null,""]
[null,""]
[null,""]
[null,""]
[null,""]
[null,""]
[null,""]
[null,""]
[null,""]
[null,""]
[null,""]
[null,""]
[null,""]
[null,""]
[null,""]
[null,""]
[null,""]
[null,""]
[null,""]
[null,""]
[null,""]
[null,""]
[null,""]
[null,""]
[null,""]
[null,""]
[null,""]
[null,""]
[null,""]
[null,""]
[null,""]
[null,""]
[null,""]
[null,""]
[null,""]
[null,""]
[null,""]
[null,""]
[null,""]
[null,""]
[null,""]
[null,""]
[null,""]
[null,""]
[null,""]
[null,""]
[null,""]
[null,""]
[null,""]
[null,""]
[null,""]
[null,""]
[null,""]
[null,""]
[null,""]
[null,""]
[null,""]
[null,""]
[null,""]
[null,""]
[null,{"$f":"MID(D67,2,2)","v":""}]
[null,""]
[null,""]
[null,""]
[null,""]
[null,""]
[null,""]
[null,""]
[null,""]
[null,""]
[null,""]
[null,""]
[null,""]
[null,""]
[null,""]
[null,""]
[null,""]
[null,""]
[null,""]
[null,""]
[null,""]
[null,""]
[null,""]
[null,""]
[null,""]
[null,""]
[null,""]
[null,""]
[null,""]
[null,""]
[null,""]
[null,""]
[null,""]
[null,""]
[null,""]
[null,""]
[null,""]
[null,""]
[null,""]
[null,""]
[null,""]
[null,""]
[null,""]
[null,""]
[null,""]
[null,""]
[null,""]
[null,""]
[null,""]
[null,""]
[null,""]
[null,""]
[null,""]
[null,""]
[null,""]
[null,""]
[null,""]
[null,""]
[null,""]
[null,""]
[null,""]
[null,""]
[null,""]
[null,""]
[null,{"$f":"MID(D131,2,2)","v":""}]
[null,""]
[null,""]
[null,""]
[null,""]
[null,""]
[null,""]
[null,""]
[null,""]
[null,""]
[null,""]
[null,""]
[null,""]
[null,""]
[null,""]
[null,""]
[null,""]
[null,""]
[null,""]
[null,""]
[null,""]
[null,""]
[null,""]
[null,""]
[null,""]
[null,""]
[null,""]
[null,""]
[null,""]
[null,""]
[null,""]
[null,""]
[null,""]
[null,""]
[null,""]
[null,""]
[null,""]
[null,""]
[null,""]
[null,""]
[null,""]
[null,""]
[null,""]
[null,""]
[null,""]
[null,""]
[null,""]
[null,""]
[null,""]
[null,""]
[null,""]
[null,""]
[null,""]
[null,""]
[null,""]
[null,""]
[null,""]
[null,""]
[null,""]
[null,""]
[null,""]
[null,""]
[null,""]
[null,""]
[null,{"$f":"MID(D195,2,2)","v":""}]
[null,""]
[null,""]
[null,""]
[null,""]
[null,""]
[null,""]
[null,""]
[null,""]
[null,""]
[null,""]
[null,""]
[null,""]
[null,""]
[null,""]
[null,""]
[null,""]
[null,""]
[null,""]
[null,""]
[null,""]
[null,""]
[null,""]
[null,""]
[null,""]
[null,""]
[null,""]
[null,""]
[null,""]
[null,""]
[null,""]
[null,""]
[null,""]
[null,""]
[null,""]
[null,""]
[null,""]
[null,""]
[null,""]
[null,""]
[null,""]
[null,""]
[null,""]
[null,""]
[null,""]
[null,""]
[null,""]
[null,""]
[null,""]
[null,""]
[null,""]
[null,{"$f":"MID(A246,2,2)","v":""}]
[null,""]
[null,""]
[null,""]
[null,""]
[null,""]
[null,""]
[null,""]
[null,""]
[null,""]
[null,""]
[null,""]
[null,""]
[null,{"$f":"MID(A259,2,2)","v":""}]
[null,""]
[null,""]
[null,""]
[null,""]
[null,""]
[null,""]
[null,""]
[null,""]
[null,""]
[null,""]
[null,""]
[null,""]
[null,""]
[null,""]
[null,""]
[null,""]
[null,""]
[null,""]
[null,""]
[null,""]
[null,""]
[null,""]
[null,""]
[null,""]
[null,""]
[null,""]
[null,""]
[null,""]
[null,""]
[null,""]
[null,""]
[null,""]
[null,""]
[null,""]
[null,""]
[null,""]
[null,""]
[null,""]
[null,""]
[null,""]
[null,""]
[null,""]
[null,""]
[null,""]
[null,""]
[null,""]
[null,""]
[null,""]
[null,""]
[null,""]
[null,""]
[null,""]
[null,""]
[null,""]
[null,""]
[null,""]
[null,""]
[null,""]
[null,""]
[null,""]
[null,""]
[null,""]
[null,""]
[null,{"$f":"MID(A323,2,2)","v":""}]
[null,""]
[null,""]
[null,""]
[null,""]
[null,""]
[null,""]
[null,""]
[null,""]
[null,""]
[null,""]
[null,""]
[null,""]
[null,""]
[null,""]
[null,""]
[null,""]
[null,""]
[null,""]
[null,""]
[null,""]
[null,""]
[null,""]
[null,""]
[null,""]
[null,""]
[null,""]
[null,""]
[null,""]
[null,""]
[null,""]
[null,""]
[null,""]
[null,""]
[null,""]
[null,""]
[null,""]
[null,""]
[null,""]
[null,""]
[null,""]
[null,""]
[null,""]
[null,""]
[null,""]
[null,""]
[null,""]
[null,""]
[null,""]
[null,""]
[null,""]
[null,""]
[null,""]
[null,""]
[null,""]
[null,""]
[null,""]
[null,""]
[null,""]
[null,""]
[null,""]
[null,""]
[null,""]
[null,""]
[null,{"$f":"MID(A387,2,2)","v":""}]
[null,""]
[null,""]
[null,""]
[null,""]
[null,""]
[null,""]
[null,""]
[null,""]
[null,""]
[null,""]
[null,""]
[null,""]
[null,""]
[null,""]
[null,""]
[null,""]
[null,""]
[null,""]
[null,""]
[null,""]
[null,""]
[null,""]
[null,""]
[null,""]
[null,""]
[null,""]
[null,""]
[null,""]
[null,""]
[null,""]
[null,""]
[null,""]
[null,""]
[null,""]
[null,""]
[null,""]
[null,""]
[null,""]
[null,""]
[null,""]
[null,""]
[null,""]
[null,""]
[null,""]
[null,""]
[null,""]
[null,""]
[null,""]
[null,""]
[null,""]
[null,""]
[null,""]
[null,""]
[null,""]
[null,""]
[null,""]
[null,""]
[null,""]
[null,""]
[null,""]
[null,""]
[null,""]
[null,""]
[null,{"$f":"MID(A451,2,2)","v":""}]
[null,""]
[null,""]
[null,""]
[null,""]
[null,""]
[null,""]
[null,""]
[null,""]
[null,""]
[null,""]
[null,""]
[null,""]
[null,""]
[null,""]
[null,""]
[null,""]
[null,""]
[null,""]
[null,""]
[null,""]
[null,""]
[null,""]
[null,""]
[null,""]
[null,""]
[null,""]
[null,""]
[null,""]
[null,""]
[null,""]
[null,""]
[null,""]
[null,""]
[null,""]
[null,""]
[null,""]
[null,""]
[null,""]
[null,""]
[null,""]
[null,""]
[null,""]
[null,""]
[null,""]
[null,""]
[null,""]
[null,""]
[null,""]
[null,""]
[null,""]
[null,""]
[null,""]
[null,""]
[null,""]
[null,""]
[null,""]
[null,""]
[null,""]
[null,""]
[null,""]
[null,""]
[null,""]
[null,""]
[null,{"$f":"MID(A515,2,2)","v":""}]
[null,""]
[null,""]
[null,""]
[null,""]
[null,""]
[null,""]
[null,""]
[null,""]
[null,""]
[null,""]
[null,""]
[null,""]
[null,""]
[null,""]
[null,""]
[null,""]
[null,""]
[null,""]
[null,""]
[null,""]
[null,""]
[null,""]
[null,""]
[null,""]
[null,""]
[null,""]
[null,""]
[null,""]
[null,""]
[null,""]
[null,""]
[null,""]
[null,""]
[null,""]
[null,""]
[null,""]
[null,""]
[null,""]
[null,""]
[null,""]
[null,""]
[null,""]
[null,""]
[null,""]
[null,""]
[null,""]
[null,""]
[null,""]
[null,""]
[null,""]
[null,""]
[null,""]
[null,""]
[null,""]
[null,""]
[null,""]
[null,""]
[null,""]
[null,""]
[null,""]
[null,""]
[null,""]
[null,""]
[null,{"$f":"MID(A579,2,2)","v":""}]
[null,""]
[null,""]
[null,""]
[null,""]
[null,""]
[null,""]
[null,""]
[null,""]
[null,""]
[null,""]
[null,""]
[null,""]
[null,""]
[null,""]
[null,""]
[null,""]
[null,""]
[null,""]
[null,""]
[null,""]
[null,""]
[null,""]
[null,""]
[null,""]
[null,""]
[null,""]
[null,""]
[null,""]
[null,""]
[null,""]
[null,""]
[null,""]
[null,""]
[null,""]
[null,""]
[null,""]
[null,""]
[null,""]
[null,""]
[null,""]
[null,""]
[null,""]
[null,""]
[null,""]
[null,""]
[null,""]
[null,""]
[null,""]
[null,""]
[null,""]
[null,""]
[null,""]
[null,""]
[null,""]
[null,""]
[null,""]
[null,""]
[null,""]
[null,""]
[null,""]
[null,""]
[null,""]
[null,""]
[null,{"$f":"MID(A643,2,2)","v":""}]
[null,""]
[null,""]
[null,""]
[null,""]
[null,""]
[null,""]
[null,""]
[null,""]
[null,""]
[null,""]
[null,""]
[null,""]
[null,""]
[null,""]
[null,""]
[null,""]
[null,""]
[null,""]
[null,""]
[null,""]
[null,""]
[null,""]
[null,""]
[null,""]
[null,""]
[null,""]
[null,""]
[null,""]
[null,""]
[null,""]
[null,""]
[null,""]
[null,""]
[null,""]
[null,""]
[null,""]
[null,""]
[null,""]
[null,""]
[null,""]
[null,""]
[null,""]
[null,""]
[null,""]
[null,""]
[null,""]
[null,""]
[null,""]
[null,""]
[null,""]
[null,""]
[null,""]
[null,""]
[null,""]
[null,""]
[null,""]
[null,""]
[null,""]
[null,""]
[null,""]
[null,""]
[null,""]
[null,""]
[null,{"$f":"MID(A707,2,2)","v":""}]
[null,""]
[null,""]
[null,""]
[null,""]
[null,""]
[null,""]
[null,""]
[null,""]
[null,""]
[null,""]
[null,""]
[null,""]
[null,""]
[null,""]
[null,""]
[null,""]
[null,""]
[null,""]
[null,""]
[null,""]
[null,""]
[null,""]
[null,""]
[null,""]
[null,""]
[null,""]
[null,""]
[null,""]

{"sheet":"MajorItems","index":5,"n_rows":19,"n_cols":1,"rows_kept":19,"cut":false,"hidden":true,"merged":[]}
["Asphalt Concrete Base Course, Type B25.0 B"]
["Asphalt Concrete Intermediate Course, Type I19.0 B"]
["Asphalt Concrete Surface Course, Type SF9.5 A"]
["Asphalt Concrete Surface Course, Type S9.5 C"]
["Asphalt Concrete Surface Course, Type S9.5 B"]
["Asphalt Surface Treatment, Mat Coat #6M Stone"]
["Borrow Excavation"]
["Class A Concrete (Bridge)"]
["Class A Concrete (Culvert)"]
["Hydro-demolition of Bridge Deck"]
["Latex Modified Concrete Overlay – Very Early Strength"]
["Open-Graded Asphalt Friction Course, Type FC-1 Modified"]
["Placing & Finishing Latex Modified Concrete Overlay –   Very Early Strength"]
["3’-0” x 1’-9” Prestressed Concrete Cored Slabs"]
["3’-0” x 2’-0” Prestressed Concrete Cored Slabs"]
["3’-0” x 2’-9” Prestressed Concrete Box Beams"]
["3’-0” x 3’-3” Prestressed Concrete Box Beams"]
["Reinforced Concrete Deck Slab"]
["Reinforcing Steel (Culvert)"]